Workbook

Sheet SERIES
A2: WALKER FRASER STEELE HPI (SCOTLAND) NATIONAL AND REGIONAL FORMATTED DATA FROM 2000
A3: A TRUE MEASURE OF HOUSE PRICE INFLATION | K3: SEPTEMBER 2020
A5: The following table provides national smoothed, seasonally and mix adjusted current and back data for our e.surv Scotland HPI. The data are based upon the prices for all residential transactions in Scotland, including cash purchases, reported by Registers of Scotland (RoS).
A6: At national level, monthly transactions ranged from only 4,427 to 7,313 in the 12 months to January 2013, averaging something less than 6,500 p.m. Of these sales, RoS reports prices for some 99% for the current month of the index but does so after a delay of over a month from the end of the month in question. Since our e.surv Scotland HPI average prices are averaged over the month and the prior two months, the volume of data used is such that we describe our first updated results as the final e.surv Scotland HPI index since the averages will be very close, in normal circumstances, to those of the ultimate e.surv Scotland HPI, calculated when every transaction has been reported.
A7: Note that e.surv Scotland HPI results are reported, every month, for the month preceding the month reported for LSL Acadata E&W HPI. That said, LSL Acadata E&W HPI reports the average price for the month only at national level. Regional (including Wales), county and London borough prices are reported for the preceding month and are averaged over three months, centre month smoothed. By end month smoothing the e.surv Scotland HPI average prices, the averages for Scotland are synchronised and comparable with those of e.g. Greater London or Wales.
A8: Our Acadata House Prices series is calibrated to provide portfolio revaluations with standard errors.
A9: e.surv Scotland HPI is prepared from Registers of Scotland data that we believe to be correct using a methodology designed to provide the best possible guide to house price movements in Scotland, and applied with care. We do not guarantee the accuracy of the results and Acadata shall not be liable for any loss or damage, whatsoever, consequential upon any error, misdescription or other inadequacy in the data. Persons using the data do so entirely at their own risk. No part of the house price index may be reproduced in any form or for any purpose without the prior permission of Acadata. Please email information@Acadata.co.uk.
L11: © Acadata Limited
M12: Walker Fraser Steele HPI (Scotland) clb/cms
M13: www.acadata.co.uk
A14: SCOTLAND
B16: 2000-01-01 | C16: 2000-02-01 | D16: 2000-03-01 | E16: 2000-04-01 | F16: 2000-05-01 | G16: 2000-06-01 | H16: 2000-07-01 | I16: 2000-08-01 | J16: 2000-09-01 | K16: 2000-10-01 | L16: 2000-11-01 | M16: 2000-12-01
A17: HP | B17: 76353.59484 | C17: 76365.32758 | D17: 76377.06033 | E17: 76251.79602 | F17: 76126.53172 | G17: 76001.26742 | H17: 76162.42012 | I17: 76323.57281 | J17: 76484.72551 | K17: 76455.73873 | L17: 76426.75195 | M17: 76397.76517
A18: Index | B18: 100 | C18: =+B18*C17/B17 -> 100.0153663 | D18: 100.0307327 | E18: 99.8666745 | F18: 99.70261634 | G18: 99.53855819 | H18: 99.74961923 | I18: 99.96068028 | J18: 100.1717413 | K18: 100.1337775 | L18: 100.0958136 | M18: 100.0578497
A19: Monthly% | C19: =(+C17-B17)/B17*100 -> 0.01536632876 | D19: =(+D17-C17)/C17*100 -> 0.01536396788 | E19: -0.1640077531 | F19: -0.1642771804 | G19: -0.1645474944 | H19: 0.2120394838 | I19: 0.2115908277 | J19: 0.2111440663 | K19: -0.03789878318 | L19: -0.0379131518 | M19: -0.03792753132
A20: Annual%
B22: 2001-01-01 | C22: 2001-02-01 | D22: 2001-03-01 | E22: 2001-04-01 | F22: 2001-05-01 | G22: 2001-06-01 | H22: 2001-07-01 | I22: 2001-08-01 | J22: 2001-09-01 | K22: 2001-10-01 | L22: 2001-11-01 | M22: 2001-12-01
A23: HP | B23: 74839 | C23: 75881 | D23: 76923 | E23: 76091.02786 | F23: 75259.05572 | G23: 74427.08358 | H23: 73998.74498 | I23: 73513.82021 | J23: 72996.15624 | K23: 73611.67995 | L23: 74698.38209 | M23: 75445.81804
A24: Index | B24: =+M18/M17*B23 -> 98.01634116 | C24: =+B24*C23/B23 -> 99.38104442 | D24: 100.7457477 | E24: 99.65611707 | F24: 98.56648646 | G24: 97.47685585 | H24: 96.91586249 | I24: 96.28075845 | J24: 95.60277601 | K24: 96.40892496 | L24: 97.83217443 | M24: 98.81108834
A25: Monthly% | B25: =(B23-M17)/M17*100 -> -2.040328228 | C25: =(+C23-B23)/B23*100 -> 1.392322185 | D25: =(+D23-C23)/C23*100 -> 1.373202778 | E25: -1.081564864 | F25: -1.093390593 | G25: -1.105477783 | H25: -0.5755144217 | I25: -0.6553148496 | J25: -0.7041723156 | K25: 0.8432275545 | L25: 1.476263196 | M25: 1.000605284
A26: Annual% | B26: =(B23-B17)/B17*100 -> -1.983658844 | C26: =(C23-C17)/C17*100 -> -0.6342244529 | D26: 0.7147953485 | E26: -0.2108385295 | F26: -1.139518622 | G26: -2.071259992 | H26: -2.840869732 | I26: -3.681369328 | J26: -4.561131967 | K26: -3.719876139 | L26: -2.261472349 | M26: -1.246040537
B28: 2002-01-01 | C28: 2002-02-01 | D28: 2002-03-01 | E28: 2002-04-01 | F28: 2002-05-01 | G28: 2002-06-01 | H28: 2002-07-01 | I28: 2002-08-01 | J28: 2002-09-01 | K28: 2002-10-01 | L28: 2002-11-01 | M28: 2002-12-01
A29: HP | B29: 77116.65019 | C29: 78149.2938 | D29: 80084.87904 | E29: 80518.38514 | F29: 81107.81008 | G29: 80809.37894 | H29: 81206.39994 | I29: 81888.48991 | J29: 83050.00653 | K29: 83727.68947 | L29: 84588.5895 | M29: 84479.58182
A30: Index | B30: =+M24/M23*B29 -> 100.9993706 | C30: =+B30*C29/B29 -> 102.3518198 | D30: 104.8868481 | E30: 105.4546093 | F30: 106.2265768 | G30: 105.8357227 | H30: 106.3556996 | I30: 107.2490301 | J30: 108.7702638 | K30: 109.6578225 | L30: 110.7853398 | M30: 110.6425729
A31: Monthly% | B31: =(B29-M23)/M23*100 -> 2.214612013 | C31: =(+C29-B29)/B29*100 -> 1.339066989 | D31: =(+D29-C29)/C29*100 -> 2.476778927 | E31: 0.5413082984 | F31: 0.7320377065 | G31: -0.3679437759 | H31: 0.4913056003 | I31: 0.8399460775 | J31: 1.418412546 | K31: 0.8159938501 | L31: 1.028214244 | M31: -0.1288680733
A32: Annual% | B32: =(B29-B23)/B23*100 -> 3.043400091 | C32: =(C29-C23)/C23*100 -> 2.989277685 | D32: 4.110446864 | E32: 5.81850108 | F32: 7.771495805 | G32: 8.575232366 | H32: 9.740239467 | I32: 11.3919664 | J32: 13.77312286 | K32: 13.74239731 | L32: 13.2401896 | M32: 11.97384296
B34: 2003-01-01 | C34: 2003-02-01 | D34: 2003-03-01 | E34: 2003-04-01 | F34: 2003-05-01 | G34: 2003-06-01 | H34: 2003-07-01 | I34: 2003-08-01 | J34: 2003-09-01 | K34: 2003-10-01 | L34: 2003-11-01 | M34: 2003-12-01
A35: HP | B35: 84460.21514 | C35: 84163.5531 | D35: 84348.38153 | E35: 87626.62377 | F35: 88633.41576 | G35: 91871.55738 | H35: 94120.29442 | I35: 94697.16475 | J35: 95151.68847 | K35: 96096.22436 | L35: 96951.87864 | M35: 98438.81811
A36: Index | B36: =+M30/M29*B35 -> 110.6172084 | C36: =+B36*C35/B35 -> 110.2286713 | D36: 110.4707404 | E36: 114.7642412 | F36: 116.0828327 | G36: 120.3238139 | H36: 123.2689759 | I36: 124.0245007 | J36: 124.6197886 | K36: 125.8568435 | L36: 126.9774905 | M36: 128.9249292
A37: Monthly% | B37: =(B35-M29)/M29*100 -> -0.02292468651 | C37: =(+C35-B35)/B35*100 -> -0.3512447055 | D37: =(+D35-C35)/C35*100 -> 0.2196062488 | E37: 3.886550268 | F37: 1.148956729 | G37: 3.653409487 | H37: 2.447696648 | I37: 0.6129074924 | J37: 0.479976054 | K37: 0.9926633024 | L37: 0.8904140435 | M37: 1.533688155
A38: Annual% | B38: =(B35-B29)/B29*100 -> 9.522671077 | C38: =(C35-C29)/C29*100 -> 7.695858799 | D38: 5.323729692 | E38: 8.828093888 | F38: 9.278521613 | G38: 13.68922592 | H38: 15.90255753 | I38: 15.64160586 | J38: 14.57156049 | K38: 14.77233513 | L38: 14.61578826 | M38: 16.523799
B40: 2004-01-01 | C40: 2004-02-01 | D40: 2004-03-01 | E40: 2004-04-01 | F40: 2004-05-01 | G40: 2004-06-01 | H40: 2004-07-01 | I40: 2004-08-01 | J40: 2004-09-01 | K40: 2004-10-01 | L40: 2004-11-01 | M40: 2004-12-01
A41: HP | B41: 101927.8847 | C41: 104357.9348 | D41: 105868.3142 | E41: 105384.9666 | F41: 106100.3427 | G41: 107047.4187 | H41: 108871.3563 | I41: 111327.9948 | J41: 112195.4102 | K41: 112908.2301 | L41: 114383.6801 | M41: 117893.2086
A42: Index | B42: =+M36/M35*B41 -> 133.4945459 | C42: =+B42*C41/B41 -> 136.6771728 | D42: =+C42*D41/C41 -> 138.6553107 | E42: 138.0222724 | F42: 138.9591976 | G42: 140.1995792 | H42: 142.5883831 | I42: 145.8058328 | J42: 146.9418833 | K42: 147.8754607 | L42: 149.8078517 | M42: =+L42*M41/L41 -> 154.4042672
A43: Monthly% | B43: =(B41-M35)/M35*100 -> 3.544401119 | C43: =(+C41-B41)/B41*100 -> 2.384087644 | D43: =(+D41-C41)/C41*100 -> 1.447306708 | E43: -0.4565554396 | F43: 0.6788217756 | G43: 0.8926228937 | H43: 1.703859548 | I43: 2.256459857 | J43: 0.7791530063 | K43: 0.6353378261 | L43: 1.306769264 | M43: 3.068207329
A44: Annual% | B44: =(B41-B35)/B35*100 -> 20.6815357 | C44: =(C41-C35)/C35*100 -> 23.99421239 | D44: 25.51315421 | E44: 20.26592158 | F44: 19.706932 | G44: 16.51856323 | H44: 15.67256246 | I44: 17.56212036 | J44: 17.91215902 | K44: 17.49497012 | L44: 17.97984913 | M44: 19.76292571
B46: 2005-01-01 | C46: 2005-02-01 | D46: 2005-03-01 | E46: 2005-04-01 | F46: 2005-05-01 | G46: 2005-06-01 | H46: 2005-07-01 | I46: 2005-08-01 | J46: 2005-09-01 | K46: 2005-10-01 | L46: 2005-11-01 | M46: 2005-12-01
A47: HP | B47: 119604.1749 | C47: 120185.6939 | D47: 118957.2537 | E47: 121219.5915 | F47: 122301.2275 | G47: 123466.0478 | H47: 122122.5902 | I47: 123484.4389 | J47: 125053.1098 | K47: 127794.8349 | L47: 128346.67 | M47: 128705.6174
A48: Index | B48: =+M42/M41*B47 -> 156.645113 | C48: =+B48*C47/B47 -> 157.4067261 | D48: 155.7978429 | E48: 158.7608177 | F48: 160.1774321 | G48: 161.7029926 | H48: 159.9434715 | I48: 161.7270793 | J48: 163.7815614 | K48: 167.3723878 | L48: 168.0951241 | M48: 168.5652362
A49: Monthly% | B49: =(B47-M41)/M41*100 -> 1.451284901 | C49: =(+C47-B47)/B47*100 -> 0.4862028721 | D49: =(+D47-C47)/C47*100 -> -1.022118466 | E49: 1.901807371 | F49: 0.8922946783 | G49: 0.9524191805 | H49: -1.088119088 | I49: 1.115148854 | J49: 1.270338985 | K49: 2.192448518 | L49: 0.431813331 | M49: 0.2796702291
A50: Annual% | B50: =(B47-B41)/B41*100 -> 17.34195732 | C50: =(C47-C41)/C41*100 -> 15.16679984 | D50: 12.36341546 | E50: 15.02550638 | F50: 15.26939908 | G50: 15.33771608 | H50: 12.17146024 | I50: 10.91948534 | J50: 11.46009413 | K50: 13.18469413 | L50: 12.20715215 | M50: 9.171358528
B52: 2006-01-01 | C52: 2006-02-01 | D52: 2006-03-01 | E52: 2006-04-01 | F52: 2006-05-01 | G52: 2006-06-01 | H52: 2006-07-01 | I52: 2006-08-01 | J52: 2006-09-01 | K52: 2006-10-01 | L52: 2006-11-01 | M52: 2006-12-01
A53: HP | B53: 128707.874 | C53: 130049.5789 | D53: 132285.4634 | E53: 134022.5173 | F53: 135869.6696 | G53: 137001.6676 | H53: 137902.6044 | I53: 138678.5696 | J53: 140697.1661 | K53: 143214.6326 | L53: 144733.9502 | M53: 146821.7145
A54: Index | B54: =+M48/M47*B53 -> 168.5681916 | C54: =+B54*C53/B53 -> 170.3254171 | D54: 173.2537462 | E54: 175.5287587 | F54: 177.9479668 | G54: 179.4305402 | H54: 180.6104934 | I54: 181.626772 | J54: 184.2705198 | K54: 187.5676356 | L54: 189.5574799 | M54: 192.2918166
A55: Monthly% | B55: =(B53-M47)/M47*100 -> 0.001753284865 | C55: =(+C53-B53)/B53*100 -> 1.042441929 | D55: =(+D53-C53)/C53*100 -> 1.719255479 | E55: 1.313110172 | F55: 1.378240306 | G55: 0.8331499205 | H55: 0.6576100432 | I55: 0.5626907982 | J55: 1.455593632 | K55: 1.789280174 | L55: 1.060867566 | M55: 1.442484208
A56: Annual% | B56: =(B53-B47)/B47*100 -> 7.611522831 | C56: =(C53-C47)/C47*100 -> 8.207203932 | D56: 11.20420089 | E56: 10.5617628 | F56: 11.09428122 | G56: 10.96302996 | H56: 12.92145388 | I56: 12.30449028 | J56: 12.50992978 | K56: 12.06605705 | L56: 12.76798232 | M56: 14.07560714
B58: 2007-01-01 | C58: 2007-02-01 | D58: 2007-03-01 | E58: 2007-04-01 | F58: 2007-05-01 | G58: 2007-06-01 | H58: 2007-07-01 | I58: 2007-08-01 | J58: 2007-09-01 | K58: 2007-10-01 | L58: 2007-11-01 | M58: 2007-12-01
A59: HP | B59: 149357.4335 | C59: 151406.3092 | D59: 150568.7897 | E59: 151645.3028 | F59: 153206.3846 | G59: 157036.0078 | H59: 158614.9738 | I59: 160015.9526 | J59: 160633.9338 | K59: 161346.939 | L59: 162124.146 | M59: 162367.2633
A60: Index | B60: =+M54/M53*B59 -> 195.6128376 | C60: =+B60*C59/B59 -> 198.296242 | D60: 197.199346 | E60: 198.6092509 | F60: 200.6537936 | G60: 205.669436 | H60: 207.7374014 | I60: 209.5722578 | J60: 210.3816253 | K60: 211.3154453 | L60: 212.3333503 | M60: 212.6517601
A61: Monthly% | B61: =(B59-M53)/M53*100 -> 1.727073503 | C61: =(+C59-B59)/B59*100 -> 1.371793641 | D61: =(+D59-C59)/C59*100 -> -0.5531602686 | E61: 0.7149642935 | F61: 1.029429729 | G61: 2.499649897 | H61: 1.005480182 | I61: 0.8832576086 | J61: 0.386199743 | K61: 0.4438695842 | L61: 0.4816992765 | M61: 0.1499575184
A62: Annual% | B62: =(B59-B53)/B53*100 -> 16.04374215 | C62: =(C59-C53)/C53*100 -> 16.42199117 | D62: 13.82111521 | E62: 13.14912291 | F62: 12.75981243 | G62: 14.62342797 | H62: 15.01956362 | I62: 15.38621505 | J62: 14.16998528 | K62: 12.66093141 | L62: 12.01528448 | M62: 10.58804474
B64: 2008-01-01 | C64: 2008-02-01 | D64: 2008-03-01 | E64: 2008-04-01 | F64: 2008-05-01 | G64: 2008-06-01 | H64: 2008-07-01 | I64: 2008-08-01 | J64: 2008-09-01 | K64: 2008-10-01 | L64: 2008-11-01 | M64: 2008-12-01
A65: HP | B65: 161817.3996 | C65: 161535.431 | D65: 161976.0692 | E65: 162314.668 | F65: 162268.1134 | G65: 162163.2968 | H65: 161629.0411 | I65: 160462.6304 | J65: 158690.8672 | K65: 156822.1232 | L65: 156194.4449 | M65: 155525.485
A66: Index | B66: =+M60/M59*B65 -> 211.9316058 | C66: =+B66*C65/B65 -> 211.5623126 | D66: 212.1394148 | E66: 212.5828762 | F66: 212.5219038 | G66: 212.384626 | H66: 211.6849134 | I66: 210.1572699 | J66: 207.8367987 | K66: 205.3893122 | L66: 204.5672443 | M66: 203.6911102
A67: Monthly% | B67: =(B65-M59)/M59*100 -> -0.3386542872 | C67: =(+C65-B65)/B65*100 -> -0.1742511203 | D67: =(+D65-C65)/C65*100 -> 0.2727811546 | E67: 0.2090424634 | F67: -0.02868169589 | G67: -0.06459468017 | H67: -0.3294553893 | I67: -0.7216591167 | J67: -1.104159374 | K67: -1.177600204 | L67: -0.4002486145 | M67: -0.4282866078
A68: Annual% | B68: =(B65-B59)/B59*100 -> 8.342381028 | C68: =(C65-C59)/C59*100 -> 6.69002622 | D68: 7.576124887 | E68: 7.035737365 | F68: 5.914720084 | G68: 3.265040335 | H68: 1.900241363 | I68: 0.279145796 | J68: -1.209623971 | K68: -2.80440134 | L68: -3.657506472 | M68: -4.213767127
B70: 2009-01-01 | C70: 2009-02-01 | D70: 2009-03-01 | E70: 2009-04-01 | F70: 2009-05-01 | G70: 2009-06-01 | H70: 2009-07-01 | I70: 2009-08-01 | J70: 2009-09-01 | K70: 2009-10-01 | L70: 2009-11-01 | M70: 2009-12-01
A71: HP | B71: 152693.0209 | C71: 149733.1142 | D71: 145636.1568 | E71: 147687.4984 | F71: 148271.104 | G71: 149624.4986 | H71: 148113.3062 | I71: 147790.0273 | J71: 148400.1317 | K71: 149621.0594 | L71: 151321.3845 | M71: 152598.5102
A72: Index | B72: =+M66/M65*B71 -> 199.9814432 | C72: =+B72*C71/B71 -> 196.1048652 | D72: 190.7390963 | E72: 193.4257303 | F72: 194.1900763 | G72: 195.9626117 | H72: 193.9834091 | I72: 193.560012 | J72: 194.3590633 | K72: 195.9581075 | L72: 198.1850165 | M72: 199.8576629
A73: Monthly% | B73: =(B71-M65)/M65*100 -> -1.821221822 | C73: =(+C71-B71)/B71*100 -> -1.938468879 | D73: =(+D71-C71)/C71*100 -> -2.736173241 | E73: 1.408538699 | F73: 0.39516249 | G73: 0.9127837493 | H73: -1.009989909 | I73: -0.2182646038 | J73: 0.4128183616 | K73: 0.8227268594 | L73: 1.136420947 | M73: 0.8439822743
A74: Annual% | B74: =(B71-B65)/B65*100 -> -5.638688274 | C74: =(C71-C65)/C65*100 -> -7.306333183 | D74: -10.08785588 | E74: -9.011612896 | F74: -8.625853265 | G74: -7.732204815 | H74: -8.362194547 | I74: -7.897541653 | J74: -6.484768599 | K74: -4.591867308 | L74: -3.119867916 | M74: -1.88199048
B76: 2010-01-01 | C76: 2010-02-01 | D76: 2010-03-01 | E76: 2010-04-01 | F76: 2010-05-01 | G76: 2010-06-01 | H76: 2010-07-01 | I76: 2010-08-01 | J76: 2010-09-01 | K76: 2010-10-01 | L76: 2010-11-01 | M76: 2010-12-01
A77: HP | B77: 153231.7893 | C77: 153969.9878 | D77: 154111.5684 | E77: 154918.3942 | F77: 154821.9389 | G77: 154823.0513 | H77: 155143.9349 | I77: 156257.6895 | J77: 157220.9514 | K77: 157308.5815 | L77: 156386.8466 | M77: 157071.7516
A78: Index | B78: =+M72/M71*B77 -> 200.687066 | C78: =+B78*C77/B77 -> 201.6538818 | D78: 201.8393092 | E78: 202.8960058 | F78: 202.7696787 | G78: 202.7711356 | H78: 203.1913956 | I78: 204.6500756 | J78: 205.9116558 | K78: 206.0264246 | L78: 204.8192321 | M78: 205.7162494
A79: Monthly% | B79: =(B77-M71)/M71*100 -> 0.4149969135 | C79: =(+C77-B77)/B77*100 -> 0.481752895 | D79: =(+D77-C77)/C77*100 -> 0.09195332712 | E79: 0.5235335762 | F79: -0.06226196276 | G79: 0.0007184933245 | H79: 0.2072582821 | I79: 0.717884724 | J79: 0.6164572379 | K79: 0.05573693628 | L79: -0.5859406207 | M79: 0.4379556011
A80: Annual% | B80: =(B77-B71)/B71*100 -> 0.3528441274 | C80: =(C77-C71)/C71*100 -> 2.829616983 | D80: 5.819579248 | E80: 4.896078417 | F80: 4.418146711 | G80: 3.474399446 | H80: 4.746790725 | I80: 5.729522056 | J80: 5.943943297 | K80: 5.137994683 | L80: 3.347485986 | M80: 2.931379492
B82: 2011-01-01 | C82: 2011-02-01 | D82: 2011-03-01 | E82: 2011-04-01 | F82: 2011-05-01 | G82: 2011-06-01 | H82: 2011-07-01 | I82: 2011-08-01 | J82: 2011-09-01 | K82: 2011-10-01 | L82: 2011-11-01 | M82: 2011-12-01
A83: HP | B83: 156810.4072 | C83: 155711.8202 | D83: 154282.863 | E83: 153387.3938 | F83: 153806.3747 | G83: 152777.4355 | H83: 153340.5465 | I83: 154464.8528 | J83: 156040.1327 | K83: 156363.3616 | L83: 156197.792 | M83: 155398.4719
A84: Index | B84: =+M78/M77*B83 -> 205.3739677 | C84: =+B84*C83/B83 -> 203.9351527 | D84: 202.0636531 | E84: 200.8908606 | F84: 201.4395982 | G84: 200.0920007 | H84: 200.829505 | I84: 202.3020044 | J84: 204.3651423 | K84: 204.7884739 | L84: 204.571628 | M84: 203.5247616
A85: Monthly% | B85: =B83/M77*100-100 -> -0.1663853392 | C85: =(+C83-B83)/B83*100 -> -0.7005829517 | D85: -0.9176934808 | E85: -0.580407473 | F85: 0.273152118 | G85: -0.6689834273 | H85: 0.3685825822 | I85: 0.7332087302 | J85: 1.019830655 | K85: 0.2071447057 | L85: -0.1058876993 | M85: -0.5117358839
A86: Annual% | B86: =B83/B77*100-100 -> 2.3354279 | C86: =(C83-C77)/C77*100 -> 1.131280467 | D86: =(D83-D77)/D77*100 -> 0.111149766 | E86: =(E83-E77)/E77*100 -> -0.9882625186 | F86: =(F83-F77)/F77*100 -> -0.6559563092 | G86: =(G83-G77)/G77*100 -> -1.321260498 | H86: =(H83-H77)/H77*100 -> -1.16239697 | I86: -1.147359044 | J86: -0.7510568024 | K86: -0.6008699009 | L86: -0.1208890703 | M86: -1.065296397
B88: 2012-01-01 | C88: 2012-02-01 | D88: 2012-03-01 | E88: 2012-04-01 | F88: 2012-05-01 | G88: 2012-06-01 | H88: 2012-07-01 | I88: 2012-08-01 | J88: 2012-09-01 | K88: 2012-10-01 | L88: 2012-11-01 | M88: 2012-12-01
A89: HP | B89: 153743.239 | C89: 153123.7286 | D89: 153304.6588 | E89: 154288.0358 | F89: 154331.2236 | G89: 154821.9585 | H89: 154266.1622 | I89: 153205.4784 | J89: 153141.8185 | K89: 152202.1976 | L89: 151662.7671 | M89: 150136.1242
A90: Index | B90: =+M84/M83*B89 -> 201.3569097 | C90: =+B90*C89/B89 -> 200.5455394 | D90: 200.7825029 | E90: 202.070428 | F90: 202.1269907 | G90: 202.7697044 | H90: 202.0417801 | I90: 200.6526068 | J90: 200.5692317 | K90: 199.3386139 | L90: 198.6321239 | M90: 196.6326858
A91: Monthly% | B91: =B89/M83*100-100 -> -1.065153901 | C91: =(+C89-B89)/B89*100 -> -0.4029513159 | D91: 0.11815947 | E91: 0.6414528301 | F91: 0.02799160972 | G91: 0.3179751696 | H91: -0.3589906243 | I91: -0.6875673725 | J91: -0.04155195612 | K91: -0.6135626158 | L91: -0.3544170289 | M91: -1.006603602
A92: Annual% | B92: =B89/B83*100-100 -> -1.955972365 | C92: =(C89-C83)/C83*100 -> -1.662103526 | D92: =(D89-D83)/D83*100 -> -0.6340329877 | E92: =(E89-E83)/E83*100 -> 0.5871682614 | F92: =(F89-F83)/F83*100 -> 0.3412400067 | G92: =(G89-G83)/G83*100 -> 1.338236241 | H92: =(H89-H83)/H83*100 -> 0.6036340018 | I92: -0.815314534 | J92: -1.85741587 | K92: -2.661214217 | L92: -2.903386079 | M92: -3.386357415
B94: 2013-01-01 | C94: 2013-02-01 | D94: 2013-03-01 | E94: 2013-04-01 | F94: 2013-05-01 | G94: 2013-06-01 | H94: 2013-07-01 | I94: 2013-08-01 | J94: 2013-09-01 | K94: 2013-10-01 | L94: 2013-11-01 | M94: 2013-12-01
A95: HP | B95: 150191.6811 | C95: 151296.8666 | D95: 151597.7935 | E95: 151900.2937 | F95: 151636.8926 | G95: 151593.6504 | H95: 152293.4274 | I95: 152340.6411 | J95: 152854.5075 | K95: 152916.0797 | L95: 154218.0125 | M95: 155090.7884
A96: Index | B96: =+M90/M89*B95 -> 196.7054484 | C96: =+B96*C95/B95 -> 198.1529054 | D96: 198.5470282 | E96: 198.9432116 | F96: 198.5982361 | G96: 198.541602 | H96: 199.4580971 | I96: 199.5199327 | J96: 200.1929415 | K96: 200.2735825 | L96: 201.9787187 | M96: 203.1217898
A97: Monthly% | B97: =B95/M89*100-100 -> 0.03700431949 | C97: =(+C95-B95)/B95*100 -> 0.735850017 | D97: 0.1988983203 | E97: 0.199541306 | F97: -0.1734039773 | G97: -0.02851694288 | H97: 0.4616136627 | I97: 0.03100180035 | J97: 0.3373140655 | K97: 0.04028161083 | L97: 0.8514034545 | M97: 0.5659364316
A98: Annual% | B98: =B95/B89*100-100 -> -2.310057965 | C98: =(C95-C89)/C89*100 -> -1.193062656 | D98: -1.113381221 | E98: -1.547587358 | F98: -1.745810687 | G98: -2.08517461 | H98: -1.278786497 | I98: =(I95-I89)/I89*100 -> -0.564495055 | J98: =(J95-J89)/J89*100 -> -0.1876111107 | K98: =(K95-K89)/K89*100 -> 0.4690353688 | L98: =(L95-L89)/L89*100 -> 1.684820526 | M98: =(M95-M89)/M89*100 -> 3.300114646
B100: 2014-01-01 | C100: 2014-02-01 | D100: 2014-03-01 | E100: 2014-04-01 | F100: 2014-05-01 | G100: 2014-06-01 | H100: 2014-07-01 | I100: 2014-08-01 | J100: 2014-09-01 | K100: 2014-10-01 | L100: 2014-11-01 | M100: 2014-12-01
A101: HP | B101: 157251.2375 | C101: 156198.0192 | D101: 157132.8302 | E101: 157062.1114 | F101: 159545.5944 | G101: 160539.6736 | H101: 160995.065 | I101: 161353.9863 | J101: 161318.289 | K101: 161732.6743 | L101: 160645.6849 | M101: 161288.1094
A102: Index | B102: =+M96/M95*B101 -> 205.9513214 | C102: =+B102*C101/B101 -> 204.5719256 | D102: 205.7962439 | E102: 205.7036237 | F102: 208.9562316 | G102: 210.258173 | H102: 210.8545974 | I102: 211.3246752 | J102: 211.2779226 | K102: 211.8206414 | L102: 210.3970157 | M102: 211.2383965
A103: Monthly% | B103: =B101/M95*100-100 -> 1.393022197 | C103: =(+C101-B101)/B101*100 -> -0.6697679134 | D103: 0.5984781609 | E103: -0.0450057681 | F103: 1.581210777 | G103: 0.6230689948 | H103: 0.2836628849 | I103: 0.2229392913 | J103: -0.02212360625 | K103: 0.2568743601 | L103: -0.6720901529 | M103: 0.3999014975
A104: Annual% | B104: =B101/B95*100-100 -> 4.700364515 | C104: =(C101-C95)/C95*100 -> 3.239427722 | D104: 3.651132788 | E104: 3.398161757 | F104: 5.215552586 | G104: 5.901317891 | H104: 5.713731596 | I104: =(I101-I95)/I95*100 -> 5.916572995 | J104: =(J101-J95)/J95*100 -> 5.537148782 | K104: =(K101-K95)/K95*100 -> 5.765642553 | L104: =(L101-L95)/L95*100 -> 4.167912876 | M104: =(M101-M95)/M95*100 -> 3.995931058
B106: 2015-01-01 | C106: 2015-02-01 | D106: 2015-03-01 | E106: 2015-04-01 | F106: 2015-05-01 | G106: 2015-06-01 | H106: 2015-07-01 | I106: 2015-08-01 | J106: 2015-09-01 | K106: 2015-10-01 | L106: 2015-11-01 | M106: 2015-12-01
A107: HP | B107: 162677.8143 | C107: 167486.237 | D107: 182947.0947 | E107: 179887.0255 | F107: 175874.782 | G107: 159901.045 | H107: 161176.142 | I107: 161868.4699 | J107: 162682.1654 | K107: 163390.3319 | L107: 164297.932 | M107: 164660.7582
A108: Index | B108: =+M102/M101*B107 -> 213.0584875 | C108: =+B108*C107/B107 -> 219.3560596 | D108: 239.6050835 | E108: 235.5973231 | F108: 230.3425036 | G108: 209.4217637 | H108: 211.0917532 | I108: 211.9984923 | J108: 213.0641861 | K108: 213.991669 | L108: 215.1803492 | M108: 215.6555412
A109: Monthly% | B109: =B107/M101*100-100 -> 0.8616288714 | C109: =(+C107-B107)/B107*100 -> 2.955794957 | D109: 9.231121298 | E109: -1.6726525 | F109: -2.230424078 | G109: -9.082448788 | H109: 0.7974288223 | I109: 0.4295473653 | J109: 0.5026893595 | K109: 0.435306771 | L109: 0.5554796714 | M109: 0.2208343058
A110: Annual% | B110: =B107/B101*100-100 -> 3.45089608 | C110: =(C107-C101)/C101*100 -> 7.226863577 | D110: 16.42830742 | E110: 14.53241262 | F110: 10.23480943 | G110: -0.3978011042 | H110: 0.1124736068 | I110: =(I107-I101)/I101*100 -> 0.3188539575 | J110: =(J107-J101)/J101*100 -> 0.8454568137 | K110: =(K107-K101)/K101*100 -> 1.024936756 | L110: =(L107-L101)/L101*100 -> 2.273479729 | M110: =(M107-M101)/M101*100 -> 2.091070936
B112: 2016-01-01 | C112: 2016-02-01 | D112: 2016-03-01 | E112: 2016-04-01 | F112: 2016-05-01 | G112: 2016-06-01 | H112: 2016-07-01 | I112: 2016-08-01 | J112: 2016-09-01 | K112: 2016-10-01 | L112: 2016-11-01 | M112: 2016-12-01
A113: HP | B113: 164977.3929 | C113: 164124.3034 | D113: 165935.2582 | E113: 166197.5157 | F113: 166788.4956 | G113: 165488.2987 | H113: 165840.6907 | I113: 166472.7057 | J113: 166669.1066 | K113: 167759.8533 | L113: 167804.2524 | M113: 167683.1427
A114: Index | B114: =+M108/M107*B113 -> 216.0702365 | C114: =+B114*C113/B113 -> 214.9529486 | D114: 217.3247489 | E114: 217.6682265 | F114: 218.4422305 | G114: 216.7393677 | H114: 217.2008941 | I114: 218.0286417 | J114: 218.2858672 | K114: 219.7144138 | L114: 219.7725632 | M114: 219.6139462
A115: Monthly% | B115: =B113/M107*100-100 -> 0.1922952033 | C115: =(+C113-B113)/B113*100 -> -0.5170947905 | D115: 1.103404415 | E115: 0.1580480913 | F115: 0.3555888623 | G115: -0.7795483278 | H115: 0.2129407423 | I115: 0.3810976873 | J115: 0.1179778398 | K115: 0.6544384246 | L115: 0.02646589066 | M115: -0.07217325173
A116: Annual% | B116: =B113/B107*100-100 -> 1.413578497 | C116: =(C113-C107)/C107*100 -> -2.007289432 | D116: -9.298773751 | E116: -7.610059545 | F116: -5.166338385 | G116: 3.494194616 | H116: 2.89406896 | I116: =(I113-I107)/I107*100 -> 2.844430336 | J116: =(J113-J107)/J107*100 -> 2.45075493 | K116: =(K113-K107)/K107*100 -> 2.674283926 | L116: =(L113-L107)/L107*100 -> 2.134123298 | M116: =(M113-M107)/M107*100 -> 1.835522012
B118: 2017-01-01 | C118: 2017-02-01 | D118: 2017-03-01 | E118: 2017-04-01 | F118: 2017-05-01 | G118: 2017-06-01 | H118: 2017-07-01 | I118: 2017-08-01 | J118: 2017-09-01 | K118: 2017-10-01 | L118: 2017-11-01 | M118: 2017-12-01
A119: HP | B119: 167587.4517 | C119: 168675.2716 | D119: 169148.875 | E119: 170901.724 | F119: 171447.0535 | G119: 172541.4446 | H119: 172850.8052 | I119: 173400.984 | J119: 173738.8041 | K119: 173220.8367 | L119: 173640.6451 | M119: 175200.9898
A120: Index | B120: =+M114/M113*B119 -> 219.4886201 | C120: =+B120*C119/B119 -> 220.9133335 | D120: 221.5336101 | E120: 223.8293094 | F120: 224.5435252 | G120: 225.9768449 | H120: 226.3820133 | I120: 227.1025802 | J120: 227.5450219 | K120: 226.8666421 | L120: 227.4164634 | M120: 229.4600407
A121: Monthly% | B121: =B119/M113*100-100 -> -0.05706653008 | C121: =(+C119-B119)/B119*100 -> 0.6491058036 | D121: 0.2807782474 | E121: 1.036275867 | F121: 0.3190895126 | G121: 0.6383259827 | H121: 0.1792964162 | I121: 0.318296894 | J121: 0.1948201801 | K121: -0.2981299283 | L121: 0.2423544454 | M121: 0.898605688
A122: Annual% | B122: =B119/B113*100-100 -> 1.582070564 | C122: =(C119-C113)/C113*100 -> 2.772878882 | D122: 1.936669063 | E122: 2.830492533 | F122: 2.793093061 | G122: 4.262020923 | H122: 4.227017205 | I122: =(I119-I113)/I113*100 -> 4.161810314 | J122: =(J119-J113)/J113*100 -> 4.241756368 | K122: =(K119-K113)/K113*100 -> 3.255238538 | L122: =(L119-L113)/L113*100 -> 3.478095799 | M122: =(M119-M113)/M113*100 -> 4.483364895
B124: 2018-01-01 | C124: 2018-02-01 | D124: 2018-03-01 | E124: 2018-04-01 | F124: 2018-05-01 | G124: 2018-06-01 | H124: 2018-07-01 | I124: 2018-08-01 | J124: 2018-09-01 | K124: 2018-10-01 | L124: 2018-11-01 | M124: 2018-12-01
A125: HP | B125: 176958.6761 | C125: 180662.2579 | D125: 181815.5213 | E125: 182091.9167 | F125: 180580.1923 | G125: 179605.9212 | H125: 179397.3812 | I125: 179375.5367 | J125: 180931.6947 | K125: 182332.1968 | L125: 182977.4667 | M125: 182090.3769
A126: Index | B126: =+M120/M119*B125 -> 231.7620755 | C126: =+B126*C125/B125 -> 236.6126419 | D126: 238.1230664 | E126: 238.4850603 | F126: 236.5051609 | G126: 235.2291619 | H126: 234.9560378 | I126: 234.9274282 | J126: 236.9655221 | K126: 238.7997542 | L126: 239.6448616 | M126: 238.4830437
A127: Monthly% | B127: =B125/M119*100-100 -> 1.003239952 | C127: =(+C125-B125)/B125*100 -> 2.092907731 | D127: 0.6383532529 | E127: 0.1520196514 | F127: -0.8301984895 | G127: -0.5395226728 | H127: -0.1161098011 | I127: -0.01217657955 | J127: 0.8675419196 | K127: 0.7740501746 | L127: 0.3538979632 | M127: -0.484808199
A128: Annual% | B128: =B125/B119*100-100 -> 5.591841355 | C128: =(C125-C119)/C119*100 -> 7.106546357 | D128: 7.488460265 | E128: =(E125-E119)/E119*100 -> 6.547735379 | F128: 5.327089992 | G128: =(G125-G119)/G119*100 -> 4.094365082 | H128: 3.787414207 | I128: =(I125-I119)/I119*100 -> 3.445512597 | J128: 4.14005993 | K128: =(K125-K119)/K119*100 -> 5.259967712 | L128: 5.377094521 | M128: =(M125-M119)/M119*100 -> 3.93227638
B130: 2019-01-01 | C130: 2019-02-01 | D130: 2019-03-01 | E130: 2019-04-01 | F130: 2019-05-01 | G130: 2019-06-01 | H130: 2019-07-01 | I130: 2019-08-01 | J130: 2019-09-01 | K130: 2019-10-01 | L130: 2019-11-01 | M130: 2019-12-01
A131: HP | B131: 181652.8614 | C131: 180926.0535 | D131: 182477.6176 | E131: 183458.3375 | F131: 184252.6184 | G131: 184490.6362 | H131: 184363.0162 | I131: 183682.6345 | J131: 183919.9552 | K131: 184369.7344 | L131: 185751.2989 | M131: 186279.0215
A132: Index | B132: =+M126/M125*B131 -> 237.9100313 | C132: =+B132*C131/B131 -> 236.9581339 | D132: 238.9902112 | E132: 240.2746562 | F132: 241.3149228 | G132: 241.6266537 | H132: 241.4595103 | I132: 240.5684171 | J132: 240.8792351 | K132: 241.4683091 | L132: 243.2777386 | M132: 243.9688949
A133: Monthly% | B133: =B131/M125*100-100 -> -0.2402738675 | C133: =(+C131-B131)/B131*100 -> -0.4001081102 | D133: 0.8575680673 | E133: 0.537446701 | F133: 0.4329489135 | G133: 0.1291801338 | H133: -0.06917422084 | I133: -0.36904457 | J133: 0.1292014903 | K133: 0.2445515808 | L133: 0.7493445198 | M133: 0.2841017388
A134: Annual% | B134: =B131/B125*100-100 -> 2.652701368 | C134: =(C131-C125)/C125*100 -> 0.146015876 | D134: 0.3641582598 | E134: =(E131-E125)/E125*100 -> 0.7504017079 | F134: 2.033681561 | G134: =(G131-G125)/G125*100 -> 2.719684796 | H134: 2.76795292 | I134: =(I131-I125)/I125*100 -> 2.401162329 | J134: 1.65159595 | K134: =(K131-K125)/K125*100 -> 1.117486454 | L134: 1.515941947 | M134: =(M131-M125)/M125*100 -> 2.300310797
B136: 2020-01-01 | C136: 2020-02-01 | D136: 2020-03-01 | E136: 2020-04-01 | F136: 2020-05-01 | G136: 2020-06-01 | H136: 2020-07-01 | I136: 2020-08-01 | J136: 2020-09-01 | K136: 2020-10-01 | L136: 2020-11-01 | M136: 2020-12-01
A137: HP | B137: 186609.9287 | C137: 186592.8039 | D137: 186032.4283 | E137: 185506.0535 | F137: 184590.7413 | G137: 187105.4699 | H137: 188322.8982 | I137: 189060.7441 | J137: 189452.1317
A138: Index | B138: =+M132/M131*B137 -> 244.4022827 | C138: =+B138*C137/B137 -> 244.3798544 | D138: =+C138*D137/C137 -> 243.6459327 | E138: =+D138*E137/D137 -> 242.9565417 | F138: =+E138*F137/E137 -> 241.7577609 | G138: =+F138*G137/F137 -> 245.051291 | H138: =+G138*H137/G137 -> 246.6457521 | I138: 247.6121059 | J138: 248.1247047
A139: Monthly% | B139: =B137/M131*100-100 -> 0.1776405872 | C139: =(+C137-B137)/B137*100 -> -0.009176778754 | D139: =(+D137-C137)/C137*100 -> -0.3003200474 | E139: =(+E137-D137)/D137*100 -> -0.2829479014 | F139: =(+F137-E137)/E137*100 -> -0.4934136506 | G139: =(+G137-F137)/F137*100 -> 1.362326504 | H139: =(+H137-G137)/G137*100 -> 0.6506642227 | I139: 0.3917982772 | J139: 0.2070168586
A140: Annual% | B140: =B137/B131*100-100 -> 2.728868295 | C140: =(C137-C131)/C131*100 -> 3.132080914 | D140: 1.948080417 | E140: 1.116174916 | F140: 0.1835104862 | G140: 1.417325965 | H140: 2.147872215 | I140: =(I137-I131)/I131*100 -> 2.927935777 | J140: 3.00792618

Sheet SERIES CHARTS
B2: WALKER FRASER STEELE HPI (SCOTLAND) NATIONAL AND REGIONAL FORMATTED DATA FROM 2000
B3: A TRUE MEASURE OF HOUSE PRICE INFLATION | M3: =SERIES!$K$3 -> SEPTEMBER 2020
O5: © Acadata Limited
O6: Walker Fraser Steele HPI (Scotland) clb/cms
C7: SCOTLAND | O7: www.acadata.co.uk

Sheet DATA
B2: WALKER FRASER STEELE HPI (SCOTLAND) NATIONAL AND REGIONAL FORMATTED DATA FROM 2000
B3: A TRUE MEASURE OF HOUSE PRICE INFLATION
H4: =SERIES!$K$3 -> SEPTEMBER 2020
H5: © Acadata Limited
D6: SCOTLAND | H6: Walker Fraser Steele HPI (Scotland) clb/cms
D9: Month | E9: Average House Price | F9: Index | G9: Monthly% | H9: Annual%
D10: 2000-01-01 | E10: 76353.59484 | F10: 100
D11: 2000-02-01 | E11: 76365.32758 | F11: 100.0153663 | G11: =(E11-E10)/E10*100 -> 0.01536632876
D12: 2000-03-01 | E12: 76377.06033 | F12: 100.0307327 | G12: =(E12-E11)/E11*100 -> 0.01536396788
D13: 2000-04-01 | E13: 76251.79602 | F13: 99.8666745 | G13: -0.1640077531
D14: 2000-05-01 | E14: 76126.53172 | F14: 99.70261634 | G14: -0.1642771804
D15: 2000-06-01 | E15: 76001.26742 | F15: 99.53855819 | G15: -0.1645474944
D16: 2000-07-01 | E16: 76162.42012 | F16: 99.74961923 | G16: 0.2120394838
D17: 2000-08-01 | E17: 76323.57281 | F17: 99.96068028 | G17: 0.2115908277
D18: 2000-09-01 | E18: 76484.72551 | F18: 100.1717413 | G18: 0.2111440663
D19: 2000-10-01 | E19: 76455.73873 | F19: 100.1337775 | G19: -0.03789878318
D20: 2000-11-01 | E20: 76426.75195 | F20: 100.0958136 | G20: -0.0379131518
D21: 2000-12-01 | E21: 76397.76517 | F21: 100.0578497 | G21: -0.03792753132
D22: 2001-01-01 | E22: 74839 | F22: =+F21*E22/E21 -> 98.01634116 | G22: -2.040328228 | H22: =(E22-E10)/E10*100 -> -1.983658844
D23: 2001-02-01 | E23: 75881 | F23: 99.38104442 | G23: 1.392322185 | H23: =(E23-E11)/E11*100 -> -0.6342244529
D24: 2001-03-01 | E24: 76923 | F24: =+F23*E24/E23 -> 100.7457477 | G24: 1.373202778 | H24: 0.7147953485
D25: 2001-04-01 | E25: 76091.02786 | F25: 99.65611707 | G25: -1.081564864 | H25: -0.2108385295
D26: 2001-05-01 | E26: 75259.05572 | F26: 98.56648646 | G26: -1.093390593 | H26: -1.139518622
D27: 2001-06-01 | E27: 74427.08358 | F27: 97.47685585 | G27: -1.105477783 | H27: -2.071259992
D28: 2001-07-01 | E28: 73998.74498 | F28: 96.91586249 | G28: -0.5755144217 | H28: -2.840869732
D29: 2001-08-01 | E29: 73513.82021 | F29: 96.28075845 | G29: -0.6553148496 | H29: -3.681369328
D30: 2001-09-01 | E30: 72996.15624 | F30: 95.60277601 | G30: -0.7041723156 | H30: -4.561131967
D31: 2001-10-01 | E31: 73611.67995 | F31: 96.40892496 | G31: 0.8432275545 | H31: -3.719876139
D32: 2001-11-01 | E32: 74698.38209 | F32: 97.83217443 | G32: 1.476263196 | H32: -2.261472349
D33: 2001-12-01 | E33: 75445.81804 | F33: 98.81108834 | G33: 1.000605284 | H33: -1.246040537
D34: 2002-01-01 | E34: 77116.65019 | F34: 100.9993706 | G34: 2.214612013 | H34: 3.043400091
D35: 2002-02-01 | E35: 78149.2938 | F35: 102.3518198 | G35: 1.339066989 | H35: 2.989277685
D36: 2002-03-01 | E36: 80084.87904 | F36: 104.8868481 | G36: 2.476778927 | H36: 4.110446864
D37: 2002-04-01 | E37: 80518.38514 | F37: =+F36*E37/E36 -> 105.4546093 | G37: 0.5413082984 | H37: 5.81850108
D38: 2002-05-01 | E38: 81107.81008 | F38: =+F37*E38/E37 -> 106.2265768 | G38: 0.7320377065 | H38: 7.771495805
D39: 2002-06-01 | E39: 80809.37894 | F39: 105.8357227 | G39: -0.3679437759 | H39: 8.575232366
D40: 2002-07-01 | E40: 81206.39994 | F40: 106.3556996 | G40: 0.4913056003 | H40: 9.740239467
D41: 2002-08-01 | E41: 81888.48991 | F41: 107.2490301 | G41: 0.8399460775 | H41: 11.3919664
D42: 2002-09-01 | E42: 83050.00653 | F42: 108.7702638 | G42: 1.418412546 | H42: 13.77312286
D43: 2002-10-01 | E43: 83727.68947 | F43: 109.6578225 | G43: 0.8159938501 | H43: 13.74239731
D44: 2002-11-01 | E44: 84588.5895 | F44: 110.7853398 | G44: 1.028214244 | H44: 13.2401896
D45: 2002-12-01 | E45: 84479.58182 | F45: 110.6425729 | G45: -0.1288680733 | H45: 11.97384296
D46: 2003-01-01 | E46: 84460.21514 | F46: 110.6172084 | G46: -0.02292468651 | H46: 9.522671077
D47: 2003-02-01 | E47: 84163.5531 | F47: 110.2286713 | G47: -0.3512447055 | H47: 7.695858799
D48: 2003-03-01 | E48: 84348.38153 | F48: 110.4707404 | G48: 0.2196062488 | H48: 5.323729692
D49: 2003-04-01 | E49: 87626.62377 | F49: =+F48*E49/E48 -> 114.7642412 | G49: 3.886550268 | H49: 8.828093888
D50: 2003-05-01 | E50: 88633.41576 | F50: =+F49*E50/E49 -> 116.0828327 | G50: 1.148956729 | H50: 9.278521613
D51: 2003-06-01 | E51: 91871.55738 | F51: 120.3238139 | G51: 3.653409487 | H51: 13.68922592
D52: 2003-07-01 | E52: 94120.29442 | F52: 123.2689759 | G52: 2.447696648 | H52: 15.90255753
D53: 2003-08-01 | E53: 94697.16475 | F53: 124.0245007 | G53: 0.6129074924 | H53: 15.64160586
D54: 2003-09-01 | E54: 95151.68847 | F54: 124.6197886 | G54: 0.479976054 | H54: 14.57156049
D55: 2003-10-01 | E55: 96096.22436 | F55: 125.8568435 | G55: 0.9926633024 | H55: 14.77233513
D56: 2003-11-01 | E56: 96951.87864 | F56: 126.9774905 | G56: 0.8904140435 | H56: 14.61578826
D57: 2003-12-01 | E57: 98438.81811 | F57: 128.9249292 | G57: 1.533688155 | H57: 16.523799
D58: 2004-01-01 | E58: 101927.8847 | F58: 133.4945459 | G58: 3.544401119 | H58: 20.6815357
D59: 2004-02-01 | E59: 104357.9348 | F59: 136.6771728 | G59: 2.384087644 | H59: 23.99421239
D60: 2004-03-01 | E60: 105868.3142 | F60: 138.6553107 | G60: 1.447306708 | H60: 25.51315421
D61: 2004-04-01 | E61: 105384.9666 | F61: 138.0222724 | G61: -0.4565554396 | H61: 20.26592158
D62: 2004-05-01 | E62: 106100.3427 | F62: 138.9591976 | G62: 0.6788217756 | H62: 19.706932
D63: 2004-06-01 | E63: 107047.4187 | F63: 140.1995792 | G63: 0.8926228937 | H63: 16.51856323
D64: 2004-07-01 | E64: 108871.3563 | F64: 142.5883831 | G64: 1.703859548 | H64: 15.67256246
D65: 2004-08-01 | E65: 111327.9948 | F65: 145.8058328 | G65: 2.256459857 | H65: 17.56212036
D66: 2004-09-01 | E66: 112195.4102 | F66: 146.9418833 | G66: 0.7791530063 | H66: 17.91215902
D67: 2004-10-01 | E67: 112908.2301 | F67: 147.8754607 | G67: 0.6353378261 | H67: 17.49497012
D68: 2004-11-01 | E68: 114383.6801 | F68: 149.8078517 | G68: 1.306769264 | H68: 17.97984913
D69: 2004-12-01 | E69: 117893.2086 | F69: 154.4042672 | G69: 3.068207329 | H69: 19.76292571
D70: 2005-01-01 | E70: 119604.1749 | F70: 156.645113 | G70: 1.451284901 | H70: 17.34195732
D71: 2005-02-01 | E71: 120185.6939 | F71: 157.4067261 | G71: 0.4862028721 | H71: 15.16679984
D72: 2005-03-01 | E72: 118957.2537 | F72: 155.7978429 | G72: -1.022118466 | H72: 12.36341546
D73: 2005-04-01 | E73: 121219.5915 | F73: 158.7608177 | G73: 1.901807371 | H73: 15.02550638
D74: 2005-05-01 | E74: 122301.2275 | F74: 160.1774321 | G74: 0.8922946783 | H74: 15.26939908
D75: 2005-06-01 | E75: 123466.0478 | F75: 161.7029926 | G75: 0.9524191805 | H75: 15.33771608
D76: 2005-07-01 | E76: 122122.5902 | F76: 159.9434715 | G76: =(E76-E75)/E75*100 -> -1.088119088 | H76: 12.17146024
D77: 2005-08-01 | E77: 123484.4389 | F77: 161.7270793 | G77: 1.115148854 | H77: 10.91948534
D78: 2005-09-01 | E78: 125053.1098 | F78: 163.7815614 | G78: 1.270338985 | H78: 11.46009413
D79: 2005-10-01 | E79: 127794.8349 | F79: 167.3723878 | G79: 2.192448518 | H79: 13.18469413
D80: 2005-11-01 | E80: 128346.67 | F80: 168.0951241 | G80: 0.431813331 | H80: 12.20715215
D81: 2005-12-01 | E81: 128705.6174 | F81: 168.5652362 | G81: 0.2796702291 | H81: 9.171358528
D82: 2006-01-01 | E82: 128707.874 | F82: 168.5681916 | G82: 0.001753284865 | H82: 7.611522831
D83: 2006-02-01 | E83: 130049.5789 | F83: 170.3254171 | G83: 1.042441929 | H83: 8.207203932
D84: 2006-03-01 | E84: 132285.4634 | F84: 173.2537462 | G84: 1.719255479 | H84: 11.20420089
D85: 2006-04-01 | E85: 134022.5173 | F85: 175.5287587 | G85: 1.313110172 | H85: 10.5617628
D86: 2006-05-01 | E86: 135869.6696 | F86: 177.9479668 | G86: 1.378240306 | H86: 11.09428122
D87: 2006-06-01 | E87: 137001.6676 | F87: 179.4305402 | G87: 0.8331499205 | H87: =(E87-E75)/E75*100 -> 10.96302996
D88: 2006-07-01 | E88: 137902.6044 | F88: 180.6104934 | G88: 0.6576100432 | H88: 12.92145388
D89: 2006-08-01 | E89: 138678.5696 | F89: 181.626772 | G89: 0.5626907982 | H89: 12.30449028
D90: 2006-09-01 | E90: 140697.1661 | F90: 184.2705198 | G90: 1.455593632 | H90: 12.50992978
D91: 2006-10-01 | E91: 143214.6326 | F91: 187.5676356 | G91: 1.789280174 | H91: 12.06605705
D92: 2006-11-01 | E92: 144733.9502 | F92: 189.5574799 | G92: 1.060867566 | H92: 12.76798232
D93: 2006-12-01 | E93: 146821.7145 | F93: 192.2918166 | G93: 1.442484208 | H93: 14.07560714
D94: 2007-01-01 | E94: 149357.4335 | F94: 195.6128376 | G94: 1.727073503 | H94: 16.04374215
D95: 2007-02-01 | E95: 151406.3092 | F95: 198.296242 | G95: 1.371793641 | H95: 16.42199117
D96: 2007-03-01 | E96: 150568.7897 | F96: 197.199346 | G96: -0.5531602686 | H96: 13.82111521
D97: 2007-04-01 | E97: 151645.3028 | F97: 198.6092509 | G97: 0.7149642935 | H97: 13.14912291
D98: 2007-05-01 | E98: 153206.3846 | F98: 200.6537936 | G98: 1.029429729 | H98: 12.75981243
D99: 2007-06-01 | E99: 157036.0078 | F99: 205.669436 | G99: 2.499649897 | H99: 14.62342797
D100: 2007-07-01 | E100: 158614.9738 | F100: 207.7374014 | G100: 1.005480182 | H100: 15.01956362
D101: 2007-08-01 | E101: 160015.9526 | F101: 209.5722578 | G101: 0.8832576086 | H101: 15.38621505
D102: 2007-09-01 | E102: 160633.9338 | F102: 210.3816253 | G102: 0.386199743 | H102: 14.16998528
D103: 2007-10-01 | E103: 161346.939 | F103: 211.3154453 | G103: 0.4438695842 | H103: 12.66093141
D104: 2007-11-01 | E104: 162124.146 | F104: 212.3333503 | G104: 0.4816992765 | H104: 12.01528448
D105: 2007-12-01 | E105: 162367.2633 | F105: 212.6517601 | G105: 0.1499575184 | H105: 10.58804474
D106: 2008-01-01 | E106: 161817.3996 | F106: 211.9316058 | G106: -0.3386542872 | H106: 8.342381028
D107: 2008-02-01 | E107: 161535.431 | F107: 211.5623126 | G107: -0.1742511203 | H107: 6.69002622
D108: 2008-03-01 | E108: 161976.0692 | F108: 212.1394148 | G108: 0.2727811546 | H108: 7.576124887
D109: 2008-04-01 | E109: 162314.668 | F109: 212.5828762 | G109: 0.2090424634 | H109: 7.035737365
D110: 2008-05-01 | E110: 162268.1134 | F110: 212.5219038 | G110: -0.02868169589 | H110: 5.914720084
D111: 2008-06-01 | E111: 162163.2968 | F111: 212.384626 | G111: -0.06459468017 | H111: 3.265040335
D112: 2008-07-01 | E112: 161629.0411 | F112: 211.6849134 | G112: -0.3294553893 | H112: 1.900241363
D113: 2008-08-01 | E113: 160462.6304 | F113: 210.1572699 | G113: -0.7216591167 | H113: 0.279145796
D114: 2008-09-01 | E114: 158690.8672 | F114: =+F113*E114/E113 -> 207.8367987 | G114: -1.104159374 | H114: -1.209623971
D115: 2008-10-01 | E115: 156822.1232 | F115: 205.3893122 | G115: -1.177600204 | H115: -2.80440134
D116: 2008-11-01 | E116: 156194.4449 | F116: 204.5672443 | G116: -0.4002486145 | H116: -3.657506472
D117: 2008-12-01 | E117: 155525.485 | F117: 203.6911102 | G117: -0.4282866078 | H117: -4.213767127
D118: 2009-01-01 | E118: 152693.0209 | F118: 199.9814432 | G118: -1.821221822 | H118: -5.638688274
D119: 2009-02-01 | E119: 149733.1142 | F119: 196.1048652 | G119: -1.938468879 | H119: -7.306333183
D120: 2009-03-01 | E120: 145636.1568 | F120: 190.7390963 | G120: -2.736173241 | H120: -10.08785588
D121: 2009-04-01 | E121: 147687.4984 | F121: 193.4257303 | G121: 1.408538699 | H121: -9.011612896
D122: 2009-05-01 | E122: 148271.104 | F122: 194.1900763 | G122: 0.39516249 | H122: -8.625853265
D123: 2009-06-01 | E123: 149624.4986 | F123: 195.9626117 | G123: 0.9127837493 | H123: -7.732204815
D124: 2009-07-01 | E124: 148113.3062 | F124: 193.9834091 | G124: -1.009989909 | H124: -8.362194547
D125: 2009-08-01 | E125: 147790.0273 | F125: 193.560012 | G125: -0.2182646038 | H125: -7.897541653
D126: 2009-09-01 | E126: 148400.1317 | F126: 194.3590633 | G126: 0.4128183616 | H126: -6.484768599
D127: 2009-10-01 | E127: 149621.0594 | F127: 195.9581075 | G127: 0.8227268594 | H127: -4.591867308
D128: 2009-11-01 | E128: 151321.3845 | F128: 198.1850165 | G128: 1.136420947 | H128: -3.119867916
D129: 2009-12-01 | E129: 152598.5102 | F129: 199.8576629 | G129: 0.8439822743 | H129: -1.88199048
D130: 2010-01-01 | E130: 153231.7893 | F130: 200.687066 | G130: 0.4149969135 | H130: 0.3528441274
D131: 2010-02-01 | E131: 153969.9878 | F131: 201.6538818 | G131: 0.481752895 | H131: 2.829616983
D132: 2010-03-01 | E132: 154111.5684 | F132: 201.8393092 | G132: 0.09195332712 | H132: 5.819579248
D133: 2010-04-01 | E133: 154918.3942 | F133: 202.8960058 | G133: 0.5235335762 | H133: 4.896078417
D134: 2010-05-01 | E134: 154821.9389 | F134: 202.7696787 | G134: -0.06226196276 | H134: 4.418146711
D135: 2010-06-01 | E135: 154823.0513 | F135: 202.7711356 | G135: 0.0007184933245 | H135: 3.474399446
D136: 2010-07-01 | E136: 155143.9349 | F136: 203.1913956 | G136: 0.2072582821 | H136: 4.746790725
D137: 2010-08-01 | E137: 156257.6895 | F137: 204.6500756 | G137: 0.717884724 | H137: 5.729522056
D138: 2010-09-01 | E138: 157220.9514 | F138: 205.9116558 | G138: 0.6164572379 | H138: 5.943943297
D139: 2010-10-01 | E139: 157308.5815 | F139: 206.0264246 | G139: 0.05573693628 | H139: 5.137994683
D140: 2010-11-01 | E140: 156386.8466 | F140: 204.8192321 | G140: =(E140-E139)/E139*100 -> -0.5859406207 | H140: 3.347485986
D141: 2010-12-01 | E141: 157071.7516 | F141: 205.7162494 | G141: 0.4379556011 | H141: 2.931379492
D142: 2011-01-01 | E142: 156810.4072 | F142: 205.3739677 | G142: -0.1663853392 | H142: 2.3354279
D143: 2011-02-01 | E143: 155711.8202 | F143: 203.9351527 | G143: -0.7005829517 | H143: 1.131280467
D144: 2011-03-01 | E144: 154282.863 | F144: 202.0636531 | G144: -0.9176934808 | H144: 0.111149766
D145: 2011-04-01 | E145: 153387.3938 | F145: 200.8908606 | G145: -0.580407473 | H145: -0.9882625186
D146: 2011-05-01 | E146: 153806.3747 | F146: 201.4395982 | G146: 0.273152118 | H146: -0.6559563092
D147: 2011-06-01 | E147: 152777.4355 | F147: 200.0920007 | G147: -0.6689834273 | H147: -1.321260498
D148: 2011-07-01 | E148: 153340.5465 | F148: 200.829505 | G148: =(E148-E147)/E147*100 -> 0.3685825822 | H148: =(E148-E136)/E136*100 -> -1.16239697
D149: 2011-08-01 | E149: 154464.8528 | F149: 202.3020044 | G149: 0.7332087302 | H149: -1.147359044
D150: 2011-09-01 | E150: 156040.1327 | F150: 204.3651423 | G150: 1.019830655 | H150: -0.7510568024
D151: 2011-10-01 | E151: 156363.3616 | F151: 204.7884739 | G151: 0.2071447057 | H151: -0.6008699009
D152: 2011-11-01 | E152: 156197.792 | F152: 204.571628 | G152: -0.1058876993 | H152: -0.1208890703
D153: 2011-12-01 | E153: 155398.4719 | F153: 203.5247616 | G153: -0.5117358839 | H153: -1.065296397
D154: 2012-01-01 | E154: 153743.239 | F154: 201.3569097 | G154: =(E154-E153)/E153*100 -> -1.065153901 | H154: =(E154-E142)/E142*100 -> -1.955972365
D155: 2012-02-01 | E155: 153123.7286 | F155: 200.5455394 | G155: -0.4029513159 | H155: -1.662103526
D156: 2012-03-01 | E156: 153304.6588 | F156: 200.7825029 | G156: 0.11815947 | H156: -0.6340329877
D157: 2012-04-01 | E157: 154288.0358 | F157: 202.070428 | G157: 0.6414528301 | H157: 0.5871682614
D158: 2012-05-01 | E158: 154331.2236 | F158: 202.1269907 | G158: 0.02799160972 | H158: 0.3412400067
D159: 2012-06-01 | E159: 154821.9585 | F159: 202.7697044 | G159: 0.3179751696 | H159: 1.338236241
D160: 2012-07-01 | E160: 154266.1622 | F160: 202.0417801 | G160: =(E160-E159)/E159*100 -> -0.3589906243 | H160: =(E160-E148)/E148*100 -> 0.6036340018
D161: 2012-08-01 | E161: 153205.4784 | F161: 200.6526068 | G161: -0.6875673725 | H161: -0.815314534
D162: 2012-09-01 | E162: 153141.8185 | F162: 200.5692317 | G162: -0.04155195612 | H162: -1.85741587
D163: 2012-10-01 | E163: 152202.1976 | F163: 199.3386139 | G163: -0.6135626158 | H163: -2.661214217
D164: 2012-11-01 | E164: 151662.7671 | F164: 198.6321239 | G164: -0.3544170289 | H164: -2.903386079
D165: 2012-12-01 | E165: 150136.1242 | F165: 196.6326858 | G165: -1.006603602 | H165: -3.386357415
D166: 2013-01-01 | E166: 150191.6811 | F166: 196.7054484 | G166: =(E166-E165)/E165*100 -> 0.03700431949 | H166: =(E166-E154)/E154*100 -> -2.310057965
D167: 2013-02-01 | E167: 151296.8666 | F167: 198.1529054 | G167: 0.735850017 | H167: -1.193062656
D168: 2013-03-01 | E168: 151597.7935 | F168: 198.5470282 | G168: 0.1988983203 | H168: -1.113381221
D169: 2013-04-01 | E169: 151900.2937 | F169: 198.9432116 | G169: 0.199541306 | H169: -1.547587358
D170: 2013-05-01 | E170: 151636.8926 | F170: 198.5982361 | G170: -0.1734039773 | H170: -1.745810687
D171: 2013-06-01 | E171: 151593.6504 | F171: 198.541602 | G171: -0.02851694288 | H171: -2.08517461
D172: 2013-07-01 | E172: 152293.4274 | F172: 199.4580971 | G172: =(E172-E171)/E171*100 -> 0.4616136627 | H172: =(E172-E160)/E160*100 -> -1.278786497
D173: 2013-08-01 | E173: 152340.6411 | F173: 199.5199327 | G173: 0.03100180035 | H173: -0.564495055
D174: 2013-09-01 | E174: 152854.5075 | F174: 200.1929415 | G174: 0.3373140655 | H174: -0.1876111107
D175: 2013-10-01 | E175: 152916.0797 | F175: 200.2735825 | G175: 0.04028161083 | H175: 0.4690353688
D176: 2013-11-01 | E176: 154218.0125 | F176: 201.9787187 | G176: 0.8514034545 | H176: 1.684820526
D177: 2013-12-01 | E177: 155090.7884 | F177: 203.1217898 | G177: 0.5659364316 | H177: 3.300114646
D178: 2014-01-01 | E178: 157251.2375 | F178: =+F177*E178/E177 -> 205.9513214 | G178: =(E178-E177)/E177*100 -> 1.393022197 | H178: =(E178-E166)/E166*100 -> 4.700364515
D179: 2014-02-01 | E179: 156198.0192 | F179: 204.5719256 | G179: -0.6697679134 | H179: 3.239427722
D180: 2014-03-01 | E180: 157132.8302 | F180: 205.7962439 | G180: 0.5984781609 | H180: 3.651132788
D181: 2014-04-01 | E181: 157062.1114 | F181: 205.7036237 | G181: -0.0450057681 | H181: 3.398161757
D182: 2014-05-01 | E182: 159545.5944 | F182: 208.9562316 | G182: 1.581210777 | H182: 5.215552586
D183: 2014-06-01 | E183: 160539.6736 | F183: 210.258173 | G183: 0.6230689948 | H183: 5.901317891
D184: 2014-07-01 | E184: 160995.065 | F184: =+F183*E184/E183 -> 210.8545974 | G184: =(E184-E183)/E183*100 -> 0.2836628849 | H184: =(E184-E172)/E172*100 -> 5.713731596
D185: 2014-08-01 | E185: 161353.9863 | F185: 211.3246752 | G185: 0.2229392913 | H185: 5.916572995
D186: 2014-09-01 | E186: 161318.289 | F186: 211.2779226 | G186: -0.02212360625 | H186: 5.537148782
D187: 2014-10-01 | E187: 161732.6743 | F187: 211.8206414 | G187: 0.2568743601 | H187: 5.765642553
D188: 2014-11-01 | E188: 160645.6849 | F188: 210.3970157 | G188: -0.6720901529 | H188: 4.167912876
D189: 2014-12-01 | E189: 161288.1094 | F189: 211.2383965 | G189: 0.3999014975 | H189: 3.995931058
D190: 2015-01-01 | E190: 162677.8143 | F190: =+F189*E190/E189 -> 213.0584875 | G190: =(E190-E189)/E189*100 -> 0.8616288714 | H190: =(E190-E178)/E178*100 -> 3.45089608
D191: 2015-02-01 | E191: 167486.237 | F191: 219.3560596 | G191: 2.955794957 | H191: 7.226863577
D192: 2015-03-01 | E192: 182947.0947 | F192: 239.6050835 | G192: 9.231121298 | H192: 16.42830742
D193: 2015-04-01 | E193: 179887.0255 | F193: 235.5973231 | G193: -1.6726525 | H193: 14.53241262
D194: 2015-05-01 | E194: 175874.782 | F194: 230.3425036 | G194: -2.230424078 | H194: 10.23480943
D195: 2015-06-01 | E195: 159901.045 | F195: 209.4217637 | G195: -9.082448788 | H195: -0.3978011042
D196: 2015-07-01 | E196: 161176.142 | F196: =+F195*E196/E195 -> 211.0917532 | G196: =(E196-E195)/E195*100 -> 0.7974288223 | H196: =(E196-E184)/E184*100 -> 0.1124736068
D197: 2015-08-01 | E197: 161868.4699 | F197: 211.9984923 | G197: 0.4295473653 | H197: 0.3188539575
D198: 2015-09-01 | E198: 162682.1654 | F198: 213.0641861 | G198: 0.5026893595 | H198: 0.8454568137
D199: 2015-10-01 | E199: 163390.3319 | F199: 213.991669 | G199: 0.435306771 | H199: 1.024936756
D200: 2015-11-01 | E200: 164297.932 | F200: 215.1803492 | G200: 0.5554796714 | H200: 2.273479729
D201: 2015-12-01 | E201: 164660.7582 | F201: 215.6555412 | G201: 0.2208343058 | H201: 2.091070936
D202: 2016-01-01 | E202: 164977.3929 | F202: =+F201*E202/E201 -> 216.0702365 | G202: =(E202-E201)/E201*100 -> 0.1922952033 | H202: =(E202-E190)/E190*100 -> 1.413578497
D203: 2016-02-01 | E203: 164124.3034 | F203: 214.9529486 | G203: -0.5170947905 | H203: -2.007289432
... 55 more rows

Sheet REGIONS
B2: WALKER FRASER STEELE HPI (SCOTLAND) NATIONAL AND REGIONAL FORMATTED DATA FROM 2000
B3: A TRUE MEASURE OF HOUSE PRICE INFLATION
J4: =SERIES!$K$3 -> SEPTEMBER 2020
J5: © Acadata Limited
I6: Walker Fraser Steele HPI (Scotland) clb/cms
B8: SCOTLAND
A10: Region | B10: North East | E10: North West | H10: Yorks & Humber | K10: East Midlands | N10: West Midlands | Q10: East of England | T10: Greater London | W10: South East | Z10: South West | AC10: Wales | AF10: Scotland | AI10: England & Wales
A11: Month | B11: Ave HP | C11: monthly % | D11: annual % | E11: Ave HP | F11: monthly % | G11: annual % | H11: Ave HP | I11: monthly % | J11: annual % | K11: Ave HP | L11: monthly % | M11: annual % | N11: Ave HP | O11: monthly % | P11: annual % | Q11: Ave HP | R11: monthly % | S11: annual % | T11: Ave HP | U11: monthly % | V11: annual % | W11: Ave HP | X11: monthly % | Y11: annual % | Z11: Ave HP | AA11: monthly % | AB11: annual % | AC11: Ave HP | AD11: monthly % | AE11: annual % | AF11: Ave HP | AG11: monthly % | AH11: annual % | AI11: Ave HP | AJ11: monthly % | AK11: annual %
A12: 2005-01-01 | B12: 134756.7201 | C12: 1.787195459 | D12: 18.41357745 | E12: 147565.1128 | F12: 0.6202324158 | G12: 17.72122221 | H12: 146570.9413 | I12: 1.224523287 | J12: 19.16050612 | K12: 160711.0954 | L12: 0.8558501427 | M12: 14.94844457 | N12: 166193.5832 | O12: -0.03406736774 | P12: 12.65906114 | Q12: 200762.357 | R12: 0.4202068529 | S12: 11.47132059 | T12: 271279.5386 | U12: 0.2331679206 | V12: 7.43113517 | W12: 232324.3428 | X12: 0.3789957423 | Y12: 9.252925948 | Z12: 203708.7319 | AA12: -0.1182368343 | AB12: 12.78372579 | AC12: 144041.1815 | AD12: 0.05234257765 | AE12: 19.84661039 | AF12: 119604.1749 | AG12: 1.451284901 | AH12: 17.34195732 | AI12: 190271.8492 | AJ12: 0.4115428069 | AK12: 12.42897829
A13: 2005-02-01 | B13: 136369.4652 | C13: =B13/B12*100-100 -> 1.196782715 | D13: 18.24666448 | E13: 150284.2167 | F13: =E13/E12*100-100 -> 1.842646818 | G13: 17.97209576 | H13: 147649.4286 | I13: =H13/H12*100-100 -> 0.7358124963 | J13: 17.68656358 | K13: 161002.8294 | L13: =K13/K12*100-100 -> 0.1815269812 | M13: 13.3993613 | N13: 167724.0077 | O13: =N13/N12*100-100 -> 0.9208685961 | P13: 12.31091077 | Q13: 202187.3601 | R13: =Q13/Q12*100-100 -> 0.7097959475 | S13: 10.52030493 | T13: 271851.2781 | U13: =T13/T12*100-100 -> 0.2107565817 | V13: 7.075987743 | W13: 232609.8808 | X13: =W13/W12*100-100 -> 0.1229049159 | Y13: 7.815380763 | Z13: 204971.6459 | AA13: 0.591030347 | AB13: 11.77166275 | AC13: 145049.9126 | AD13: =AC13/AC12*100-100 -> 0.7003074231 | AE13: 18.64948655 | AF13: 120185.6939 | AG13: 0.4862028721 | AH13: 15.16679984 | AI13: 191414.9615 | AJ13: 0.6007784313 | AK13: 11.56690303
A14: 2005-03-01 | B14: 137418.2599 | C14: 0.7690832532 | D14: 16.83165055 | E14: 149960.0229 | F14: -0.215720437 | G14: 16.18234169 | H14: 147812.1173 | I14: 0.1101857819 | J14: 15.0557187 | K14: 159651.8881 | L14: -0.8390792568 | M14: 11.50532094 | N14: 166719.6859 | O14: -0.5987943228 | P14: 10.19038133 | Q14: 201804.8859 | R14: -0.1891682023 | S14: 9.296533057 | T14: 273117.9143 | U14: 0.4659298156 | V14: 5.968935225 | W14: 233167.614 | X14: 0.2397719271 | Y14: 7.057199689 | Z14: 204303.4667 | AA14: -0.3364909269 | AB14: 9.848721283 | AC14: 144564.3788 | AD14: -0.3347356333 | AE14: 15.97348662 | AF14: 118957.2537 | AG14: -1.022118466 | AH14: 12.36341546 | AI14: 191307.3842 | AJ14: -0.05620105788 | AK14: 10.05668617
A15: 2005-04-01 | B15: 136755.4199 | C15: -0.4823521965 | D15: 13.40575041 | E15: 150247.0447 | F15: 0.1913988827 | G15: 14.38827488 | H15: 147433.8456 | I15: -0.2559138504 | J15: 12.24617642 | K15: 158613.9968 | L15: -0.6500964638 | M15: 9.655213959 | N15: 168010.1 | O15: 0.7740022248 | P15: 10.03688952 | Q15: 202938.0664 | R15: 0.5615228469 | S15: 8.712671604 | T15: 272685.4489 | U15: -0.1583438497 | V15: 4.735857107 | W15: 232903.8483 | X15: -0.1131227746 | Y15: 6.155496492 | Z15: 204221.0557 | AA15: -0.05655692176 | AB15: 8.490142017 | AC15: 145502.1926 | AD15: 0.6487170412 | AE15: 15.58511553 | AF15: 121219.5915 | AG15: 1.901807371 | AH15: 15.02550638 | AI15: 191385.9312 | AJ15: 0.04105799294 | AK15: 8.82201599
A16: 2005-05-01 | B16: 136830.9781 | C16: 0.05525059807 | D16: 10.30568043 | E16: 150079.9527 | F16: -0.1112115339 | G16: 11.92815771 | H16: 147059.2583 | I16: -0.2540714383 | J16: 10.26235581 | K16: 159119.5035 | L16: 0.3187024574 | M16: 8.302856087 | N16: 168082.1956 | O16: 0.04291151182 | P16: 8.648587367 | Q16: 202701.4886 | R16: -0.1165763381 | S16: 7.453208946 | T16: 272466.8494 | U16: -0.08016541851 | V16: 3.968342559 | W16: 231185.5067 | X16: -0.7377901326 | Y16: 4.652096527 | Z16: 202019.9447 | AA16: -1.033944516 | AB16: 5.581022937 | AC16: 145543.4449 | AD16: 0.02835171683 | AE16: 13.24568753 | AF16: 122301.2275 | AG16: 0.8922946783 | AH16: 15.26939908 | AI16: 190789.1467 | AJ16: -0.3118225755 | AK16: 7.129963685
A17: 2005-06-01 | B17: 137267.2078 | C17: 0.3188091411 | D17: 8.823877427 | E17: 151246.271 | F17: 0.7771313432 | G17: 9.853750842 | H17: 147911.0494 | I17: 0.579216268 | J17: 9.705641834 | K17: 159729.6622 | L17: 0.3834594114 | M17: 6.827296657 | N17: 170435.9761 | O17: 1.400374671 | P17: 8.230426393 | Q17: 202341.4581 | R17: -0.1776161117 | S17: 6.033237118 | T17: 272114.8076 | U17: -0.1292053903 | V17: 3.710913042 | W17: 231915.0026 | X17: 0.3155456714 | Y17: 4.054822644 | Z17: 201199.6244 | AA17: -0.3836203743 | AB17: 4.226790689 | AC17: 146687.1131 | AD17: 0.7857916166 | AE17: 11.7652174 | AF17: 123466.0478 | AG17: 0.9524191805 | AH17: 15.33771608 | AI17: 191309.8439 | AJ17: 0.2729176478 | AK17: 6.16485479
A18: 2005-07-01 | B18: 137783.3119 | C18: 0.37598501 | D18: 8.507884767 | E18: 152422.3895 | F18: 0.7776181813 | G18: 8.476201778 | H18: 148362.1275 | I18: 0.3049657574 | J18: 8.126861166 | K18: 160546.5663 | L18: 0.5114291742 | M18: 5.762912311 | N18: 169165.413 | O18: -0.7454782517 | P18: 5.369797916 | Q18: 201714.5675 | R18: -0.3098181956 | S18: 4.710491161 | T18: 272470.6472 | U18: 0.1307682049 | V18: 3.388822858 | W18: 231204.3329 | X18: -0.3064353871 | Y18: 3.251044008 | Z18: 200719.3118 | AA18: -0.2113758757 | AB18: 2.855771828 | AC18: 147834.205 | AD18: 0.7819990876 | AE18: 9.595791398 | AF18: 122122.5902 | AG18: -1.088119088 | AH18: 12.17146024 | AI18: 191319.5554 | AJ18: 0.005076298903 | AK18: 4.98517799
A19: 2005-08-01 | B19: 138373.0962 | C19: 0.4280520792 | D19: 7.798155125 | E19: 152601.7762 | F19: 0.1176904953 | G19: 6.231226793 | H19: 149248.5921 | I19: 0.5975006317 | J19: 6.628566233 | K19: 160597.3848 | L19: 0.03165338877 | M19: 4.484991258 | N19: 168624.2616 | O19: -0.3198948056 | P19: 3.208393163 | Q19: 201854.4364 | R19: 0.06934003558 | S19: 3.975736904 | T19: 272303.1161 | U19: -0.06148594779 | V19: 2.838833148 | W19: 231947.9494 | X19: 0.3216273706 | Y19: 2.737498646 | Z19: 200403.4238 | AA19: -0.184068822 | AB19: 1.727466646 | AC19: 149406.9149 | AD19: 1.063833545 | AE19: 9.15972177 | AF19: 123484.4389 | AG19: 1.115148854 | AH19: 10.91948534 | AI19: 191569.0711 | AJ19: 0.1304183049 | AK19: 3.942171669
A20: 2005-09-01 | B20: 140091.4578 | C20: 1.241832106 | D20: 7.755709402 | E20: 153316.6574 | F20: 0.4684618985 | G20: 5.765045898 | H20: 151066.6283 | I20: 1.21812615 | J20: 6.025177759 | K20: 161756.4117 | L20: 0.7216972714 | M20: 3.849085736 | N20: 167999.3481 | O20: -0.3705952823 | P20: 2.051784181 | Q20: 202349.8623 | R20: 0.2454372087 | S20: 3.304281584 | T20: 273124.8608 | U20: 0.3017757214 | V20: 2.476307471 | W20: 231748.2423 | X20: -0.08609992901 | Y20: 2.340989947 | Z20: 200775.8003 | AA20: 0.1709808307 | AB20: 0.7942042194 | AC20: 150412.0334 | AD20: 0.6727389668 | AE20: 8.126770472 | AF20: 125053.1098 | AG20: 1.270338985 | AH20: 11.46009413 | AI20: 192146.5893 | AJ20: 0.3014673324 | AK20: 3.340515889
A21: 2005-10-01 | B21: 142331.074 | C21: 1.598681524 | D21: 8.382161243 | E21: 154102.8241 | F21: 0.5127731793 | G21: 5.612575743 | H21: 152050.8554 | I21: 0.6515185695 | J21: 5.807471291 | K21: 162057.058 | L21: 0.1858636198 | M21: 2.916924074 | N21: 169443.0818 | O21: 0.8593686622 | P21: 2.012019564 | Q21: 203034.9542 | R21: 0.3385679842 | S21: 2.983965851 | T21: 275347.2539 | U21: 0.8136912651 | V21: 2.647194158 | W21: 232702.6849 | X21: 0.4118445926 | Y21: 1.731065963 | Z21: 201807.4069 | AA21: 0.5251594947 | AB21: 0.1786358031 | AC21: 152037.569 | AD21: 1.080721777 | AE21: 7.68163212 | AF21: 127794.8349 | AG21: 2.192448518 | AH21: 13.18469413 | AI21: 193274.487 | AJ21: 0.5869985931 | AK21: 3.02393651
A22: 2005-11-01 | B22: 143448.0991 | C22: 0.7848076212 | D22: 8.664535669 | E22: 154640.8796 | F22: 0.3491536175 | G22: 6.409206823 | H22: 152890.7004 | I22: 0.5523448259 | J22: 5.83861088 | K22: 162408.2043 | L22: 0.2166806392 | M22: 2.705013968 | N22: 170593.674 | O22: 0.6790434864 | P22: 3.138188826 | Q22: 202812.2305 | R22: -0.1096972324 | S22: 2.295450423 | T22: 277410.5781 | U22: 0.7493534671 | V22: 2.745116572 | W22: 233899.7532 | X22: 0.5144196075 | Y22: 1.30681912 | Z22: 203437.5009 | AA22: 0.7998031783 | AB22: 0.416977965 | AC22: 152232.1095 | AD22: 0.1279555041 | AE22: 6.835017084 | AF22: 128346.67 | AG22: 0.431813331 | AH22: 12.20715215 | AI22: 194204.6291 | AJ22: 0.4812544204 | AK22: 3.024629596
A23: 2005-12-01 | B23: 144714.2682 | C23: 0.8826670329 | D23: 9.308533908 | E23: 155653.9518 | F23: 0.65511276 | G23: 6.135769532 | H23: 153823.7467 | I23: 0.6102701172 | J23: 6.233440905 | K23: 161668.1958 | L23: -0.4556472195 | M23: 1.45648803 | N23: 171550.1353 | O23: 0.5606663129 | P23: 3.18791458 | Q23: 204679.599 | R23: 0.9207376562 | S23: 2.379589391 | T23: 281287.7725 | U23: 1.397637553 | V23: 3.931039828 | W23: 236091.7499 | X23: 0.9371522265 | Y23: 2.006756924 | Z23: 205363.7195 | AA23: 0.9778553549 | AB23: 0.693230985 | AC23: 153413.6882 | AD23: 0.7761691713 | AE23: 6.562572781 | AF23: 128705.6174 | AG23: 0.2796702291 | AH23: 9.171358528 | AI23: 195787.1787 | AJ23: 0.8148876801 | AK23: 3.322129622
A24: 2006-01-01 | B24: 145185.3195 | C24: 0.3255043724 | D24: =B24/B12*100-100 -> 7.738834409 | E24: 156980.9633 | F24: 0.8525395792 | G24: =E24/E12*100-100 -> 6.380810703 | H24: 155479.1184 | I24: 1.076148346 | J24: =H24/H12*100-100 -> 6.07772389 | K24: 161815.0214 | L24: 0.090819089 | M24: =K24/K12*100-100 -> 0.6869009028 | N24: 172980.5632 | O24: 0.8338249986 | P24: =N24/N12*100-100 -> 4.083779811 | Q24: 204967.8255 | R24: 0.140818365 | S24: =Q24/Q12*100-100 -> 2.094749521 | T24: 282806.8828 | U24: 0.540055589 | V24: =T24/T12*100-100 -> 4.24924941 | W24: 237798.044 | X24: 0.7227250102 | Y24: =W24/W12*100-100 -> 2.356060158 | Z24: 205770.5872 | AA24: =Z24/Z23*100-100 -> 0.1981205388 | AB24: =Z24/Z12*100-100 -> 1.012158535 | AC24: 153099.2772 | AD24: -0.204943243 | AE24: =AC24/AC12*100-100 -> 6.288545824 | AF24: 128707.874 | AG24: 0.001753284865 | AH24: 7.611522831 | AI24: 196789.4469 | AJ24: 0.5119172083 | AK24: 3.425413534
A25: 2006-02-01 | B25: 147062.731 | C25: 1.29311388 | D25: 7.84139308 | E25: 157887.508 | F25: 0.5774870254 | G25: 5.0592747 | H25: 156901.1041 | I25: 0.9145830563 | J25: 6.26597446 | K25: 162725.5436 | L25: 0.5626932478 | M25: 1.069989994 | N25: 174298.4201 | O25: 0.7618525877 | P25: 3.919780161 | Q25: 207001.8403 | R25: 0.992358072 | S25: 2.381197418 | T25: 285611.8582 | U25: 0.9918341769 | V25: 5.061804427 | W25: 239637.6635 | X25: 0.773605805 | Y25: 3.021274371 | Z25: 207251.6225 | AA25: 0.7197507499 | AB25: 1.112337577 | AC25: 155100.7868 | AD25: 1.307327921 | AE25: 6.92925217 | AF25: 130049.5789 | AG25: 1.042441929 | AH25: 8.207203932 | AI25: 198441.0226 | AJ25: 0.839260313 | AK25: 3.67059143
A26: 2006-03-01 | B26: 146707.0472 | C26: -0.2418585482 | D26: 6.759500016 | E26: 159775.3148 | F26: 1.195665708 | G26: 6.545272348 | H26: 157757.1835 | I26: 0.5456172065 | J26: 6.728180621 | K26: 164337.7959 | L26: 0.9907801033 | M26: 2.935078235 | N26: 174982.5191 | O26: 0.3924871822 | P26: 4.956123285 | Q26: 208165.7974 | R26: 0.5622931203 | S26: 3.152010652 | T26: 286051.7421 | U26: 0.1540145919 | V26: 4.735620454 | W26: 241203.9387 | X26: 0.6536014056 | Y26: 3.446586993 | Z26: 208724.8904 | AA26: 0.7108594845 | AB26: 2.164145214 | AC26: 156057.5157 | AD26: 0.6168433631 | AE26: 7.950185904 | AF26: 132285.4634 | AG26: 1.719255479 | AH26: 11.20420089 | AI26: 199612.6451 | AJ26: 0.5904134536 | AK26: 4.341317474
A27: 2006-04-01 | B27: 147096.2691 | C27: 0.2653055036 | D27: 7.561564414 | E27: 160009.0037 | F27: 0.1462609613 | G27: 6.497271899 | H27: 157853.9582 | I27: 0.06134410019 | J27: 7.067653017 | K27: 164816.3207 | L27: 0.2911836639 | M27: 3.91032572 | N27: 175694.3859 | O27: 0.4068216865 | P27: 4.573704755 | Q27: 210826.7384 | R27: 1.278279675 | S27: 3.887231299 | T27: 288716.1596 | U27: 0.9314459944 | V27: 5.878828808 | W27: 242949.0287 | X27: 0.7234915348 | Y27: 4.313016071 | Z27: 210338.7428 | AA27: 0.7731959734 | AB27: 2.995620169 | AC27: 155512.585 | AD27: -0.3491857672 | AE27: 6.879891152 | AF27: 134022.5173 | AG27: 1.313110172 | AH27: 10.5617628 | AI27: 200830.6494 | AJ27: 0.6101839004 | AK27: 4.934907228
A28: 2006-05-01 | B28: 146662.8742 | C28: -0.2946334962 | D28: 7.185431424 | E28: 160936.1747 | F28: 0.5794492256 | G28: 7.233625676 | H28: 157968.8274 | I28: 0.07276926663 | J28: 7.418485052 | K28: 165340.7665 | L28: 0.3182001589 | M28: 3.909805438 | N28: 176042.0662 | O28: 0.1978892643 | P28: 4.735701217 | Q28: 211477.8905 | R28: 0.3088564936 | S28: 4.329717523 | T28: 290403.4901 | U28: 0.5844253892 | V28: 6.583054317 | W28: 244519.3947 | X28: 0.6463767189 | Y28: 5.767614142 | Z28: 211077.1892 | AA28: 0.3510748216 | AB28: 4.483341714 | AC28: 155217.2147 | AD28: -0.1899334149 | AE28: 6.646654367 | AF28: 135869.6696 | AG28: 1.378240306 | AH28: 11.09428122 | AI28: 201614.1391 | AJ28: 0.3901245919 | AK28: 5.673798867
A29: 2006-06-01 | B29: 147363.4772 | C29: 0.4776962232 | D29: 7.35519401 | E29: 160692.1233 | F29: -0.1516448134 | G29: 6.245345563 | H29: 157544.5861 | I29: -0.2685601086 | J29: 6.513060876 | K29: 165910.6493 | L29: 0.3446716675 | M29: 3.869655129 | N29: 177079.723 | O29: 0.5894368079 | P29: 3.898089463 | Q29: 212485.2755 | R29: 0.4763547735 | S29: 5.013217507 | T29: 292294.7845 | U29: 0.6512643327 | V29: 7.41597897 | W29: 245023.1616 | X29: 0.2060232924 | Y29: 5.652139311 | Z29: 211568.7187 | AA29: 0.2328672142 | AB29: 5.153635059 | AC29: 155609.0095 | AD29: 0.2524171221 | AE29: 6.082263252 | AF29: 137001.6676 | AG29: 0.8331499205 | AH29: 10.96302996 | AI29: 202207.3475 | AJ29: 0.2942295532 | AK29: 5.696258671
A30: 2006-07-01 | B30: 146794.8571 | C30: -0.3858623325 | D30: 6.540374915 | E30: 161553.7065 | F30: 0.536170163 | G30: 5.990797692 | H30: 158060.376 | I30: 0.3273929355 | J30: 6.536876122 | K30: 166800.8591 | L30: 0.5365597458 | M30: 3.895625348 | N30: 177214.3682 | O30: 0.07603653717 | P30: 4.758038365 | Q30: 212969.8036 | R30: 0.2280289895 | S30: 5.579783466 | T30: 294074.2549 | U30: 0.6087930773 | V30: 7.928783481 | W30: 246523.2035 | X30: 0.6122041033 | Y30: 6.625684873 | Z30: 212271.8632 | AA30: 0.3323480353 | AB30: 5.755575454 | AC30: 156791.3268 | AD30: 0.7598000364 | AE30: 6.058896722 | AF30: 137902.6044 | AG30: 0.6576100432 | AH30: 12.92145388 | AI30: 203075.9693 | AJ30: 0.4295698557 | AK30: 6.144909704
A31: 2006-08-01 | B31: 146244.7751 | C31: -0.3747283849 | D31: 5.688735061 | E31: 163059.2881 | F31: 0.9319387548 | G31: 6.85281141 | H31: 158967.226 | I31: 0.5737364556 | J31: 6.511708885 | K31: 167049.4185 | L31: 0.149015666 | M31: 4.017521035 | N31: 178405.3381 | O31: 0.6720503777 | P31: 5.800515511 | Q31: 215462.7598 | R31: 1.170567918 | S31: 6.741651839 | T31: 295989.9384 | U31: 0.6514284841 | V31: 8.698696743 | W31: 247310.681 | X31: 0.3194334595 | Y31: 6.6233531 | Z31: 213199.2425 | AA31: 0.4368827965 | AB31: 6.38502999 | AC31: 157582.2781 | AD31: 0.5044611139 | AE31: 5.471877401 | AF31: 138678.5696 | AG31: 0.5626907982 | AH31: 12.30449028 | AI31: 204234.2105 | AJ31: 0.5703487119 | AK31: 6.611265224
A32: 2006-09-01 | B32: 147803.3978 | C32: 1.065763008 | D32: 5.504932379 | E32: 164106.0976 | F32: 0.6419808803 | G32: 7.037356795 | H32: 161003.7178 | I32: 1.281076543 | J32: 6.577951506 | K32: 168811.4513 | L32: 1.054797364 | M32: 4.361520857 | N32: 179455.7839 | O32: 0.5887972993 | P32: 6.8193335 | Q32: 216616.0984 | R32: 0.5352844531 | S32: 7.050282082 | T32: 299179.7671 | U32: 1.077681469 | V32: 9.539558662 | W32: 249460.8899 | X32: 0.8694362982 | Y32: 7.643055829 | Z32: 214773.758 | AA32: 0.7385183522 | AB32: 6.971934714 | AC32: 158504.982 | AD32: 0.5855378597 | AE32: 5.380519357 | AF32: 140697.1661 | AG32: 1.455593632 | AH32: 12.50992978 | AI32: 205945.7348 | AJ32: 0.8380204011 | AK32: 7.18157195
A33: 2006-10-01 | B33: 149301.359 | C33: 1.013482276 | D33: 4.897233478 | E33: 165948.197 | F33: 1.122505146 | G33: 7.686668281 | H33: 163319.6318 | I33: 1.438422673 | J33: 7.411189082 | K33: 169442.0636 | L33: 0.3735601023 | M33: 4.557040362 | N33: 180480.2562 | O33: 0.5708772865 | P33: 6.51379464 | Q33: 218704.9148 | R33: 0.9642941521 | S33: 7.717863493 | T33: 301615.583 | U33: 0.814164675 | V33: 9.540073047 | W33: 251643.5957 | X33: 0.8749691664 | Y33: 8.13953256 | Z33: 217855.8411 | AA33: 1.435037094 | AB33: 7.952351412 | AC33: 161565.7722 | AD33: 1.931037238 | AE33: 6.267005754 | AF33: 143214.6326 | AG33: 1.789280174 | AH33: 12.06605705 | AI33: 207990.0112 | AJ33: 0.992628671 | AK33: 7.613795498
A34: 2006-11-01 | B34: 151307.6128 | C34: 1.343761242 | D34: 5.478994657 | E34: 166068.9228 | F34: 0.07274909534 | G34: 7.390053103 | H34: 164531.032 | I34: 0.7417357896 | J34: 7.613498722 | K34: 171043.3372 | L34: 0.9450272186 | M34: 5.316931452 | N34: 181016.372 | O34: 0.2970495567 | P34: 6.109662642 | Q34: 218983.5686 | R34: 0.127410869 | S34: 7.973551757 | T34: 306031.3548 | U34: 1.464039644 | V34: 10.31711799 | W34: 253747.5727 | X34: 0.8360939913 | Y34: 8.485609447 | Z34: 220246.575 | AA34: 1.097392596 | AB34: 8.262524861 | AC34: 163071.1817 | AD34: 0.9317626402 | AE34: 7.120095953 | AF34: 144733.9502 | AG34: 1.060867566 | AH34: 12.76798232 | AI34: 209617.0904 | AJ34: 0.7822871833 | AK34: 7.93619671
A35: 2006-12-01 | B35: 152127.7564 | C35: 0.5420372235 | D35: 5.122845371 | E35: 167934.4247 | F35: 1.123329929 | G35: 7.889599179 | H35: 165628.0524 | I35: 0.6667559384 | J35: 7.673916379 | K35: 171236.8477 | L35: 0.113135376 | M35: 5.918697759 | N35: 182240.4284 | O35: 0.6762130912 | P35: 6.231585359 | Q35: 221115.7909 | R35: 0.9736905499 | S35: 8.030205247 | T35: 311355.9354 | U35: 1.739880767 | V35: 10.68946676 | W35: 256167.0252 | X35: 0.9534879407 | Y35: 8.503166807 | Z35: 223479.4032 | AA35: 1.467822233 | AB35: 8.821267808 | AC35: 163821.6724 | AD35: 0.4602227682 | AE35: 6.784260514 | AF35: 146821.7145 | AG35: 1.442484208 | AH35: 14.07560714 | AI35: 211765.8368 | AJ35: 1.025081664 | AK35: 8.161238266
A36: 2007-01-01 | B36: 154181.9483 | C36: 1.350307077 | D36: 6.196651846 | E36: 168318.0969 | F36: 0.2284654957 | G36: 7.22197987 | H36: 165818.038 | I36: 0.1147061449 | J36: 6.649715825 | K36: 173150.8639 | L36: 1.117759512 | M36: 7.005432719 | N36: 183993.2417 | O36: 0.9618136517 | P36: 6.366425404 | Q36: 222821.4742 | R36: 0.7713982315 | S36: 8.710464042 | T36: 316638.3023 | U36: 1.696568553 | V36: 11.96272847 | W36: 258632.6867 | X36: 0.9625210221 | Y36: 8.761486136 | Z36: 224060.0451 | AA36: 0.2598190091 | AB36: 8.888276109 | AC36: 164360.0025 | AD36: 0.32860738 | AE36: 7.35517866 | AF36: 149357.4335 | AG36: 1.727073503 | AH36: 16.04374215 | AI36: 213538.0291 | AJ36: 0.8368641391 | AK36: 8.510914835
A37: 2007-02-01 | B37: 155107.846 | C37: 0.6005228164 | D37: 5.47053287 | E37: 170920.399 | F37: 1.546061991 | G37: 8.254542211 | H37: 166821.7449 | I37: 0.6053062407 | J37: 6.322862327 | K37: 175005.6434 | L37: 1.071192747 | M37: 7.546510202 | N37: 184407.999 | O37: 0.2254198567 | P37: 5.800155228 | Q37: 225828.2229 | R37: 1.34939805 | S37: 9.094789969 | T37: 322206.513 | U37: 1.758539836 | V37: 12.81272252 | W37: 262174.6171 | X37: 1.369482897 | Y37: 9.404595783 | Z37: 226714.9485 | AA37: 1.184907084 | AB37: 9.391157331 | AC37: 165315.5701 | AD37: 0.5813869423 | AE37: 6.585900414 | AF37: 151406.3092 | AG37: 1.371793641 | AH37: 16.42199117 | AI37: 216107.8405 | AJ37: 1.203444358 | AK37: 8.902805294
A38: 2007-03-01 | B38: 154763.8204 | C38: -0.221797716 | D38: 5.491742434 | E38: 171597.0249 | F38: 0.3958719504 | G38: 7.398959055 | H38: 166769.3036 | I38: -0.03143551903 | J38: 5.71265276 | K38: 175752.1425 | L38: 0.42655719 | M38: 6.945661241 | N38: 184896.7031 | O38: 0.2650124253 | P38: 5.665814009 | Q38: 227943.2372 | R38: 0.9365588927 | S38: 9.500811397 | T38: 325658.1323 | U38: 1.071244431 | V38: 13.84588325 | W38: 264698.9051 | X38: 0.9628269902 | Y38: 9.740705963 | Z38: 227716.4081 | AA38: 0.4417263349 | AB38: 9.098827518 | AC38: 165859.9537 | AD38: 0.3292996482 | AE38: 6.281298275 | AF38: 150568.7897 | AG38: -0.5531602686 | AH38: 13.82111521 | AI38: 217479.2895 | AJ38: 0.6346132533 | AK38: 8.950657589
A39: 2007-04-01 | B39: 154269.8414 | C39: -0.3191824649 | D39: 4.876787402 | E39: 172440.6384 | F39: 0.4916247677 | G39: 7.769334473 | H39: 168385.6108 | I39: 0.9691875008 | J39: 6.67176974 | K39: 176186.4844 | L39: 0.2471331923 | M39: 6.898687951 | N39: 185429.5957 | O39: 0.2882109689 | P39: 5.540990837 | Q39: 229374.2857 | R39: 0.6278091755 | S39: 8.797530815 | T39: 329623.3876 | U39: 1.217612846 | V39: 14.16866588 | W39: 267282.7032 | X39: 0.9761272514 | Y39: 10.01595875 | Z39: 231716.3136 | AA39: 1.756529342 | AB39: 10.16340145 | AC39: 165295.6827 | AD39: -0.3402093189 | AE39: 6.290871991 | AF39: 151645.3028 | AG39: 0.7149642935 | AH39: 13.14912291 | AI39: 219272.0417 | AJ39: 0.8243323956 | AK39: 9.182558759
A40: 2007-05-01 | B40: 154246.6969 | C40: -0.01500257495 | D40: 5.170921947 | E40: 172266.2699 | F40: -0.1011180095 | G40: 7.040117138 | H40: 168905.8782 | I40: 0.308973759 | J40: 6.923550034 | K40: 177179.6219 | L40: 0.5636854112 | M40: 7.160276091 | N40: 186084.7447 | O40: 0.3533141349 | P40: 5.704703815 | Q40: 230562.9897 | R40: 0.5182376818 | S40: 9.024630964 | T40: 333134.2186 | U40: 1.065103723 | V40: 14.71426133 | W40: 268213.0932 | X40: 0.3480920869 | Y40: 9.689905585 | Z40: 233435.7349 | AA40: 0.7420372186 | AB40: 10.59259215 | AC40: 165104.0668 | AD40: -0.1159231334 | AE40: 6.369687862 | AF40: 153206.3846 | AG40: 1.029429729 | AH40: 12.75981243 | AI40: 220315.0785 | AJ40: 0.4756815852 | AK40: 9.275609062
A41: 2007-06-01 | B41: 155327.4888 | C41: 0.7006904047 | D41: 5.404331993 | E41: 172401.6791 | F41: 0.07860462975 | G41: 7.286950722 | H41: 169370.494 | I41: 0.2750737761 | J41: 7.506387953 | K41: 177632.7986 | L41: 0.2557724619 | M41: 7.06533868 | N41: 186752.0334 | O41: 0.3585939911 | P41: 5.462121966 | Q41: 231472.1091 | R41: 0.3943041273 | S41: 8.935599655 | T41: 339200.716 | U41: 1.821037018 | V41: 16.04747468 | W41: 271265.3695 | X41: 1.138004215 | Y41: 10.71009276 | Z41: 234724.8684 | AA41: 0.5522434107 | AB41: 10.94497797 | AC41: 166096.5885 | AD41: 0.6011491883 | AE41: 6.7396991 | AF41: 157036.0078 | AG41: 2.499649897 | AH41: 14.62342797 | AI41: 222009.115 | AJ41: 0.7689153846 | AK41: 9.792803157
A42: 2007-07-01 | B42: 154888.6718 | C42: -0.282510784 | D42: 5.513690977 | E42: 172964.4695 | F42: 0.3264413587 | G42: 7.063139094 | H42: 168435.8675 | I42: -0.5518236661 | J42: 6.564258408 | K42: 177962.4062 | L42: 0.1855556307 | M42: 6.691540585 | N42: 186111.3491 | O42: -0.3430668606 | P42: 5.020462452 | Q42: 232329.6321 | R42: 0.37046492 | S42: 9.090410077 | T42: 343654.074 | U42: 1.312897576 | V42: 16.85962585 | W42: 271814.2874 | X42: 0.2023545823 | Y42: 10.25910891 | Z42: 234740.2488 | AA42: 0.006552546062 | AB42: 10.58472154 | AC42: 167311.9334 | AD42: 0.7317097092 | AE42: 6.709941667 | AF42: 158614.9738 | AG42: 1.005480182 | AH42: 15.01956362 | AI42: 222687.1228 | AJ42: 0.3053963965 | AK42: 9.657052778
A43: 2007-08-01 | B43: 154578.2151 | C43: -0.2004386347 | D43: 5.698282242 | E43: 173684.4215 | F43: 0.4162426786 | G43: 6.516116601 | H43: 169911.4553 | I43: 0.876053187 | J43: 6.884582176 | K43: 177938.8897 | L43: -0.01321432458 | M43: 6.51871245 | N43: 187870.4851 | O43: 0.945206189 | P43: 5.30541691 | Q43: 233929.9595 | R43: 0.688817629 | S43: 8.570947375 | T43: 348402.096 | U43: 1.381628336 | V43: 17.70741194 | W43: 274860.9771 | X43: 1.120871818 | Y43: 11.13995399 | Z43: 235506.8184 | AA43: 0.32656076 | AB43: 10.4632529 | AC43: 169069.7336 | AD43: 1.050612572 | AE43: 7.289814337 | AF43: 160015.9526 | AG43: 0.8832576086 | AH43: 15.38621505 | AI43: 224460.722 | AJ43: 0.796453422 | AK43: 9.903586438
A44: 2007-09-01 | B44: 154333.9138 | C44: -0.158043825 | D44: 4.418380164 | E44: 175620.4716 | F44: 1.114694163 | G44: 7.016420577 | H44: 172012.7754 | I44: 1.236714791 | J44: 6.837766054 | K44: 179995.3524 | L44: 1.155712879 | M44: 6.625084349 | N44: 189229.2149 | O44: 0.7232268577 | P44: 5.446149886 | Q44: 235305.4544 | R44: 0.5879943223 | S44: 8.62787028 | T44: 351123.101 | U44: 0.7809955757 | V44: 17.36191402 | W44: 276942.5256 | X44: 0.7573095801 | Y44: 11.01641054 | Z44: 236998.7125 | AA44: 0.6334823646 | AB44: 10.34807732 | AC44: 170126.778 | AD44: 0.625212074 | AE44: 7.332132936 | AF44: 160633.9338 | AG44: 0.386199743 | AH44: 14.16998528 | AI44: 226227.8076 | AJ44: 0.7872582635 | AK44: 9.848260669
A45: 2007-10-01 | B45: 155321.6464 | C45: 0.6399970967 | D45: 4.032305785 | E45: 175959.6077 | F45: 0.1931073954 | G45: 6.032852968 | H45: 174316.4422 | I45: 1.339241679 | J45: 6.733305874 | K45: 180280.4891 | L45: 0.1584133689 | M45: 6.396537722 | N45: 190059.6507 | O45: 0.4388518014 | P45: 5.307724335 | Q45: 236813.0471 | R45: 0.6406960364 | S45: 8.27970983 | T45: 352516.8345 | U45: 0.3969358609 | V45: 16.87620081 | W45: 278946.4034 | X45: 0.7235717193 | Y45: 10.84979239 | Z45: 238536.9692 | AA45: 0.6490569722 | AB45: 9.493033566 | AC45: 171517.1064 | AD45: 0.8172307833 | AE45: 6.159308391 | AF45: 161346.939 | AG45: 0.4438695842 | AH45: 12.66093141 | AI45: 227540.6092 | AJ45: 0.5803007295 | AK45: 9.399777371
A46: 2007-11-01 | B46: 156792.8035 | C46: 0.9471681105 | D46: 3.62519145 | E46: 175797.4718 | F46: -0.09214380664 | G46: 5.858139422 | H46: 174526.1779 | I46: 0.1203189867 | J46: 6.074930582 | K46: 179704.4357 | L46: -0.3195317292 | M46: 5.06368659 | N46: 189528.4636 | O46: -0.2794843864 | P46: 4.702387709 | Q46: 235496.9934 | R46: -0.5557353047 | S46: 7.540942405 | T46: 351552.267 | U46: -0.2736231 | V46: 14.87459097 | W46: 279748.6963 | X46: 0.2876154175 | Y46: 10.24684622 | Z46: 237993.8771 | AA46: -0.2276762829 | AB46: 8.057924237 | AC46: 170891.1927 | AD46: -0.3649278283 | AE46: 4.7954586 | AF46: 162124.146 | AG46: 0.4816992765 | AH46: 12.01528448 | AI46: 227284.8394 | AJ46: -0.1124062294 | AK46: 8.428582304
A47: 2007-12-01 | B47: 156782.8911 | C47: -0.006321916423 | D47: 3.060016699 | E47: 175284.6543 | F47: -0.2917092616 | G47: 4.376845086 | H47: 174687.5328 | I47: 0.09245310704 | J47: 5.469774169 | K47: 178527.2918 | L47: -0.6550444245 | M47: 4.257520631 | N47: 188238.8433 | O47: -0.6804362021 | P47: 3.29148422 | Q47: 237184.4558 | R47: 0.7165536697 | S47: 7.267081538 | T47: 352342.4451 | U47: 0.2247683017 | V47: 13.16387612 | W47: 280465.1458 | X47: 0.2561046819 | Y47: 9.485264761 | Z47: 238418.4591 | AA47: 0.1784003725 | AB47: 6.684757388 | AC47: 170285.7436 | AD47: -0.3542892695 | AE47: 3.945797309 | AF47: 162367.2633 | AG47: 0.1499575184 | AH47: 10.58804474 | AI47: 227433.4126 | AJ47: 0.06536869079 | AK47: 7.398537929
A48: 2008-01-01 | B48: 160331.0653 | C48: 2.26311313 | D48: 3.98822116 | E48: 175498.8306 | F48: 0.1221877275 | G48: 4.266168562 | H48: 174365.1658 | I48: -0.1845392037 | J48: 5.154522389 | K48: 178365.9639 | L48: -0.0903659817 | M48: 3.011882187 | N48: 188335.2855 | O48: 0.05123392125 | P48: 2.359893072 | Q48: 237154.6791 | R48: -0.01255420284 | S48: 6.432595849 | T48: 355034.3265 | U48: 0.7639957756 | V48: 12.12614641 | W48: 282506.6678 | X48: 0.7279057801 | Y48: 9.230844491 | Z48: 235866.55 | AA48: -1.070348802 | AB48: 5.269348587 | AC48: 168535.8442 | AD48: -1.027625291 | AE48: 2.540667805 | AF48: 161817.3996 | AG48: -0.3386542872 | AH48: 8.342381028 | AI48: 227827.1295 | AJ48: 0.1731130416 | AK48: 6.691595106
A49: 2008-02-01 | B49: 162507.0159 | C49: 1.357160937 | D49: 4.770338887 | E49: 176167.2406 | F49: 0.3808628937 | G49: 3.069757366 | H49: 173898.0921 | I49: -0.2678709881 | J49: 4.241861438 | K49: 179437.3264 | L49: 0.6006541147 | M49: 2.532308643 | N49: 188968.6104 | O49: 0.3362752425 | P49: 2.473109315 | Q49: 240972.4606 | R49: 1.609827614 | S49: 6.706087307 | T49: 357879.9552 | U49: 0.8015080438 | V49: 11.07160802 | W49: 282782.5262 | X49: 0.09764669164 | Y49: 7.860375403 | Z49: 234603.0091 | AA49: -0.5357015878 | AB49: 3.479285629 | AC49: 168074.7865 | AD49: -0.2735665821 | AE49: 1.669060165 | AF49: 161535.431 | AG49: -0.1742511203 | AH49: 6.69002622 | AI49: 228741.4316 | AJ49: 0.4013139785 | AK49: 5.845966083
A50: 2008-03-01 | B50: 163712.8406 | C50: 0.7420139299 | D50: 5.782372281 | E50: 174828.1629 | F50: -0.7601173028 | G50: 1.882980166 | H50: 173938.495 | I50: 0.02323364014 | J50: 4.298867507 | K50: 178037.2134 | L50: -0.7802796693 | M50: 1.300166739 | N50: 189795.5355 | O50: 0.4375991974 | P50: 2.649496897 | Q50: 239739.3592 | R50: -0.5117188305 | S50: 5.175026105 | T50: 356568.0524 | U50: -0.3665761931 | V50: 9.491524096 | W50: 282470.6298 | X50: -0.1102955024 | Y50: 6.713939647 | Z50: 233645.6276 | AA50: -0.4080857702 | AB50: 2.603773501 | AC50: 167794.5554 | AD50: -0.1667300029 | AE50: 1.166406717 | AF50: 161976.0692 | AG50: 0.2727811546 | AH50: 7.576124887 | AI50: 228118.9019 | AJ50: -0.2721543151 | AK50: 4.892241652
A51: 2008-04-01 | B51: 161236.4782 | C51: -1.512625641 | D51: 4.515877348 | E51: 174085.3507 | F51: -0.4248813138 | G51: 0.953784612 | H51: 173514.8086 | I51: -0.2435840255 | J51: 3.046102185 | K51: 177190.4389 | L51: -0.4756166024 | M51: 0.5698249091 | N51: 189692.4773 | O51: -0.05429962768 | P51: 2.298921889 | Q51: 239682.3326 | R51: -0.0237869216 | S51: 4.493985376 | T51: 356106.2769 | U51: -0.1295055729 | V51: 8.034287112 | W51: 281427.303 | X51: -0.3693576249 | Y51: 5.291999672 | Z51: 234889.0734 | AA51: 0.5321930358 | AB51: 1.369243138 | AC51: 167095.1182 | AD51: -0.4168414179 | AE51: 1.088616125 | AF51: 162314.668 | AG51: 0.2090424634 | AH51: 7.035737365 | AI51: 227674.4814 | AJ51: -0.194819688 | AK51: 3.831970346
A52: 2008-05-01 | B52: 159888.8208 | C52: -0.8358266498 | D52: 3.657857139 | E52: 172096.598 | F52: -1.142400919 | G52: -0.09849393661 | H52: 171825.1777 | I52: -0.973767538 | J52: 1.728358758 | K52: 174704.8841 | L52: -1.402758947 | M52: -1.396739502 | N52: 187901.9114 | O52: -0.9439308647 | P52: 0.97652645 | Q52: 237575.0732 | R52: -0.8791884445 | S52: 3.041287551 | T52: 354255.4696 | U52: -0.5197345385 | V52: 6.340162579 | W52: 281098.414 | X52: -0.1168646377 | Y52: 4.804135655 | Z52: 234849.295 | AA52: -0.01693493932 | AB52: 0.6055457252 | AC52: 164646.4737 | AD52: -1.465419494 | AE52: -0.2771543144 | AF52: 162268.1134 | AG52: -0.02868169589 | AH52: 5.914720084 | AI52: 226200.5064 | AJ52: -0.6474045501 | AK52: 2.671368651
A53: 2008-06-01 | B53: 157717.4918 | C53: -1.35802426 | D53: 1.538686459 | E53: 171449.6079 | F53: -0.3759459349 | G53: -0.552240131 | H53: 169149.0959 | I53: -1.557444531 | J53: -0.1307182064 | K53: 175083.6751 | L53: 0.2168176307 | M53: -1.435052242 | N53: 185821.9726 | O53: -1.106928002 | P53: -0.4980191217 | Q53: 236177.2758 | R53: -0.5883603097 | S53: 2.032714309 | T53: 351923.6596 | U53: -0.6582283882 | V53: 3.750859876 | W53: 278554.6154 | X53: -0.9049494885 | Y53: 2.687127328 | Z53: 232548.6687 | AA53: -0.9796181658 | AB53: -0.9271278846 | AC53: 163173.8768 | AD53: -0.8943993322 | AE53: -1.759645872 | AF53: 162163.2968 | AG53: -0.06459468017 | AH53: 3.265040335 | AI53: 224434.5886 | AJ53: -0.7806869421 | AK53: 1.092510814
A54: 2008-07-01 | B54: 154033.5936 | C54: -2.33575752 | D54: -0.5520598907 | E54: 169604.746 | F54: -1.076037373 | G54: -1.942435639 | H54: 166060.5606 | I54: -1.825924795 | J54: -1.410214416 | K54: 173011.5037 | L54: -1.183532031 | M54: -2.781993455 | N54: 183266.308 | O54: -1.375329586 | P54: -1.528676826 | Q54: 232422.7073 | R54: -1.589724688 | S54: 0.04006172458 | T54: 346946.7217 | U54: -1.414209508 | V54: 0.9581285293 | W54: 274649.6133 | X54: -1.401880206 | Y54: 1.04311145 | Z54: 228900.7126 | AA54: -1.568684993 | AB54: -2.487658703 | AC54: 161479.31 | AD54: -1.038503686 | AE54: -3.486077314 | AF54: 161629.0411 | AG54: -0.3294553893 | AH54: 1.900241363 | AI54: 221197.9836 | AJ54: -1.442115059 | AK54: -0.6687136765
A55: 2008-08-01 | B55: 150913.3409 | C55: -2.025696214 | D55: -2.370886587 | E55: 167752.9058 | F55: -1.091856367 | G55: -3.415110928 | H55: 164428.5395 | I55: -0.982786689 | J55: -3.22692531 | K55: 170393.0474 | L55: -1.513457938 | M55: -4.240693147 | N55: 181242.7422 | O55: -1.104166848 | P55: -3.527825496 | Q55: 227914.7025 | R55: -1.939571579 | S55: -2.571392306 | T55: 342498.7066 | U55: -1.282045585 | V55: -1.694418471 | W55: 270603.5705 | X55: -1.473165308 | Y55: -1.548930903 | Z55: 225517.5237 | AA55: -1.478015911 | AB55: -4.241615929 | AC55: 161486.4748 | AD55: 0.00443698634 | AE55: -4.485284612 | AF55: 160462.6304 | AG55: -0.7216591167 | AH55: 0.279145796 | AI55: 218181.8847 | AJ55: -1.363529086 | AK55: -2.797298897
A56: 2008-09-01 | B56: 149499.508 | C56: -0.9368508582 | D56: -3.132432565 | E56: 165128.353 | F56: -1.564534945 | G56: -5.974314102 | H56: 162614.184 | I56: -1.103431032 | J56: -5.463891484 | K56: 166909.1209 | L56: -2.044641216 | M56: -7.2703163 | N56: 178515.9546 | O56: -1.504494751 | P56: -5.661525482 | Q56: 223081.3457 | R56: -2.12068674 | S56: -5.194995911 | T56: 335729.6326 | U56: -1.976379416 | V56: -4.384065963 | W56: 266628.0251 | X56: -1.469140029 | Y56: -3.724419165 | Z56: 221680.0212 | AA56: -1.701642704 | AB56: -6.463617969 | AC56: 159339.3502 | AD56: -1.329600307 | AE56: -6.340817081 | AF56: 158690.8672 | AG56: -1.104159374 | AH56: -1.209623971 | AI56: 214541.3989 | AJ56: -1.668555513 | AK56: -5.165770235
A57: 2008-10-01 | B57: 147890.0952 | C57: -1.076533843 | D57: -4.784620376 | E57: 161818.3019 | F57: -2.004532257 | G57: -8.036677283 | H57: 161043.1169 | I57: -0.9661316602 | J57: -7.614499882 | K57: 164804.0637 | L57: -1.261199638 | M57: -8.584636892 | N57: 175915.9055 | O57: -1.456479981 | P57: -7.441740069 | Q57: 218040.5655 | R57: -2.259615273 | S57: -7.927131483 | T57: 329437.4162 | U57: -1.874191547 | V57: -6.547040028 | W57: 260250.5457 | X57: -2.391901394 | Y57: -6.702311812 | Z57: 218254.5417 | AA57: -1.545235981 | AB57: -8.502844467 | AC57: 157261.1828 | AD57: -1.304239879 | AE57: -8.311662811 | AF57: 156822.1232 | AG57: -1.177600204 | AH57: -2.80440134 | AI57: 210634.5054 | AJ57: -1.821044075 | AK57: -7.429928159
A58: 2008-11-01 | B58: 145565.5634 | C58: -1.571796798 | D58: -7.16055825 | E58: 160114.4113 | F58: -1.052965318 | G58: -8.921095607 | H58: 158511.7649 | I58: -1.571847368 | J58: -9.175937526 | K58: 162762.7877 | L58: -1.238607824 | M58: -9.427506878 | N58: 172695.9244 | O58: -1.830409309 | P58: -8.881272458 | Q58: 212802.9285 | R58: -2.402138795 | S58: -9.636668642 | T58: 320862.2332 | U58: -2.60297787 | V58: -8.729863719 | W58: 252447.3188 | X58: -2.998351787 | Y58: -9.759251019 | Z58: 214113.5321 | AA58: -1.897330316 | AB58: -10.03401653 | AC58: 154638.06 | AD58: -1.668004016 | AE58: -9.510807713 | AF58: 156194.4449 | AG58: -0.4002486145 | AH58: -3.657506472 | AI58: 206130.6519 | AJ58: -2.138231611 | AK58: -9.307346505
A59: 2008-12-01 | B59: 143647.9771 | C59: -1.317335124 | D59: -8.377772545 | E59: 158560.7934 | F59: -0.9703173122 | G59: -9.540972623 | H59: 157037.683 | I59: -0.929951122 | J59: -10.10366886 | K59: 160266.1835 | L59: -1.533891232 | M59: -10.22874883 | N59: 170667.8585 | O59: -1.174356539 | P59: -9.334409694 | Q59: 210145.8582 | R59: -1.248606067 | S59: -11.39981853 | T59: 318057.6153 | U59: -0.8740878957 | V59: -9.73054206 | W59: 245039.3267 | X59: -2.934470496 | Y59: -12.63109503 | Z59: 210323.7105 | AA59: -1.770005651 | AB59: -11.78379756 | AC59: 153261.2785 | AD59: -0.8903250919 | AE59: -9.997586805 | AF59: 155525.485 | AG59: -0.4282866078 | AH59: -4.213767127 | AI59: 202930.031 | AJ59: -1.552714678 | AK59: -10.7738706
A60: 2009-01-01 | B60: 143124.9469 | C60: -0.3641055085 | D60: -10.73161858 | E60: 159214.1085 | F60: 0.4120281506 | G60: -9.279105765 | H60: 155713.7158 | I60: -0.8430888236 | J60: -10.69677533 | K60: 158475.2323 | L60: -1.117485448 | M60: -11.15164081 | N60: 169439.9797 | O60: -0.7194552274 | P60: -10.03280175 | Q60: 210760.3027 | R60: 0.2923895246 | S60: -11.12960391 | T60: 315140.8521 | U60: -0.9170549791 | V60: -11.23651192 | W60: 241777.0196 | X60: -1.331340203 | Y60: -14.41723428 | Z60: 206964.0136 | AA60: -1.597393317 | AB60: -12.25376652 | AC60: 154141.8771 | AD60: 0.5745733959 | AE60: -8.540596926 | AF60: 152693.0209 | AG60: -1.821221822 | AH60: -5.638688274 | AI60: 201447.2912 | AJ60: -0.7306655034 | AK60: -11.57888363
A61: 2009-02-01 | B61: 143499.4071 | C61: 0.2616316398 | D61: -11.69648506 | E61: 157299.4051 | F61: -1.202596577 | G61: -10.71018391 | H61: 154564.6724 | I61: -0.7379204794 | J61: -11.11767214 | K61: 157733.5991 | L61: -0.4679804611 | M61: -12.09543615 | N61: 168488.8915 | O61: -0.5613127313 | P61: -10.83763006 | Q61: 209848.5247 | R61: -0.4326137178 | S61: -12.91597216 | T61: 313387.302 | U61: -0.5564337493 | V61: -12.43228421 | W61: 240501.8488 | X61: -0.527416061 | Y61: -14.95165843 | Z61: 205227.2697 | AA61: -0.8391526327 | AB61: -12.52146746 | AC61: 153033.9963 | AD61: -0.7187409435 | AE61: -8.948867632 | AF61: 149733.1142 | AG61: -1.938468879 | AH61: -7.306333183 | AI61: 200195.6269 | AJ61: -0.6213359281 | AK61: -12.47950777
A62: 2009-03-01 | B62: 142956.4176 | C62: -0.3783914584 | D62: -12.6785553 | E62: 156848.7034 | F62: -0.2865247147 | G62: -10.28407503 | H62: 152858.3505 | I62: -1.10395336 | J62: -12.11930947 | K62: 157310.3506 | L62: -0.2683312387 | M62: -11.64187104 | N62: 166069.966 | O62: -1.43565872 | P62: -12.5005941 | Q62: 207324.8627 | R62: -1.202611275 | S62: -13.52072376 | T62: 310044.623 | U62: -1.066628723 | V62: -13.04755967 | W62: 238914.6724 | X62: -0.6599435218 | Y62: -15.41964112 | Z62: 203682.1059 | AA62: -0.7529037448 | AB62: -12.82434516 | AC62: 152073.6724 | AD62: -0.627523241 | AE62: -9.36912579 | AF62: 145636.1568 | AG62: -2.736173241 | AH62: -10.08785588 | AI62: 198543.3072 | AJ62: -0.825352539 | AK62: -12.96499084
A63: 2009-04-01 | B63: 143400.449 | C63: 0.3106061331 | D63: -11.06203102 | E63: 155314.1618 | F63: -0.9783578495 | G63: -10.7827504 | H63: 151381.5413 | I63: -0.9661292636 | J63: -12.75583769 | K63: 156222.9523 | L63: -0.6912439961 | M63: -11.83330587 | N63: 165283.3264 | O63: -0.4736796491 | P63: -12.86774849 | Q63: 205276.6176 | R63: -0.9879399264 | S63: -14.35471468 | T63: 308774.6254 | U63: -0.4096176842 | V63: -13.29143983 | W63: 239959.879 | X63: 0.4374811067 | Y63: -14.73468408 | Z63: 203312.7893 | AA63: -0.181320071 | AB63: -13.44306212 | AC63: 149467.3233 | AD63: -1.713872658 | AE63: -10.54955707 | AF63: 147687.4984 | AG63: 1.408538699 | AH63: -9.011612896 | AI63: 197695.0619 | AJ63: -0.4272343639 | AK63: -13.16766783
A64: 2009-05-01 | B64: 142624.3226 | C64: -0.5412300826 | D64: -10.79781442 | E64: 155216.546 | F64: -0.06285059194 | G64: -9.808475165 | H64: 151050.3118 | I64: -0.2188043792 | J64: -12.09069951 | K64: 155766.3657 | L64: -0.2922660091 | M64: -10.84029135 | N64: 165282.6195 | O64: -0.0004277090279 | P64: -12.03781898 | Q64: 205394.7002 | R64: 0.05752363183 | S64: -13.5453491 | T64: 312262.2042 | U64: 1.129490098 | V64: -11.85394976 | W64: 239880.4873 | X64: -0.03308539504 | Y64: -14.66316587 | Z64: 205087.4459 | AA64: 0.8728701296 | AB64: -12.67274365 | AC64: 148454.1559 | AD64: -0.6778521321 | AE64: -9.834597417 | AF64: 148271.104 | AG64: 0.39516249 | AH64: -8.625853265 | AI64: 198115.1643 | AJ64: 0.2125002077 | AK64: -12.41612696
A65: 2009-06-01 | B65: 142942.1107 | C65: 0.2228148027 | D65: -9.368257701 | E65: 155097.9142 | F65: -0.07642980903 | G65: -9.537317598 | H65: 151681.7006 | I65: 0.417998975 | J65: -10.32662648 | K65: 156517.9393 | L65: 0.482500562 | M65: -10.60392172 | N65: 168843.8158 | O65: 2.154610301 | P65: -9.136786415 | Q65: 207213.9845 | R65: 0.8857504047 | S65: -12.26336917 | T65: 314681.1466 | U65: 0.7746510377 | V65: -10.58255445 | W65: 242461.5296 | X65: 1.075970094 | Y65: -12.95727435 | Z65: 206354.8314 | AA65: 0.6179732261 | AB65: -11.26380873 | AC65: 148414.9895 | AD65: -0.02638283533 | AE65: -9.044883654 | AF65: 149624.4986 | AG65: 0.9127837493 | AH65: -7.732204815 | AI65: 199629.1597 | AJ65: 0.7641996132 | AK65: -11.05240911
A66: 2009-07-01 | B66: 141961.8152 | C66: -0.6857989333 | D66: -7.837107531 | E66: 157055.4961 | F66: 1.262158729 | G66: -7.399114824 | H66: 153596.3198 | I66: 1.262261162 | J66: -7.505840525 | K66: 158538.3652 | L66: 1.290859044 | M66: -8.365419747 | N66: 169571.9458 | O66: 0.4312446634 | P66: -7.472383977 | Q66: 209089.9313 | R66: 0.9053186212 | S66: -10.03893993 | T66: 318635.448 | U66: 1.256605727 | V66: -8.160121417 | W66: 243455.1683 | X66: 0.40981293 | Y66: -11.35790604 | Z66: 207540.7349 | AA66: 0.5746913826 | AB66: -9.331547074 | AC66: 148719.3746 | AD66: 0.2050905474 | AE66: -7.901901156 | AF66: 148113.3062 | AG66: -1.009989909 | AH66: -8.362194547 | AI66: 201223.033 | AJ66: 0.798417108 | AK66: -9.0303493
A67: 2009-08-01 | B67: 143267.0652 | C67: 0.9194373333 | D67: -5.066666549 | E67: 158774.7752 | F67: 1.094695271 | G67: -5.351997067 | H67: 156032.3551 | I67: 1.585998528 | J67: -5.106281685 | K67: 159671.7079 | L67: 0.7148696312 | M67: -6.292122653 | N67: 171816.0837 | O67: 1.323413438 | P67: -5.201123304 | Q67: 211947.2864 | R67: 1.366567486 | S67: -7.005873691 | T67: 321692.8244 | U67: 0.9595217562 | V67: -6.074733064 | W67: 247101.0401 | X67: 1.497553665 | Y67: -8.685225532 | Z67: 208179.2847 | AA67: 0.3076744679 | AB67: -7.688200307 | AC67: 151094.7832 | AD67: 1.597242204 | AE67: -6.435022917 | AF67: 147790.0273 | AG67: -0.2182646038 | AH67: -7.897541653 | AI67: 203501.9412 | AJ67: 1.132528471 | AK67: -6.728305421
A68: 2009-09-01 | B68: 146699.1652 | C68: 2.395595956 | D68: -1.87314517 | E68: 160683.2645 | F68: 1.202010377 | G68: -2.691899005 | H68: 158616.3056 | I68: 1.656035039 | J68: -2.458505338 | K68: 161191.0047 | L68: 0.9515128496 | M68: -3.42588602 | N68: 171621.4802 | O68: -0.113262646 | P68: -3.862105443 | Q68: 213460.7086 | R68: 0.7140559797 | S68: -4.312613862 | T68: 329167.2275 | U68: 2.323459702 | V68: -1.954669608 | W68: 250850.5873 | X68: 1.517414553 | Y68: -5.917396669 | Z68: 210275.9092 | AA68: 1.007124437 | AB68: -5.144402256 | AC68: 152695.0354 | AD68: 1.059104849 | AE68: -4.169914599 | AF68: 148400.1317 | AG68: 0.4128183616 | AH68: -6.484768599 | AI68: 206187.3193 | AJ68: 1.319583562 | AK68: -3.893924246
A69: 2009-10-01 | B69: 149627.5266 | C69: 1.996167703 | D69: 1.174812511 | E69: 162017.7814 | F69: 0.8305264014 | G69: 0.1232737843 | H69: 160615.955 | I69: 1.260683394 | J69: -0.2652468865 | K69: 161898.3178 | L69: 0.4388043295 | M69: -1.763151854 | N69: 171970.4146 | O69: 0.2033162665 | P69: -2.242827823 | Q69: 216146.797 | R69: 1.258352584 | S69: -0.8685395443 | T69: 332340.0389 | U69: 0.9638904129 | V69: 0.8810846938 | W69: 254757.0268 | X69: 1.5572774 | Y69: -2.110857793 | Z69: 213427.0383 | AA69: 1.498568768 | AB69: -2.2118685 | AC69: 155554.9294 | AD69: 1.872944995 | AE69: -1.084980683 | AF69: 149621.0594 | AG69: 0.8227268594 | AH69: -4.591867308 | AI69: 208584.3864 | AJ69: 1.162567627 | AK69: -0.9733063862
A70: 2009-11-01 | B70: 150684.5781 | C70: 0.7064552396 | D70: 3.516638484 | E70: 163287.084 | F70: 0.7834341538 | G70: 1.98150357 | H70: 161568.1968 | I70: 0.5928687032 | J70: 1.92820506 | K70: 162600.4998 | L70: 0.4337179313 | M70: -0.09970819756 | N70: 171218.4471 | O70: -0.4372656591 | P70: -0.8555368837 | Q70: 214963.6985 | R70: -0.5473587842 | S70: 1.015385462 | T70: 334239.4414 | U70: 0.57152382 | V70: 4.169143886 | W70: 254764.4132 | X70: 0.00289940033 | Y70: 0.9178526428 | Z70: 213838.6781 | AA70: 0.1928714683 | AB70: -0.1283683503 | AC70: 155927.8918 | AD70: 0.2397625423 | AE70: 0.8340972741 | AF70: 151321.3845 | AG70: 1.136420947 | AH70: -3.119867916 | AI70: 209002.7127 | AJ70: 0.2005549746 | AK70: 1.393320607
A71: 2009-12-01 | B71: 148114.0747 | C71: -1.705883498 | D71: 3.109057056 | E71: 164163.602 | F71: 0.5367956267 | G71: 3.533539681 | H71: 164103.051 | I71: 1.568906653 | J71: 4.49915451 | K71: 164676.4144 | L71: 1.27669632 | M71: 2.751816253 | N71: 175531.2598 | O71: 2.51889488 | P71: 2.849629268 | Q71: 221230.3785 | R71: 2.91522713 | S71: 5.274679419 | T71: 340010.1111 | U71: 1.726507715 | V71: 6.902050072 | W71: 260940.7231 | X71: 2.424322072 | Y71: 6.48932422 | Z71: 220728.5037 | AA71: 3.221973533 | AB71: 4.947037686 | AC71: 157608.4141 | AD71: 1.077756031 | AE71: 2.836421301 | AF71: 152598.5102 | AG71: 0.8439822743 | AH71: -1.88199048 | AI71: 213111.8095 | AJ71: 1.966049509 | AK71: 5.017383822
A72: 2010-01-01 | B72: 151621.7475 | C72: 2.368223803 | D72: 5.936631398 | E72: 161229.0527 | F72: -1.787576045 | G72: 1.265556329 | H72: 165484.5754 | I72: 0.8418639337 | J72: 6.274886896 | K72: 167934.9919 | L72: 1.978776053 | M72: 5.969235371 | N72: 179860.6235 | O72: 2.466434601 | P72: 6.150050197 | Q72: 225128.1977 | R72: 1.761882408 | S72: 6.817173251 | T72: 348253.7215 | U72: 2.424519176 | V72: 10.50732369 | W72: 266777.7279 | X72: 2.236908334 | Y72: 10.34039888 | Z72: 222195.2511 | AA72: 0.6645029228 | AB72: 7.359365143 | AC72: 157099.5543 | AD72: -0.322863354 | AE72: 1.918801861 | AF72: 153231.7893 | AG72: 0.4149969135 | AH72: 0.3528441274 | AI72: 214802.067 | AJ72: =AI72/AI71*100-100 -> 0.7931317702 | AK72: =AI72/AI60*100-100 -> 6.629414405
A73: 2010-02-01 | B73: 153630.7665 | C73: 1.325020383 | D73: 7.060209974 | E73: 161886.0412 | F73: 0.4074876643 | G73: 2.915863631 | H73: 166659.3691 | I73: 0.7099112986 | J73: 7.825007135 | K73: 169137.4354 | L73: 0.7160172341 | M73: 7.229807908 | N73: 182690.4142 | O73: 1.573324179 | P73: 8.428759032 | Q73: 231069.1867 | R73: 2.638935977 | S73: 10.11237129 | T73: 356722.4331 | U73: 2.43176485 | V73: 13.82797924 | W73: 272011.8469 | X73: 1.961977496 | Y73: 13.10176957 | Z73: 226149.2581 | AA73: 1.779519124 | AB73: 10.19454601 | AC73: 158231.1508 | AD73: 0.720305335 | AE73: 3.396078378 | AF73: 153969.9878 | AG73: 0.481752895 | AH73: 2.829616983 | AI73: 218402.3139 | AJ73: 1.676076455 | AK73: 9.094447914
A74: 2010-03-01 | B74: 155615.1663 | C74: 1.291668237 | D74: 8.854970612 | E74: 162167.7903 | F74: 0.1740415871 | G74: 3.391221436 | H74: 164672.9292 | I74: -1.191916079 | J74: 7.729102586 | K74: 167282.8082 | L74: -1.096520818 | M74: 6.339352443 | N74: 179780.2533 | O74: -1.592946646 | P74: 8.255729572 | Q74: 228963.4627 | R74: -0.9112958694 | S74: 10.43705022 | T74: 355546.7728 | U74: -0.3295728316 | V74: 14.6760003 | W74: 270920.7861 | X74: -0.4011078187 | Y74: 13.39646214 | Z74: 223545.2248 | AA74: -1.151466643 | AB74: 9.752019637 | AC74: 156885.1257 | AD74: -0.850670075 | AE74: 3.163896306 | AF74: 154111.5684 | AG74: 0.09195332712 | AH74: 5.819579248 | AI74: 216980.1502 | AJ74: -0.6511669332 | AK74: 9.286056183
A75: 2010-04-01 | B75: 153575.1012 | C75: -1.310968099 | D75: 7.09527219 | E75: 162828.6389 | F75: 0.4075091403 | G75: 4.838243296 | H75: 163821.1262 | I75: -0.5172696357 | J75: 8.217372352 | K75: 166223.9029 | L75: -0.6330030313 | M75: 6.401716596 | N75: 177893.8569 | O75: -1.049279005 | P75: 7.629644652 | Q75: 228808.0485 | R75: -0.06787729811 | S75: 11.46327876 | T75: 352819.5562 | U75: -0.7670486278 | V75: 14.26442691 | W75: 270547.8478 | X75: -0.1376558279 | Y75: 12.74711796 | Z75: 223880.046 | AA75: 0.1497778451 | AB75: 10.11606638 | AC75: 156139.7775 | AD75: -0.4750916644 | AE75: 4.464155838 | AF75: 154918.3942 | AG75: 0.5235335762 | AH75: 4.896078417 | AI75: 216236.552 | AJ75: -0.342703336 | AK75: 9.378833185
A76: 2010-05-01 | B76: 151459.2721 | C76: -1.377716204 | D76: 6.194560176 | E76: 162427.5596 | F76: -0.2463198419 | G76: 4.645776391 | H76: 162879.7576 | I76: -0.5746319577 | J76: 7.831460705 | K76: 166708.3294 | L76: 0.2914300788 | M76: 7.024599729 | N76: 177011.9282 | O76: -0.4957611964 | P76: 7.0965167 | Q76: 229587.9653 | R76: 0.3408607453 | S76: 11.77891404 | T76: 351380.0759 | U76: -0.4079933316 | V76: 12.52725151 | W76: 272635.8985 | X76: 0.7717860808 | Y76: 13.65488769 | Z76: 224825.1783 | AA76: 0.4221600963 | AB76: 9.624056822 | AC76: 155889.0112 | AD76: -0.1606037735 | AE76: 5.008182667 | AF76: 154821.9389 | AG76: -0.06226196276 | AH76: 4.418146711 | AI76: 216342.2447 | AJ76: 0.04887826763 | AK76: 9.200244917
A77: 2010-06-01 | B77: 151372.5034 | C77: =B77/B76*100-100 -> -0.05728848807 | D77: 5.897767018 | E77: 160658.53 | F77: =E77/E76*100-100 -> -1.089119118 | G77: 3.585229228 | H77: 162362.4403 | I77: =H77/H76*100-100 -> -0.3176069109 | J77: 7.04154796 | K77: 167709.0645 | L77: =K77/K76*100-100 -> 0.6002909997 | M77: 7.150059131 | N77: 178665.3076 | O77: =N77/N76*100-100 -> 0.9340497401 | P77: 5.816909405 | Q77: 231289.37 | R77: =Q77/Q76*100-100 -> 0.7410687708 | S77: 11.61861037 | T77: 355819.0023 | U77: =T77/T76*100-100 -> 1.263283446 | V77: 13.07286949 | W77: 273684.8834 | X77: =W77/W76*100-100 -> 0.3847567338 | Y77: 12.87765274 | Z77: 224091.0328 | AA77: -0.3265405799 | AB77: 8.595001755 | AC77: 156397.8755 | AD77: =AC77/AC76*100-100 -> 0.3264273288 | AE77: 5.378759978 | AF77: 154823.0513 | AG77: 0.0007184933245 | AH77: 3.474399446 | AI77: 217108.9496 | AJ77: 0.3543944373 | AK77: 8.756130581
A78: 2010-07-01 | B78: 150687.9102 | C78: -0.4522572992 | D78: 6.146790192 | E78: 159662.5194 | F78: -0.6199550202 | G78: 1.659937622 | H78: 162522.962 | I78: 0.09886632855 | J78: 5.811755316 | K78: 166875.0258 | L78: -0.4973128044 | M78: 5.258449946 | N78: 178338.8063 | O78: -0.1827446581 | P78: 5.169994666 | Q78: 232874.6819 | R78: 0.6854235916 | S78: 11.3753687 | T78: 359664.4885 | U78: 1.080742247 | V78: 12.87648341 | W78: 275259.6483 | X78: 0.575393451 | Y78: 13.06379331 | Z78: 224294.2376 | AA78: 0.09067956909 | AB78: 8.072392508 | AC78: 156140.066 | AD78: -0.1648420798 | AE78: 4.989727431 | AF78: 155143.9349 | AG78: 0.2072582821 | AH78: 4.746790725 | AI78: 217722.3969 | AJ78: 0.2825527496 | AK78: 8.199540377
A79: 2010-08-01 | B79: 149938.1003 | C79: -0.4975912899 | D79: 4.656363333 | E79: 160017.4578 | F79: 0.2223054053 | G79: 0.7826700355 | H79: 163736.5623 | I79: 0.7467254288 | J79: 4.93757028 | K79: 166739.7095 | L79: -0.08108841496 | M79: 4.426583604 | N79: 180245.8133 | O79: 1.069316873 | P79: 4.906251732 | Q79: 233716.3162 | R79: 0.3614107871 | S79: 10.27096416 | T79: 362137.0519 | U79: 0.6874638545 | V79: 12.5723126 | W79: 275650.5161 | X79: 0.1419996663 | Y79: 11.55376601 | Z79: 223914.1376 | AA79: -0.1694649111 | AB79: 7.558318241 | AC79: 156555.6386 | AD79: 0.2661537354 | AE79: 3.61419191 | AF79: 156257.6895 | AG79: 0.717884724 | AH79: 5.729522056 | AI79: 218424.8051 | AJ79: 0.3226164495 | AK79: 7.333032739
A80: 2010-09-01 | B80: 151028.3202 | C80: 0.7271133611 | D80: 2.951042718 | E80: 161296.6592 | F80: 0.7994136696 | G80: 0.3817415267 | H80: 163929.0679 | I80: 0.1175703172 | J80: 3.349442729 | K80: 166635.8634 | L80: -0.06228039431 | M80: 3.377892387 | N80: 180169.3308 | O80: -0.04243231221 | P80: 4.980641436 | Q80: 233505.2335 | R80: -0.09031574726 | S80: 9.390264386 | T80: 360292.3615 | U80: -0.5093901307 | V80: 9.455720784 | W80: 274769.2921 | X80: -0.3196888733 | Y80: 9.535040392 | Z80: 224495.1543 | AA80: 0.2594819203 | AB80: 6.76218458 | AC80: 156506.0892 | AD80: -0.03164971267 | AE80: 2.495859697 | AF80: 157220.9514 | AG80: 0.6164572379 | AH80: 5.943943297 | AI80: 218322.5657 | AJ80: -0.04680761398 | AK80: 5.885544467
A81: 2010-10-01 | B81: 151523.5406 | C81: 0.3278990459 | D81: 1.267155944 | E81: 160810.1731 | F81: -0.3016095289 | G81: -0.7453553991 | H81: 162544.6396 | I81: -0.8445288642 | J81: 1.20080511 | K81: 166370.8341 | L81: -0.159046932 | M81: 2.762546517 | N81: 180043.0873 | O81: -0.07006937026 | P81: 4.694221779 | Q81: 231645.8269 | R81: -0.7963018887 | S81: 7.170603585 | T81: 359520.3465 | U81: -0.2142745825 | V81: 8.17846316 | W81: 273274.5855 | X81: -0.5439860457 | Y81: 7.268713622 | Z81: 223975.0489 | AA81: -0.23167779 | AB81: 4.94220914 | AC81: 155633.0743 | AD81: -0.5578153273 | AE81: 0.05023619034 | AF81: 157308.5815 | AG81: 0.05573693628 | AH81: 5.137994683 | AI81: 217469.0658 | AJ81: -0.3909352453 | AK81: 4.259513206
A82: 2010-11-01 | B82: 149632.4483 | C82: -1.248051861 | D82: -0.698233215 | E82: 159720.0809 | F82: -0.6778751627 | G82: -2.184498033 | H82: 161574.7903 | I82: -0.5966664308 | J82: 0.0040809804 | K82: 165259.3464 | L82: -0.6680784861 | M82: 1.635201957 | N82: 178073.8378 | O82: -1.093765678 | P82: 4.00388559 | Q82: 228760.7563 | R82: -1.245466289 | S82: 6.418319868 | T82: 359499.8204 | U82: -0.005709299766 | V82: 7.557569796 | W82: 270783.441 | X82: -0.9115902337 | Y82: 6.287780796 | Z82: 223282.7892 | AA82: -0.3090789165 | AB82: 4.416465327 | AC82: 153792.5678 | AD82: -1.182593371 | AE82: -1.369430432 | AF82: 156386.8466 | AG82: -0.5859406207 | AH82: 3.347485986 | AI82: 215945.1346 | AJ82: -0.7007577226 | AK82: 3.321689827
A83: 2010-12-01 | B83: 147836.2115 | C83: -1.200432679 | D83: -0.1876008276 | E83: 159509.5099 | F83: -0.1318375557 | G83: -2.835032894 | H83: 160257.7424 | I83: -0.8151320772 | J83: -2.343227956 | K83: 164282.4135 | L83: -0.5911513586 | M83: -0.2392576473 | N83: 177163.005 | O83: -0.5114916522 | P83: 0.9296037752 | Q83: 228921.026 | R83: 0.07005998846 | S83: 3.476307152 | T83: 362388.7134 | U83: 0.8035867465 | V83: 6.581746102 | W83: 270636.1219 | X83: -0.05440478966 | Y83: 3.715556036 | Z83: 225650.6487 | AA83: 1.060475579 | AB83: 2.22995437 | AC83: 152479.7879 | AD83: -0.8536042568 | AE83: -3.254030691 | AF83: 157071.7516 | AG83: 0.4379556011 | AH83: 2.931379492 | AI83: 216018.5815 | AJ83: 0.03401185813 | AK83: 1.363965703
A84: 2011-01-01 | B84: 147574.4265 | C84: -0.1770777019 | D84: -2.669353859 | E84: 159071.2577 | F84: -0.2747498495 | G84: -1.338341319 | H84: 160769.8307 | I84: 0.3195404757 | J84: -2.849053819 | K84: 164280.9671 | L84: -0.0008804484358 | M84: -2.17585671 | N84: 176929.3513 | O84: -0.1318862702 | P84: -1.629746485 | Q84: 229073.3668 | R84: 0.06654729176 | S84: 1.75241002 | T84: 364661.2147 | U84: 0.6270894333 | V84: 4.71136192 | W84: 273219.5763 | X84: 0.9545859553 | Y84: 2.414687488 | Z84: 224301.7233 | AA84: -0.5977936779 | AB84: 0.9480275718 | AC84: 152789.4672 | AD84: 0.2030952911 | AE84: -2.74353871 | AF84: 156810.4072 | AG84: -0.1663853392 | AH84: 2.3354279 | AI84: 216546.5685 | AJ84: 0.2444173867 | AK84: 0.8121437194
A85: 2011-02-01 | B85: 151217.3806 | C85: 2.468553816 | D85: -1.570900117 | E85: 158659.0192 | F85: -0.2591533706 | G85: -1.993391174 | H85: 159684.9958 | I85: -0.6747752041 | J85: -4.184807194 | K85: 164267.0602 | L85: -0.008465332122 | M85: -2.879537101 | N85: 175816.3851 | O85: -0.6290455135 | P85: -3.762665406 | Q85: 231008.3381 | R85: 0.8446950358 | S85: -0.0263334772 | T85: 370295.3831 | U85: 1.545041852 | V85: 3.804905091 | W85: 277134.356 | X85: 1.432832809 | Y85: 1.883193404 | Z85: 225319.7331 | AA85: 0.4538572822 | AB85: -0.3668042265 | AC85: 153557.4636 | AD85: 0.5026501213 | AE85: -2.953708604 | AF85: 155711.8202 | AG85: -0.7005829517 | AH85: 1.131280467 | AI85: 218068.1533 | AJ85: 0.7026594008 | AK85: -0.1530022953
A86: 2011-03-01 | B86: 150302.4143 | C86: -0.6050668891 | D86: -3.414032276 | E86: 157234.8156 | F86: -0.8976505462 | G86: -3.041895457 | H86: 160326.9368 | I86: 0.4020045713 | J86: -2.639166307 | K86: 163364.9353 | L86: -0.5491818614 | M86: -2.342065484 | N86: 175190.7615 | O86: -0.3558392279 | P86: -2.552834235 | Q86: 231263.0647 | R86: 0.1102672859 | S86: 1.004353271 | T86: 373094.8832 | U86: 0.756018094 | V86: 4.935527947 | W86: 279788.9698 | X86: 0.9578797168 | Y86: 3.273349327 | Z86: 222209.6824 | AA86: -1.380283283 | AB86: -0.5974372193 | AC86: 153296.0798 | AD86: -0.1702188882 | AE86: -2.287690344 | AF86: 154282.863 | AG86: -0.9176934808 | AH86: 0.111149766 | AI86: 218196.6491 | AJ86: 0.05892459384 | AK86: 0.5606498422
A87: 2011-04-01 | B87: 149172.6108 | C87: -0.7516868861 | D87: -2.866669351 | E87: 155806.3631 | F87: -0.9084836186 | G87: -4.312678535 | H87: 159543.376 | I87: -0.4887268289 | J87: -2.611232299 | K87: 162315.7913 | L87: -0.6422087556 | M87: -2.351112875 | N87: 174481.9232 | O87: -0.404609399 | P87: -1.917960377 | Q87: 230066.6129 | R87: -0.5173553405 | S87: 0.5500525139 | T87: 368711.1364 | U87: -1.174968349 | V87: 4.504166482 | W87: 274646.2057 | X87: -1.838086779 | Y87: 1.514836636 | Z87: 222008.3184 | AA87: -0.09061893677 | AB87: -0.8360404065 | AC87: 151263.1547 | AD87: -1.326142905 | AE87: -3.123241803 | AF87: 153387.3938 | AG87: -0.580407473 | AH87: -0.9882625186 | AI87: 216131.4021 | AJ87: -0.9465072081 | AK87: -0.04862726847
A88: 2011-05-01 | B88: 147472.3811 | C88: -1.139773371 | D88: =B88/B76*100-100 -> -2.632318868 | E88: 154229.2841 | F88: -1.012204477 | G88: =E88/E76*100-100 -> -5.047342651 | H88: 157696.6211 | I88: -1.157525255 | J88: =H88/H76*100-100 -> -3.182185779 | K88: 161243.6051 | L88: -0.6605557347 | M88: =K88/K76*100-100 -> -3.278015155 | N88: 174257.4942 | O88: -0.1286259492 | P88: =N88/N76*100-100 -> -1.556072539 | Q88: 228004.7562 | R88: -0.8961999093 | S88: =Q88/Q76*100-100 -> -0.6895871788 | T88: 359740.891 | U88: -2.432865312 | V88: =T88/T76*100-100 -> 2.379422081 | W88: 270795.5614 | X88: -1.402038048 | Y88: =W88/W76*100-100 -> -0.6750163969 | Z88: 220182.6345 | AA88: =Z88/Z87*100-100 -> -0.8223493088 | AB88: =Z88/Z76*100-100 -> -2.064957214 | AC88: 149589.835 | AD88: -1.106230896 | AE88: =AC88/AC76*100-100 -> -4.04080835 | AF88: 153806.3747 | AG88: 0.273152118 | AH88: -0.6559563092 | AI88: 213449.4699 | AJ88: -1.24088037 | AK88: -1.337128934
A89: 2011-06-01 | B89: 145926.558 | C89: -1.048211926 | D89: -3.5977111 | E89: 154524.9824 | F89: 0.1917264157 | G89: -3.817754097 | H89: 156191.0638 | I89: -0.9547175409 | J89: -3.800987723 | K89: 162124.2622 | L89: 0.5461655837 | M89: -3.330053948 | N89: 172550.8519 | O89: -0.9793795528 | P89: -3.422296028 | Q89: 226451.019 | R89: -0.6814494627 | S89: -2.091903779 | T89: 354914.0293 | U89: -1.341760668 | V89: -0.254335208 | W89: 268412.3316 | X89: -0.8800845417 | Y89: -1.926504601 | Z89: 218947.6586 | AA89: -0.5608870614 | AB89: -2.29521643 | AC89: 149789.6066 | AD89: 0.1335462568 | AE89: -4.225293258 | AF89: 152777.4355 | AG89: -0.6689834273 | AH89: -1.321260498 | AI89: 211977.1235 | AJ89: -0.689786882 | AK89: -2.363710057
A90: 2011-07-01 | B90: 142219.3214 | C90: -2.540481122 | D90: -5.619952396 | E90: 155786.6541 | F90: 0.8164839725 | G90: -2.427536086 | H90: 156146.1436 | I90: -0.02875978062 | J90: -3.923641516 | K90: 162586.9985 | L90: 0.2854208124 | M90: -2.569603968 | N90: 171680.8266 | O90: -0.5042138408 | P90: -3.733331986 | Q90: 227390.5512 | R90: 0.414894252 | S90: -2.354970781 | T90: 360605.1366 | U90: 1.603517152 | V90: 0.26153487 | W90: 270183.4067 | X90: 0.65983375 | Y90: -1.844164826 | Z90: 218691.5632 | AA90: -0.1169665135 | AB90: -2.497912782 | AC90: 150682.8238 | AD90: 0.596314512 | AE90: -3.495094089 | AF90: 153340.5465 | AG90: 0.3685825822 | AH90: -1.16239697 | AI90: 212947.0668 | AJ90: 0.4575697976 | AK90: -2.19331137
A91: 2011-08-01 | B91: 140314.5084 | C91: -1.339348934 | D91: -6.418376551 | E91: 156347.5888 | F91: 0.3600659445 | G91: -2.293417886 | H91: 157730.206 | I91: 1.014474208 | J91: -3.668304902 | K91: 163070.3222 | L91: 0.2972708114 | M91: -2.20066791 | N91: 172873.0131 | O91: 0.6944202983 | P91: -4.090414087 | Q91: 228234.4298 | R91: 0.3711141785 | S91: -2.345530022 | T91: 367052.3201 | U91: 1.787879008 | V91: 1.357295038 | W91: 272055.1953 | X91: 0.692784443 | Y91: -1.304304029 | Z91: 218469.0893 | AA91: -0.1017295304 | AB91: -2.431757262 | AC91: 152504.9549 | AD91: 1.209249361 | AE91: -2.587376467 | AF91: 154464.8528 | AG91: 0.7332087302 | AH91: -1.147359044 | AI91: 214410.1896 | AJ91: 0.6870828519 | AK91: -1.837985192
A92: 2011-09-01 | B92: 140010.6845 | C92: -0.2165306408 | D92: -7.295079304 | E92: 155716.6735 | F92: -0.4035337305 | G92: -3.459455213 | H92: 157473.063 | I92: -0.1630271281 | J92: -3.938291753 | K92: 162915.4451 | L92: -0.09497564483 | M92: -2.232663574 | N92: 172767.8742 | O92: -0.06081856472 | P92: -4.108055752 | Q92: 227661.6308 | R92: -0.2509695757 | S92: -2.502557487 | T92: 368955.8934 | U92: 0.5186108767 | V92: 2.404583838 | W92: 270684.2205 | X92: -0.5039325859 | Y92: -1.486727832 | Z92: 220050.9603 | AA92: 0.7240708605 | AB92: -1.979639161 | AC92: 152785.9589 | AD92: 0.1842589738 | AE92: -2.376987564 | AF92: 156040.1327 | AG92: 1.019830655 | AH92: -0.7510568024 | AI92: 214360.7469 | AJ92: -0.0230598377 | AK92: -1.814662979
A93: 2011-10-01 | B93: 141875.924 | C93: 1.332212284 | D93: -6.367074433 | E93: 155040.3616 | F93: -0.434322135 | G93: -3.587964282 | H93: 156906.8247 | I93: -0.3595778748 | J93: -3.468471783 | K93: 162633.0675 | L93: -0.1733277163 | M93: -2.246647758 | N93: 173881.214 | O93: 0.6444136558 | P93: -3.422443682 | Q93: 227879.758 | R93: 0.09581202868 | S93: -1.625787497 | T93: 370961.3309 | U93: 0.5435439792 | V93: 3.182291211 | W93: 269762.7885 | X93: -0.3404084719 | Y93: -1.285079966 | Z93: 219976.5627 | AA93: -0.03380923692 | AB93: -1.785237306 | AC93: 155682.8197 | AD93: 1.896025511 | AE93: 0.03196327967 | AF93: 156363.3616 | AG93: 0.2071447057 | AH93: -0.6008699009 | AI93: 214614.2182 | AJ93: 0.1182451876 | AK93: -1.312760341
A94: 2011-11-01 | B94: 140894.9447 | C94: -0.6914346574 | D94: -5.839310695 | E94: 154105.6975 | F94: -0.6028521085 | G94: -3.515139366 | H94: 156340.0017 | I94: -0.3612481144 | J94: -3.239854804 | K94: 163054.2393 | L94: 0.258970571 | M94: -1.334331237 | N94: 172254.6045 | O94: -0.9354716579 | P94: -3.267876584 | Q94: 225864.4042 | R94: -0.8843935419 | S94: -1.266105306 | T94: 369720.6154 | U94: -0.334459526 | V94: 2.843059828 | W94: 267393.8439 | X94: -0.8781584316 | Y94: -1.251774177 | Z94: 218809.9553 | AA94: -0.53033259 | AB94: -2.003214799 | AC94: 155124.9872 | AD94: -0.3583134603 | AE94: 0.8663743478 | AF94: 156197.792 | AG94: -0.1058876993 | AH94: -0.1208890703 | AI94: 213368.4234 | AJ94: -0.5804810179 | AK94: -1.193224928
A95: 2011-12-01 | B95: 140778.6342 | C95: -0.0825512256 | D95: -4.773916473 | E95: 152974.3872 | F95: -0.7341131954 | G95: -4.097011303 | H95: 157672.9269 | I95: 0.8525810093 | J95: -1.612911463 | K95: 162504.7849 | L95: -0.3369764548 | M95: -1.082056543 | N95: 173624.4208 | O95: 0.795227658 | P95: -1.997360666 | Q95: 225968.9006 | R95: 0.04626510549 | S95: -1.289582472 | T95: 371392.3241 | U95: 0.4521545804 | V95: 2.484517434 | W95: 266127.0702 | X95: -0.4737482559 | Y95: -1.66609382 | Z95: 219628.7492 | AA95: 0.3742032221 | AB95: -2.668682524 | AC95: 154296.1722 | AD95: -0.5342885038 | AE95: 1.191229548 | AF95: 155398.4719 | AG95: -0.5117358839 | AH95: -1.065296397 | AI95: 213453.491 | AJ95: 0.03986887541 | AK95: -1.187439765
A96: 2012-01-01 | B96: 142159.8427 | C96: 0.9811207933 | D96: -3.66905294 | E96: 153276.2921 | F96: 0.1973565179 | G96: -3.642999791 | H96: 157881.2048 | I96: 0.1320949393 | J96: -1.796746242 | K96: 163115.4369 | L96: 0.3757747598 | M96: -0.7094736771 | N96: 174052.4857 | O96: 0.246546491 | P96: -1.625996794 | Q96: 227034.3729 | R96: 0.4715128086 | S96: -0.8901051613 | T96: 372625.9918 | U96: 0.3321737246 | V96: 2.184158015 | W96: 267755.4854 | X96: 0.6118938855 | Y96: -1.999889948 | Z96: 220156.527 | AA96: 0.2403045169 | AB96: -1.848044788 | AC96: 152673.9072 | AD96: -1.051396808 | AE96: -0.07563349217 | AF96: 153743.239 | AG96: -1.065153901 | AH96: -1.955972365 | AI96: 214164.256 | AJ96: 0.3329835441 | AK96: -1.100138657
A97: 2012-02-01 | B97: 144868.0845 | C97: 1.905068116 | D97: -4.198787274 | E97: 155144.1688 | F97: 1.218633778 | G97: -2.215348619 | H97: 158434.417 | I97: 0.3503977113 | J97: -0.783153611 | K97: 163984.2889 | L97: 0.5326608065 | M97: -0.172141199 | N97: 174317.2941 | O97: 0.1521428641 | P97: -0.8526457842 | Q97: 228016.5866 | R97: 0.4326277359 | S97: -1.295083795 | T97: 372610.6572 | U97: -0.004115288348 | V97: 0.6252506068 | W97: 268982.8091 | X97: 0.4583747944 | Y97: -2.941370038 | Z97: 219852.6813 | AA97: -0.1380135007 | AB97: -2.426352841 | AC97: 152796.4336 | AD97: 0.08025366689 | AE97: -0.4955995136 | AF97: 153123.7286 | AG97: -0.4029513159 | AH97: -1.662103526 | AI97: 214959.4207 | AJ97: 0.3712873342 | AK97: -1.425578438
A98: 2012-03-01 | B98: 146805.232 | C98: 1.337180296 | D98: -2.326763923 | E98: 155821.7762 | F98: 0.4367598234 | G98: -0.898681017 | H98: 157027.5012 | I98: -0.8880114352 | J98: -2.057942103 | K98: 164314.9705 | L98: 0.2016544836 | M98: 0.5815417372 | N98: 173529.5364 | O98: -0.4519102922 | P98: -0.9482378567 | Q98: 230514.1914 | R98: 1.095361016 | S98: -0.3238188415 | T98: 377675.415 | U98: 1.359262745 | V98: 1.227712329 | W98: 274380.1212 | X98: 2.006563959 | Y98: -1.933188645 | Z98: 220110.7668 | AA98: 0.1173901818 | AB98: -0.9445653537 | AC98: 153809.9892 | AD98: 0.6633372275 | AE98: 0.3352397474 | AF98: 153304.6588 | AG98: 0.11815947 | AH98: -0.6340329877 | AI98: 216756.9327 | AJ98: 0.8362098871 | AK98: -0.6598251733
A99: 2012-04-01 | B99: 145743.2405 | C99: -0.723401654 | D99: -2.29892758 | E99: 154710.1728 | F99: -0.7133812839 | G99: -0.7035593818 | H99: 158055.544 | I99: 0.6546896357 | J99: -0.932556425 | K99: 164168.1401 | L99: -0.0893591253 | M99: 1.141200597 | N99: 172117.0748 | O99: -0.8139602942 | P99: -1.355354363 | Q99: 229972.417 | R99: -0.2350286486 | S99: -0.04094290279 | T99: 384289.1039 | U99: 1.751156835 | V99: 4.224978845 | W99: 276105.3015 | X99: 0.6287555541 | Y99: 0.531263746 | Z99: 220611.7021 | AA99: 0.2275832811 | AB99: -0.6290828769 | AC99: 154146.6859 | AD99: 0.2189043017 | AE99: 1.906301084 | AF99: 154288.0358 | AG99: 0.6414528301 | AH99: 0.5871682614 | AI99: 217525.251 | AJ99: 0.3544607856 | AK99: 0.6449081007
A100: 2012-05-01 | B100: 144608.6933 | C100: -0.7784561654 | D100: -1.941846884 | E100: 153649.0173 | F100: -0.6858990069 | G100: -0.3762364876 | H100: 158195.8094 | I100: 0.0887443797 | J100: 0.3165497614 | K100: 163611.4933 | L100: -0.339071141 | M100: 1.468516076 | N100: 172700.5881 | O100: 0.3390211541 | P100: -0.8934514085 | Q100: 232771.6657 | R100: 1.217210659 | S100: 2.090706211 | T100: 394439.2398 | U100: 2.641275997 | V100: 9.645372427 | W100: 279106.8663 | X100: 1.087108727 | Y100: 3.069217534 | Z100: 223311.4502 | AA100: 1.223755616 | AB100: 1.421009271 | AC100: 153870.6607 | AD100: -0.1790665511 | AE100: 2.861708991 | AF100: 154331.2236 | AG100: 0.02799160972 | AH100: 0.3412400067 | AI100: 219534.5876 | AJ100: 0.9237256772 | AK100: 2.850846929
A101: 2012-06-01 | B101: 143988.5054 | C101: -0.4288731881 | D101: -1.328101403 | E101: 154060.5225 | F101: 0.2678215979 | G101: -0.3005726708 | H101: 159103.5095 | I101: 0.5737826111 | J101: 1.864668538 | K101: 163892.8178 | L101: 0.1719466546 | M101: 1.090864286 | N101: 172986.7459 | O101: 0.1656958618 | P101: 0.25261768 | Q101: 232293.9872 | R101: -0.2052133498 | S101: 2.580234913 | T101: 395734.6853 | U101: 0.3284271359 | V101: 11.50156168 | W101: 278248.574 | X101: -0.3075138615 | Y101: 3.664601536 | Z101: 222462.8408 | AA101: -0.3800115936 | AB101: 1.605489723 | AC101: 153313.2574 | AD101: -0.3622545001 | AE101: 2.352400022 | AF101: 154821.9585 | AG101: 0.3179751696 | AH101: 1.338236241 | AI101: 219513.9929 | AJ101: -0.009381066628 | AK101: 3.555510752
A102: 2012-07-01 | B102: 143306.9203 | C102: -0.4733607762 | D102: 0.7647335658 | E102: 153531.6673 | F102: -0.3432775783 | G102: -1.447483949 | H102: 157449.2455 | I102: -1.039740692 | J102: 0.8345399216 | K102: 163225.5868 | L102: -0.4071142572 | M102: 0.3927671132 | N102: 172966.4523 | O102: -0.01173126274 | P102: 0.74884641 | Q102: 233011.0725 | R102: 0.3086973045 | S102: 2.471747941 | T102: 396286.4285 | U102: 0.1394225101 | V102: 9.894837391 | W102: 279012.0866 | X102: 0.2743994812 | Y102: 3.26766178 | Z102: 221189.9129 | AA102: -0.5721979704 | AB102: 1.142407921 | AC102: 152685.8667 | AD102: -0.4092214076 | AE102: 1.329310705 | AF102: 154266.1622 | AG102: -0.3589906243 | AH102: 0.6036340018 | AI102: 219293.1817 | AJ102: -0.1005909281 | AK102: 2.980137296
A103: 2012-08-01 | B103: 143018.5157 | C103: -0.2012495883 | D103: 1.927104543 | E103: 154813.0091 | F103: 0.8345782195 | G103: -0.9815179474 | H103: 157505.2596 | I103: 0.03557592069 | J103: -0.1426146815 | K103: 162337.1836 | L103: -0.5442793936 | M103: -0.4495843593 | N103: 172685.4253 | O103: -0.1624748575 | P103: -0.1085119042 | Q103: 232687.7152 | R103: -0.138773349 | S103: 1.951189146 | T103: 394186.5617 | U103: -0.529886129 | V103: 7.392472421 | W103: 277877.5412 | X103: -0.4066294871 | Y103: 2.140134058 | Z103: 220859.6128 | AA103: -0.1493287518 | AB103: 1.094215897 | AC103: 151933.2988 | AD103: -0.4928863969 | AE103: -0.3748442433 | AF103: 153205.4784 | AG103: -0.6875673725 | AH103: -0.815314534 | AI103: 218806.7489 | AJ103: -0.2218185138 | AK103: 2.050536549
A104: 2012-09-01 | B104: 142539.7455 | C104: -0.3347610007 | D104: 1.806334256 | E104: 154213.3648 | F104: -0.3873345916 | G104: -0.9654128164 | H104: 157681.1764 | I104: 0.1116895015 | J104: 0.132158116 | K104: 162831.9403 | L104: 0.3047710448 | M104: -0.05125655379 | N104: 172522.5385 | O104: -0.09432576731 | P104: -0.1420031164 | Q104: 233422.9641 | R104: 0.3159809751 | S104: 2.530656261 | T104: 399225.1051 | U104: 1.278212879 | V104: 8.204019022 | W104: 276981.3537 | X104: -0.3225116891 | Y104: 2.326376139 | Z104: 218871.2071 | AA104: -0.9003029631 | AB104: -0.5361272437 | AC104: 152621.2421 | AD104: 0.4527929892 | AE104: -0.1078088489 | AF104: 153141.8185 | AG104: -0.04155195612 | AH104: -1.85741587 | AI104: 219040.4711 | AJ104: 0.1068167496 | AK104: 2.183106874
A105: 2012-10-01 | B105: 144084.7923 | C105: 1.083941066 | D105: 1.556901405 | E105: 155136.8055 | F105: 0.5988071829 | G105: 0.06220571341 | H105: 157552.1652 | I105: -0.08181777981 | J105: 0.4112889863 | K105: 163570.7336 | L105: 0.4537152356 | M105: 0.5765531657 | N105: 173034.4241 | O105: 0.296706516 | P105: -0.4869933371 | Q105: 233910.5339 | R105: 0.2088782453 | S105: 2.646472829 | T105: 399996.7753 | U105: 0.19329201 | V105: 7.827081138 | W105: 276144.1985 | X105: -0.3022424191 | Y105: 2.365563475 | Z105: 219669.9144 | AA105: 0.364921109 | AB105: -0.1394004695 | AC105: 153263.633 | AD105: 0.4209052508 | AE105: -1.553920159 | AF105: 152202.1976 | AG105: -0.6135626158 | AH105: -2.661214217 | AI105: 219439.9036 | AJ105: 0.1823555591 | AK105: 2.248539473
A106: 2012-11-01 | B106: 143647.1228 | C106: -0.3037583065 | D106: 1.95335471 | E106: 153453.5235 | F106: -1.085030748 | G106: -0.423199142 | H106: 157513.4035 | I106: -0.02460241981 | J106: 0.7505448229 | K106: 164101.6256 | L106: 0.3245641818 | M106: 0.6423545524 | N106: 172825.9925 | O106: -0.1204567113 | P106: 0.3317112908 | Q106: 232192.6199 | R106: -0.7344320865 | S106: 2.801776469 | T106: 405137.0771 | U106: 1.285085814 | V106: 9.579249901 | W106: 276699.3844 | X106: 0.2010492702 | Y106: 3.480087809 | Z106: 218423.4977 | AA106: -0.5674043558 | AB106: -0.1766179335 | AC106: 153227.8535 | AD106: -0.02334506587 | AE106: -1.222971071 | AF106: 151662.7671 | AG106: -0.3544170289 | AH106: -2.903386079 | AI106: 219547.943 | AJ106: 0.04923415214 | AK106: 2.896173429
A107: 2012-12-01 | B107: 142953.9615 | C107: -0.4825445116 | D107: 1.545211209 | E107: 153342.2942 | F107: -0.0724839961 | G107: 0.2405023686 | H107: 156748.571 | I107: -0.4855666084 | J107: -0.5862489427 | K107: 163593.5469 | L107: -0.3096122216 | M107: 0.6699876781 | N107: 173695.7978 | O107: 0.5032838598 | P107: 0.04111002374 | Q107: 233164.165 | R107: 0.4184220222 | S107: 3.184183469 | T107: 404931.2894 | U107: -0.0507945863 | V107: 9.03060271 | W107: 279029.6868 | X107: 0.8421783907 | Y107: 4.848291701 | Z107: 221217.3385 | AA107: 1.279093517 | AB107: 0.7233066157 | AC107: 152859.686 | AD107: -0.240274511 | AE107: -0.9309927778 | AF107: 150136.1242 | AG107: -1.006603602 | AH107: -3.386357415 | AI107: 220234.4932 | AJ107: 0.3127108344 | AK107: 3.17680548
A108: 2013-01-01 | B108: 142520.5813 | C108: -0.3031606474 | D108: 0.2537556465 | E108: 153654.5011 | F108: 0.2036013061 | G108: 0.2467498459 | H108: 157109.9802 | I108: 0.2305661505 | J108: -0.4884841603 | K108: 163806.4039 | L108: 0.1301132748 | M108: 0.4236061311 | N108: 174719.9242 | O108: 0.5896092019 | P108: 0.383469692 | Q108: 232702.4317 | R108: -0.1980292624 | S108: 2.496564163 | T108: 409853.2053 | U108: 1.215494097 | V108: 9.990503697 | W108: 279418.3576 | X108: 0.1392936923 | Y108: 4.355792047 | Z108: 221334.5318 | AA108: 0.05297652633 | AB108: 0.5350759961 | AC108: 152011.9039 | AD108: -0.5546145801 | AE108: -0.4336060483 | AF108: 150191.6811 | AG108: 0.03700431949 | AH108: -2.310057965 | AI108: 220907.8648 | AJ108: 0.3057521191 | AK108: 3.148802211
A109: 2013-02-01 | B109: 144837.7571 | C109: 1.62585343 | D109: -0.02093452742 | E109: 155389.8186 | F109: 1.129363265 | G109: 0.1583364928 | H109: 156951.9335 | I109: -0.1005962155 | J109: -0.9357079912 | K109: 165789.0772 | L109: 1.210375973 | M109: 1.100586133 | N109: 176470.4323 | O109: 1.00189381 | P109: 1.235183353 | Q109: 236879.6788 | R109: 1.795102454 | S109: 3.88703836 | T109: 411797.8927 | U109: 0.4744838658 | V109: 10.51693898 | W109: 280892.2298 | X109: 0.527478657 | Y109: 4.427576887 | Z109: 222434.5768 | AA109: 0.4970056061 | AB109: 1.174375257 | AC109: 153951.6883 | AD109: 1.27607399 | AE109: 0.7560743635 | AF109: 151296.8666 | AG109: 0.735850017 | AH109: -1.193062656 | AI109: 222701.6353 | AJ109: 0.8119993936 | AK109: 3.601709833
A110: 2013-03-01 | B110: 145226.5367 | C110: 0.2684242277 | D110: -1.075367191 | E110: 155147.0357 | F110: -0.1562412416 | G110: -0.4330206986 | H110: 157478.3269 | I110: 0.3353851359 | J110: 0.2870998338 | K110: 164960.853 | L110: -0.499565035 | M110: 0.393075816 | N110: 175688.0446 | O110: -0.4433534324 | P110: 1.243885231 | Q110: 236721.4579 | R110: -0.06679377884 | S110: 2.692791478 | T110: 418172.2256 | U110: 1.54792752 | V110: 10.72264937 | W110: 282890.1304 | X110: 0.7112694393 | Y110: 3.101539985 | Z110: 221630.9628 | AA110: -0.361281076 | AB110: 0.6906504479 | AC110: 153494.1796 | AD110: -0.2971767537 | AE110: -0.2053245011 | AF110: 151597.7935 | AG110: 0.1988983203 | AH110: -1.113381221 | AI110: 223469.6869 | AJ110: 0.3448791574 | AK110: 3.096904032
A111: 2013-04-01 | B111: 145091.5337 | C111: -0.09296025466 | D111: -0.4471608964 | E111: 154991.4095 | F111: -0.1003088215 | G111: 0.1817829271 | H111: 158253.7286 | I111: 0.4923862665 | J111: 0.1253891947 | K111: 164881.9781 | L111: -0.04781426819 | M111: 0.4348212792 | N111: 175125.6962 | O111: -0.3200835177 | P111: 1.748008632 | Q111: 238686.8558 | R111: 0.8302576341 | S111: 3.789340904 | T111: 420616.8237 | U111: 0.5845912192 | V111: 9.453226599 | W111: 283566.6388 | X111: 0.2391417609 | Y111: 2.70235208 | Z111: 221997.9101 | AA111: 0.1655668077 | AB111: 0.6283474486 | AC111: 153264.6811 | AD111: -0.1495161379 | AE111: -0.572185409 | AF111: 151900.2937 | AG111: 0.199541306 | AH111: -1.547587358 | AI111: 224076.3029 | AJ111: 0.2714533876 | AK111: 3.011628244
A112: 2013-05-01 | B112: 143283.909 | C112: -1.245851311 | D112: -0.9161166491 | E112: 154319.5877 | F112: -0.4334574215 | G112: 0.4364300302 | H112: 158459.5747 | I112: 0.1300734728 | J112: 0.1667334193 | K112: 163823.8947 | L112: -0.6417216918 | M112: 0.1298205701 | N112: 173861.3985 | O112: -0.7219372692 | P112: 0.6721519454 | Q112: 237502.5552 | R112: -0.4961733608 | S112: 2.032416395 | T112: 422292.9835 | U112: 0.3985004142 | V112: 7.061605667 | W112: 284815.5074 | X112: 0.4404144933 | Y112: 2.045324495 | Z112: 222054.2521 | AA112: 0.02537951991 | AB112: -0.5629796806 | AC112: 152208.8502 | AD112: -0.6888938002 | AE112: -1.080004836 | AF112: 151636.8926 | AG112: -0.1734039773 | AH112: -1.745810687 | AI112: 223921.6247 | AJ112: -0.06902922819 | AK112: 1.998335299
A113: 2013-06-01 | B113: 144485.6828 | C113: 0.8387361065 | D113: 0.3452896992 | E113: 155747.8193 | F113: 0.9255024672 | G113: 1.095216843 | H113: 158799.843 | I113: 0.2147350803 | J113: -0.1908609494 | K113: 165281.2793 | L113: 0.8896043808 | M113: 0.8471764942 | N113: 175566.3401 | O113: 0.9806326481 | P113: 1.491209201 | Q113: 238679.7422 | R113: 0.4956523293 | S113: 2.748997103 | T113: 422356.0905 | U113: 0.01494389362 | V113: 6.727084134 | W113: 283198.3517 | X113: -0.5677906113 | Y113: 1.778904964 | Z113: 221768.3588 | AA113: -0.1287493093 | AB113: -0.3121788798 | AC113: 151370.3426 | AD113: -0.5508927852 | AE113: -1.267284246 | AF113: 151593.6504 | AG113: -0.02851694288 | AH113: -2.08517461 | AI113: 224267.1244 | AJ113: 0.1542948826 | AK113: 2.165297705
A114: 2013-07-01 | B114: 144522.6129 | C114: 0.02555968831 | D114: 0.8483140045 | E114: 156592.0232 | F114: 0.5420325286 | G114: 1.993305954 | H114: 158364.0845 | I114: -0.2744073773 | J114: 0.5810373838 | K114: 165508.2585 | L114: 0.1373290583 | M114: 1.398476627 | N114: 176270.4646 | O114: 0.4010589181 | P114: 1.910204101 | Q114: 239416.4394 | R114: 0.3086550852 | S114: 2.748953856 | T114: 424430.4253 | U114: 0.4911341196 | V114: 7.101933056 | W114: 284557.7078 | X114: 0.4800014146 | Y114: 1.987591725 | Z114: 223185.9297 | AA114: 0.6392124562 | AB114: 0.9023995725 | AC114: 151960.2485 | AD114: 0.3897103385 | AE114: -0.4752360053 | AF114: 152293.4274 | AG114: 0.4616136627 | AH114: -1.278786497 | AI114: 225135.9994 | AJ114: 0.387428617 | AK114: 2.664386364
A115: 2013-08-01 | B115: 144684.1821 | C115: 0.1117950942 | D115: 1.164650916 | E115: 157455.939 | F115: 0.551698469 | G115: 1.707175527 | H115: 160097.4695 | I115: 1.09455689 | J115: 1.645792632 | K115: 165838.9688 | L115: 0.1998150121 | M115: 2.157106083 | N115: 177699.6501 | O115: 0.8107912571 | P115: 2.903675726 | Q115: 240502.2838 | R115: 0.4535379635 | S115: 3.358393273 | T115: 430130.2969 | U115: 1.342946027 | V115: 9.118457783 | W115: 284376.4772 | X115: -0.06368853173 | Y115: 2.338776969 | Z115: 225184.1267 | AA115: 0.8953059611 | AB115: 1.958037435 | AC115: 152986.8872 | AD115: 0.6755969056 | AE115: 0.6934545607 | AF115: 152340.6411 | AG115: 0.03100180035 | AH115: -0.564495055 | AI115: 226546.9069 | AJ115: 0.6266912344 | AK115: 3.537440286
A116: 2013-09-01 | B116: 144665.9554 | C116: -0.0125976138 | D116: 1.491661084 | E116: 158093.878 | F116: 0.4051540374 | G116: 2.516327453 | H116: 160447.6824 | I116: 0.2187498157 | J116: 1.75449353 | K116: 167785.4143 | L116: 1.173696061 | M116: 3.042077596 | N116: 178319.8318 | O116: 0.3490055973 | P116: 3.36031072 | Q116: 241402.2639 | R116: 0.3742085573 | S116: 3.418386798 | T116: 436489.919 | U116: 1.478533863 | V116: 9.334286205 | W116: 284649.3469 | X116: 0.09595370029 | Y116: 2.768414964 | Z116: 226206.2901 | AA116: 0.4539233857 | AB116: 3.351323842 | AC116: 155098.9086 | AD116: 1.380524453 | AE116: 1.623408654 | AF116: 152854.5075 | AG116: 0.3373140655 | AH116: -0.1876111107 | AI116: 227936.9057 | AJ116: 0.6135589178 | AK116: 4.06154832
A117: 2013-10-01 | B117: 145602.9272 | C117: 0.6476795372 | D117: 1.053639903 | E117: 157950.6977 | F117: -0.09056664342 | G117: 1.813813428 | H117: 161905.4763 | I117: 0.9085789308 | J117: 2.763091899 | K117: 168131.6331 | L117: 0.2063462057 | M117: 2.788334678 | N117: 179342.4686 | O117: 0.5734845964 | P117: 3.645543101 | Q117: 241400.4643 | R117: -0.0007454868507 | S117: 3.202049198 | T117: 442494.1949 | U117: 1.375581809 | V117: 10.62444055 | W117: 286715.5882 | X117: 0.7258900524 | Y117: 3.828213569 | Z117: 226409.3879 | AA117: 0.08978434588 | AB117: 3.068000262 | AC117: 156675.017 | AD117: 1.016195698 | AE117: 2.225827485 | AF117: 152916.0797 | AG117: 0.04028161083 | AH117: 0.4690353688 | AI117: 229322.8434 | AJ117: 0.6080356915 | AK117: 4.503711348
A118: 2013-11-01 | B118: 145692.1852 | C118: 0.06130236703 | D118: 1.423671001 | E118: 157397.59 | F118: -0.3501774557 | G118: 2.570202643 | H118: 161203.2724 | I118: -0.4337122159 | J118: 2.342574566 | K118: 169249.7316 | L118: 0.6650137388 | M118: 3.137144995 | N118: 179913.2487 | O118: 0.3182626772 | P118: 4.100804587 | Q118: 242450.777 | R118: 0.4350914112 | S118: 4.41795139 | T118: 448787.7479 | U118: 1.422290514 | V118: 10.7742967 | W118: 288126.459 | X118: 0.4920802686 | Y118: 4.12977956 | Z118: 226077.2573 | AA118: -0.1466947288 | AB118: 3.504091664 | AC118: 156341.2724 | AD118: -0.2130171654 | AE118: 2.031888336 | AF118: 154218.0125 | AG118: 0.8514034545 | AH118: 1.684820526 | AI118: 230315.5597 | AJ118: 0.4328902526 | AK118: 4.904448912
A119: 2013-12-01 | B119: 146020.2597 | C119: 0.2251833526 | D119: 2.144955099 | E119: 157964.0523 | F119: 0.3598926294 | G119: 3.014013917 | H119: 162337.5266 | I119: 0.7036173087 | J119: 3.565554385 | K119: 168935.5927 | L119: -0.1856067451 | M119: 3.265437914 | N119: 181262.9547 | O119: 0.7501981864 | P119: 4.356557226 | Q119: 243388.0336 | R119: 0.3865760387 | S119: 4.384837024 | T119: 455375.3532 | U119: 1.467866573 | V119: 12.45743787 | W119: 292656.9331 | X119: 1.572390858 | Y119: 4.883798011 | Z119: 228239.68 | AA119: 0.9564972376 | AB119: 3.174408274 | AC119: 157208.8605 | AD119: 0.5549322472 | AE119: 2.845207005 | AF119: 155090.7884 | AG119: 0.5659364316 | AH119: 3.300114646 | AI119: 232460.9704 | AJ119: 0.9315092454 | AK119: 5.55157235
A120: 2014-01-01 | B120: 148324.458 | C120: 1.577999035 | D120: 4.072307786 | E120: 159663.7038 | F120: 1.075973572 | G120: 3.910853626 | H120: 163235.6084 | I120: 0.5532188508 | J120: 3.898942762 | K120: 172533.5064 | L120: 2.129754705 | M120: 5.327693125 | N120: 182366.664 | O120: 0.6088995419 | P120: 4.376569964 | Q120: 246392.3464 | R120: 1.234371603 | S120: 5.88301316 | T120: 467438.7296 | U120: 2.649106125 | V120: 14.05028032 | W120: 295922.4516 | X120: 1.115817921 | Y120: 5.906589027 | Z120: 229634.3554 | AA120: 0.6110573596 | AB120: 3.749899996 | AC120: 158018.8791 | AD120: 0.5152499955 | AE120: 3.951647926 | AF120: 157251.2375 | AG120: 1.393022197 | AH120: 4.700364515 | AI120: 235647.9351 | AJ120: 1.370967642 | AK120: 6.672496833
A121: 2014-02-01 | B121: 149925.8957 | C121: 1.079685528 | D121: 3.512991903 | E121: 160690.5863 | F121: 0.6431534059 | G121: 3.411270915 | H121: 163557.6489 | I121: 0.1972857173 | J121: 4.208750596 | K121: 173898.8053 | L121: 0.7913239519 | M121: 4.891593741 | N121: 183962.3486 | O121: 0.8749870115 | P121: 4.245422955 | Q121: 249506.2139 | R121: 1.263784205 | S121: 5.330358112 | T121: 471841.888 | U121: 0.9419755327 | V121: 14.58093799 | W121: 299858.152 | X121: 1.329976949 | Y121: 6.752028085 | Z121: 231525.5711 | AA121: 0.8235770062 | AB121: 4.087041883 | AC121: 159658.9607 | AD121: 1.037902314 | AE121: 3.707184083 | AF121: 156198.0192 | AG121: -0.6697679134 | AH121: 3.239427722 | AI121: 237927.8713 | AJ121: 0.9675179948 | AK121: 6.837056187
A122: 2014-03-01 | B122: 152794.0287 | C122: 1.913033755 | D122: 5.210819051 | E122: 161198.8799 | F122: 0.3163181996 | G122: 3.900715353 | H122: 164577.3608 | I122: 0.6234571759 | J122: 4.507943421 | K122: 175318.413 | L122: 0.8163412572 | M122: 6.278798814 | N122: 184562.5568 | O122: 0.3262668832 | P122: 5.051289746 | Q122: 252395.7718 | R122: 1.158110573 | S122: 6.621416599 | T122: 478458.0086 | U122: 1.402190178 | V122: 14.41649622 | W122: 303207.6602 | X122: 1.117030889 | Y122: 7.182127496 | Z122: 233498.7884 | AA122: 0.8522675493 | AB122: 5.354768806 | AC122: 159489.2638 | AD122: -0.1062871105 | AE122: 3.90574042 | AF122: 157132.8302 | AG122: 0.5984781609 | AH122: 3.651132788 | AI122: 240195.4803 | AJ122: 0.9530657296 | AK122: 7.484591602
A123: 2014-04-01 | B123: 151953.2702 | C123: -0.5502561332 | D123: 4.729246641 | E123: 160679.8913 | F123: -0.3219554284 | G123: 3.670191707 | H123: 164755.7146 | I123: 0.1083707909 | J123: 4.10858314 | K123: 174693.3393 | L123: -0.3565362888 | M123: 5.950535803 | N123: 184715.3275 | O123: 0.0827744671 | P123: 5.475856222 | Q123: 254661.4494 | R123: 0.8976685966 | S123: 6.692699292 | T123: 484343.6611 | U123: 1.230129365 | V123: 15.15080564 | W123: 305165.2842 | X123: 0.645638024 | Y123: 7.616779405 | Z123: 235458.3527 | AA123: 0.8392181944 | AB123: 6.063319543 | AC123: 159149.4867 | AD123: -0.213040776 | AE123: 3.839635837 | AF123: 157062.1114 | AG123: -0.0450057681 | AH123: 3.398161757 | AI123: 241469.4104 | AJ123: 0.5303722234 | AK123: 7.762136052
A124: 2014-05-01 | B124: 153122.3041 | C124: 0.7693377906 | D124: 6.866364314 | E124: 161829.2063 | F124: 0.7152823538 | G124: 4.866276955 | H124: 165179.4917 | I124: 0.2572154242 | J124: 4.240776875 | K124: 175014.9141 | L124: 0.1840796336 | M124: 6.831127681 | N124: 184980.4644 | O124: 0.1435381336 | P124: 6.395362069 | Q124: 256499.5656 | R124: 0.7217881797 | S124: 7.998655141 | T124: 497178.7049 | U124: 2.649986955 | V124: 17.73311999 | W124: 308094.1024 | X124: 0.9597481708 | Y124: 8.173218942 | Z124: 236140.7032 | AA124: 0.2897966563 | AB124: 6.343697976 | AC124: 158097.8302 | AD124: -0.6607979155 | AE124: 3.869012878 | AF124: 159545.5944 | AG124: 1.581210777 | AH124: 5.215552586 | AI124: 243828.7891 | AJ124: 0.9770921963 | AK124: 8.890237564
A125: 2014-06-01 | B125: 151537.8609 | C125: -1.034756672 | D125: 4.880883639 | E125: 161889.5728 | F125: 0.03730265386 | G125: 3.943396163 | H125: 165074.7539 | I125: -0.06340850959 | J125: 3.951459103 | K125: 175508.8537 | L125: 0.2822271197 | M125: 6.187981163 | N125: 185629.5345 | O125: 0.3508857611 | P125: 5.731847231 | Q125: 259279.7124 | R125: 1.083879731 | S125: 8.630799585 | T125: 508341.7505 | U125: 2.245278302 | V125: 20.35856993 | W125: 310943.5613 | X125: 0.9248664302 | Y125: 9.797094324 | Z125: 235872.0601 | AA125: -0.1137639717 | AB125: 6.359654482 | AC125: 159461.0315 | AD125: 0.8622517713 | AE125: 5.344963083 | AF125: 160539.6736 | AG125: 0.6230689948 | AH125: 5.901317891 | AI125: 245878.9682 | AJ125: 0.8408273126 | AK125: 9.636652678
A126: 2014-07-01 | B126: 150683.092 | C126: -0.5640629417 | D126: 4.262640236 | E126: 162891.263 | F126: 0.618749028 | G126: 4.022708002 | H126: 165354.7322 | I126: 0.1696069966 | J126: 4.414288562 | K126: 177142.2077 | L126: 0.9306391058 | M126: 7.029225813 | N126: 187698.4423 | O126: 1.114535865 | P126: 6.483206195 | Q126: 260732.2308 | R126: 0.5602128965 | S126: 8.903227983 | T126: 511054.7614 | U126: 0.5336982101 | V126: 20.40954909 | W126: 314511.6564 | X126: 1.147505699 | Y126: 10.52649351 | Z126: 237183.3988 | AA126: 0.55595336 | AB126: 6.271662849 | AC126: 159472.5616 | AD126: 0.007230677466 | AE126: 4.943604162 | AF126: 160995.065 | AG126: 0.2836628849 | AH126: 5.713731596 | AI126: 247539.0806 | AJ126: 0.6751746107 | AK126: 9.95091023
A127: 2014-08-01 | B127: 150362.1557 | C127: -0.2129875521 | D127: 3.92439142 | E127: 164007.267 | F127: 0.6851220708 | G127: 4.16073734 | H127: 166448.0638 | I127: 0.6612036865 | J127: 3.966704954 | K127: 178242.3785 | L127: 0.621066449 | M127: 7.479188871 | N127: 189220.4333 | O127: 0.810870369 | P127: 6.483289758 | Q127: 263702.8464 | R127: 1.139335774 | S127: 9.646711954 | T127: 513825.0576 | U127: 0.5420742427 | V127: 19.45800175 | W127: 316473.3897 | X127: 0.6237394563 | Y127: 11.28676776 | Z127: 240243.4079 | AA127: 1.290144742 | AB127: 6.687541204 | AC127: 161619.0727 | AD127: 1.346006526 | AE127: 5.642434902 | AF127: 161353.9863 | AG127: 0.2229392913 | AH127: 5.916572995 | AI127: 249418.5815 | AJ127: 0.7592744203 | AK127: 10.09577877
A128: 2014-09-01 | B128: 149717.8936 | C128: -0.4284736042 | D128: 3.492140374 | E128: 164770.1526 | F128: 0.4651535332 | G128: 4.222981074 | H128: 167596.8328 | I128: 0.6901666513 | J128: 4.455751716 | K128: 179780.3652 | L128: 0.8628625364 | M128: 7.148983133 | N128: 189506.4518 | O128: 0.1511562365 | P128: 6.273345965 | Q128: 265311.6688 | R128: 0.6100891405 | S128: 9.904383031 | T128: 518227.5424 | U128: 0.8568061704 | V128: 18.7261194 | W128: 317391.1205 | X128: 0.2899867127 | Y128: 11.50249383 | Z128: 241690.8266 | AA128: 0.602480088 | AB128: 6.845316517 | AC128: 162160.4844 | AD128: 0.3349924327 | AE128: 4.552950023 | AF128: 161318.289 | AG128: -0.02212360625 | AH128: 5.537148782 | AI128: 250747.6684 | AJ128: 0.5328740658 | AK128: 10.00748986
A129: 2014-10-01 | B129: 151217.6678 | C129: 1.001733426 | D129: 3.85620038 | E129: 165180.4337 | F129: 0.2490020727 | G129: 4.577210526 | H129: 169195.7925 | I129: 0.9540512933 | J129: 4.502822539 | K129: 179346.3493 | L129: -0.2414145505 | M129: 6.670199986 | N129: 190880.5431 | O129: 0.7250894576 | P129: 6.43354282 | Q129: 266865.2754 | R129: 0.585577927 | S129: 10.54878296 | T129: 519185.2792 | U129: 0.1848100889 | V129: 17.33154585 | W129: 317402.2549 | X129: 0.003508118721 | Y129: 10.70282468 | Z129: 242367.0026 | AA129: 0.2797689946 | AB129: 7.048124127 | AC129: 163917.0689 | AD129: 1.083238328 | AE129: 4.622339933 | AF129: 161732.6743 | AG129: 0.2568743601 | AH129: 5.765642553 | AI129: 251554.8849 | AJ129: 0.3219238406 | AK129: 9.694647587
A130: 2014-11-01 | B130: 150275.8429 | C130: -0.6228272577 | D130: 3.146124639 | E130: 164298.1208 | F130: -0.5341509844 | G130: 4.384140053 | H130: 169955.6678 | I130: 0.4491100334 | J130: 5.429415454 | K130: 179558.6162 | L130: 0.1183558823 | M130: 6.090931175 | N130: 191156.5509 | O130: 0.1445971251 | P130: 6.249290825 | Q130: 266178.9599 | R130: -0.2571767544 | S130: 9.786804237 | T130: 519377.9094 | U130: 0.03710240369 | V130: 15.72907501 | W130: 318591.1329 | X130: 0.374565068 | Y130: 10.57336906 | Z130: 241360.6486 | AA130: -0.4152190621 | AB130: 6.760251572 | AC130: 163387.6725 | AD130: -0.3229660073 | AE130: 4.507063323 | AF130: 160645.6849 | AG130: -0.6720901529 | AH130: 4.167912876 | AI130: 251534.5297 | AJ130: -0.008091758934 | AK130: 9.212998933
A131: 2014-12-01 | B131: 151916.6133 | C131: 1.091839053 | D131: 4.038037967 | E131: 165086.758 | F131: 0.4800037818 | G131: 4.509067442 | H131: 169978.8739 | I131: 0.01365418049 | J131: 4.707073881 | K131: 179496.8764 | L131: -0.03438420497 | M131: 6.251662905 | N131: 191653.5748 | O131: 0.2600088442 | P131: 5.732346234 | Q131: 268206.5443 | R131: 0.761737308 | S131: 10.19709572 | T131: 515913.3579 | U131: -0.6670579125 | V131: 13.294089 | W131: 319395.7559 | X131: 0.2525566296 | Y131: 9.136575894 | Z131: 242852.3667 | AA131: 0.6180452788 | AB131: 6.402342797 | AC131: 163740.5964 | AD131: 0.2160039753 | AE131: 4.154814084 | AF131: 161288.1094 | AG131: 0.3999014975 | AH131: 3.995931058 | AI131: 251925.8607 | AJ131: 0.155577435 | AK131: 8.373401462
A132: 2015-01-01 | B132: 152988.5249 | C132: 0.7055921306 | D132: 3.144502916 | E132: 166401.3005 | F132: 0.7962737292 | G132: 4.21986746 | H132: 170194.2108 | I132: 0.1266844953 | J132: 4.262919385 | K132: 181158.1943 | L132: 0.9255413731 | M132: 4.998848097 | N132: 192804.9688 | O132: 0.6007683187 | P132: 5.723800934 | Q132: 271503.7957 | R132: 1.229370214 | S132: 10.19165153 | T132: 518641.8569 | U132: 0.5288676803 | V132: 10.95397624 | W132: 321919.7244 | X132: 0.7902322974 | Y132: 8.78516401 | Z132: 242018.02 | AA132: -0.3435613014 | AB132: 5.392775213 | AC132: 164119.147 | AD132: 0.2311892459 | AE132: 3.860467757 | AF132: 162677.8143 | AG132: 0.8616288714 | AH132: 3.45089608 | AI132: 253431.8093 | AJ132: 0.5977745132 | AK132: 7.546798231
A133: 2015-02-01 | B133: 156257.3603 | C133: 2.136653971 | D133: 4.223062708 | E133: 167357.0615 | F133: 0.5743711664 | G133: 4.148640798 | H133: 169876.3003 | I133: -0.1867927535 | J133: 3.863256436 | K133: 183205.9424 | L133: 1.130364591 | M133: 5.352041955 | N133: 193177.0796 | O133: 0.1929985777 | P133: 5.009030984 | Q133: 275343.1384 | R133: 1.414102747 | S133: 10.35522283 | T133: 517258.1565 | U133: -0.2667930559 | V133: 9.625315091 | W133: 323054.9375 | X133: 0.3526385773 | Y133: 7.735919568 | Z133: 244032.4236 | AA133: 0.8323362197 | AB133: 5.401931384 | AC133: 165426.7719 | AD133: 0.7967533735 | AE133: 3.612582151 | AF133: 167486.237 | AG133: 2.955794957 | AH133: 7.226863577 | AI133: 254648.0941 | AJ133: 0.4799258773 | AK133: 7.027433467
A134: 2015-03-01 | B134: 156998.2741 | C134: 0.4741624948 | D134: 2.75157703 | E134: 167716.0197 | F134: 0.2144864109 | G134: 4.042918792 | H134: 169979.7914 | I134: 0.0609214173 | J134: 3.28260857 | K134: 184172.1239 | L134: 0.5273745631 | M134: 5.050074726 | N134: 193424.1584 | O134: 0.1279027516 | P134: 4.801408136 | Q134: 276366.2615 | R134: 0.3715811367 | S134: 9.49718356 | T134: 515786.7501 | U134: -0.2844626703 | V134: 7.801884555 | W134: 325210.2052 | X134: 0.6671520843 | Y134: 7.25659273 | Z134: 245587.3365 | AA134: 0.6371746985 | AB134: 5.177135229 | AC134: 165405.8652 | AD134: -0.01263803829 | AE134: 3.709717615 | AF134: 182947.0947 | AG134: 9.231121298 | AH134: 16.42830742 | AI134: 255340.0434 | AJ134: 0.2717276635 | AK134: 6.305099143
A135: 2015-04-01 | B135: 156393.8922 | C135: -0.3849608505 | D135: 2.922360285 | E135: 167678.6025 | F135: -0.02230985769 | G135: 4.35568576 | H135: 169627.1589 | I135: -0.2074555103 | J135: 2.956768043 | K135: 184479.1034 | L135: 0.1666807644 | M135: 5.601681309 | N135: 192819.4166 | O135: -0.3126506349 | P135: 4.387339804 | Q135: 277447.3208 | R135: 0.3911690584 | S135: 8.947515033 | T135: 518622.8024 | U135: 0.5498497814 | V135: 7.077441926 | W135: 325975.2886 | X135: 0.2352581057 | Y135: 6.819256819 | Z135: 247130.1551 | AA135: 0.6282158821 | AB135: 4.957055987 | AC135: 163842.4639 | AD135: -0.9451909555 | AE135: 2.948785636 | AF135: 179887.0255 | AG135: -1.6726525 | AH135: 14.53241262 | AI135: 255876.6457 | AJ135: 0.2101520139 | AK135: 5.966484649
A136: 2015-05-01 | B136: 153759.6928 | C136: -1.684336513 | D136: 0.4162611458 | E136: 167540.119 | F136: -0.08258862904 | G136: 3.528975338 | H136: 171023.1853 | I136: 0.8229969851 | J136: 3.53778399 | K136: 185436.0554 | L136: 0.5187319116 | M136: 5.954430402 | N136: 194092.8565 | O136: 0.6604313736 | P136: 4.926137526 | Q136: 277679.2079 | R136: 0.08357878573 | S136: 8.257184482 | T136: 522822.0021 | U136: 0.8096828151 | V136: 5.157762581 | W136: 328325.643 | X136: 0.7210222674 | Y136: 6.566675726 | Z136: 248023.3185 | AA136: 0.3614141653 | AB136: 5.032006412 | AC136: 163292.2178 | AD136: -0.3358385005 | AE136: 3.285552758 | AF136: 175874.782 | AG136: -2.230424078 | AH136: 10.23480943 | AI136: 257025.9955 | AJ136: =AI136/AI135*100-100 -> 0.4491812272 | AK136: =AI136/AI124*100-100 -> 5.412489001
A137: 2015-06-01 | B137: 153087.9459 | C137: -0.4368809946 | D137: 1.022902813 | E137: 168030.5526 | F137: 0.2927260474 | G137: 3.793313955 | H137: 172201.0425 | I137: 0.6887119724 | J137: 4.317006964 | K137: 186875.0783 | L137: 0.77602107 | M137: 6.476154522 | N137: 195593.7867 | O137: 0.7733052467 | P137: 5.367816189 | Q137: 279203.8132 | R137: 0.549052719 | S137: 7.684404068 | T137: 529154.4812 | U137: 1.211211279 | V137: 4.09423988 | W137: 329494.6821 | X137: 0.3560608361 | Y137: 5.966073283 | Z137: 247508.5568 | AA137: -0.2075456978 | AB137: 4.933393398 | AC137: 162900.9689 | AD137: -0.2396004583 | AE137: 2.157227595 | AF137: 159901.045 | AG137: -9.082448788 | AH137: -0.3978011042 | AI137: 258406.6215 | AJ137: 0.5371542165 | AK137: 5.095048756
A138: 2015-07-01 | B138: 152464.0739 | C138: -0.4075252367 | D138: 1.181938809 | E138: 168545.1482 | F138: 0.3062511821 | G138: 3.470956667 | H138: 173154.5004 | I138: 0.5536888366 | J138: 4.716991242 | K138: 186809.0449 | L138: -0.03533556289 | M138: 5.45710551 | N138: 196093.7755 | O138: 0.2556261147 | P138: 4.472777272 | Q138: 280692.7694 | R138: 0.5332864903 | S138: 7.65557006 | T138: 531567.6804 | U138: 0.4560481399 | V138: 4.013839724 | W138: 331358.5834 | X138: 0.5656847931 | Y138: 5.356535003 | Z138: 249630.057 | AA138: 0.8571421765 | AB138: 5.24769368 | AC138: 164001.779 | AD138: 0.6757542005 | AE138: 2.840123314 | AF138: 161176.142 | AG138: 0.7974288223 | AH138: 0.1124736068 | AI138: 259602.6353 | AJ138: 0.4628417579 | AK138: 4.873393998
A139: 2015-08-01 | B139: 153816.8346 | C139: 0.8872652046 | D139: 2.29757204 | E139: 170409.8647 | F139: 1.10636024 | G139: 3.903849984 | H139: 174655.2343 | I139: 0.86670219 | J139: 4.930769582 | K139: 187327.9514 | L139: 0.2777737534 | M139: 5.097313517 | N139: 197020.5713 | O139: 0.4726288333 | P139: 4.122249274 | Q139: 285267.134 | R139: 1.62966957 | S139: 8.177495222 | T139: 540584.186 | U139: 1.696210278 | V139: 5.207828624 | W139: 333221.1626 | X139: 0.5621038135 | Y139: 5.292000353 | Z139: 250446.5862 | AA139: 0.3270957214 | AB139: 4.247016974 | AC139: 164458.3684 | AD139: 0.2784051304 | AE139: 1.75678256 | AF139: 161868.4699 | AG139: 0.4295473653 | AH139: 0.3188539575 | AI139: 262060.0662 | AJ139: 0.9466124603 | AK139: 5.06838127
A140: 2015-09-01 | B140: 153615.4135 | C140: -0.1309486897 | D140: 2.603242521 | E140: 170793.1306 | F140: 0.2249083119 | G140: 3.655381708 | H140: 175549.4072 | I140: 0.5119646011 | J140: 4.745062487 | K140: 189157.5476 | L140: 0.9766808675 | M140: 5.215910199 | N140: 197141.7932 | O140: 0.06152753535 | P140: 4.029066705 | Q140: 287593.1785 | R140: 0.815391676 | S140: 8.398239625 | T140: 546924.387 | U140: 1.172842484 | V140: 5.537498932 | W140: 336809.4608 | X140: 1.076851819 | Y140: 6.118110753 | Z140: 251314.9135 | AA140: 0.3467115508 | AB140: 3.981982683 | AC140: 165880.3922 | AD140: 0.8646709522 | AE140: 2.293966852 | AF140: 162682.1654 | AG140: 0.5026893595 | AH140: 0.8454568137 | AI140: 264071.3312 | AJ140: 0.7674824556 | AK140: 5.313573939
A141: 2015-10-01 | B141: 154414.7913 | C141: =B141/B140*100-100 -> 0.520376066 | D141: 2.114252637 | E141: 171760.2458 | F141: =E141/E140*100-100 -> 0.5662494867 | G141: 3.983408932 | H141: 177005.405 | I141: =H141/H140*100-100 -> 0.8293948328 | J141: 4.615724946 | K141: 191517.5259 | L141: =K141/K140*100-100 -> 1.247625758 | M141: 6.786408925 | N141: 198801.3064 | O141: =N141/N140*100-100 -> 0.8417866081 | P141: 4.149591748 | Q141: 290067.7257 | R141: =Q141/Q140*100-100 -> 0.8604331926 | S141: 8.694443391 | T141: 554837.7634 | U141: =T141/T140*100-100 -> 1.44688674 | V141: 6.867006001 | W141: 340843.4363 | X141: =W141/W140*100-100 -> 1.197702552 | Y141: 7.385322869 | Z141: 253044.2433 | AA141: 0.6881126905 | AB141: 4.405401958 | AC141: 166944.2658 | AD141: =AC141/AC140*100-100 -> 0.6413498653 | AE141: 1.846785653 | AF141: 163390.3319 | AG141: 0.435306771 | AH141: 1.024936756 | AI141: 266782.3339 | AJ141: 1.026617597 | AK141: 6.053330666
A142: 2015-11-01 | B142: 154788.2257 | C142: 0.2418385129 | D142: 3.002733326 | E142: 170504.0944 | F142: -0.7313400075 | G142: 3.777263938 | H142: 176879.7775 | I142: -0.07097378583 | J142: 4.074068124 | K142: 191661.0214 | L142: 0.07492548747 | M142: 6.740085992 | N142: 198621.8284 | O142: -0.09028010029 | P142: 3.905321284 | Q142: 288779.0541 | R142: -0.4442657581 | S142: 8.490563709 | T142: 557991.4592 | U142: 0.5683996255 | V142: 7.434576853 | W142: 342389.2469 | X142: 0.4535251206 | Y142: 7.469797962 | Z142: 254736.3356 | AA142: 0.6686942487 | AB142: 5.541784484 | AC142: 167454.3117 | AD142: 0.3055186445 | AE142: 2.488951045 | AF142: 164297.932 | AG142: 0.5554796714 | AH142: 2.273479729 | AI142: 267291.8613 | AJ142: 0.1909899257 | AK142: 6.264480509
A143: 2015-12-01 | B143: 156372.8278 | C143: 1.02372263 | D143: 2.933329329 | E143: 171038.237 | F143: 0.3132725481 | G143: 3.605061404 | H143: 177305.4583 | I143: 0.2406610701 | J143: 4.310291174 | K143: 190761.0854 | L143: -0.4695456204 | M143: 6.275434556 | N143: 200801.6463 | O143: 1.097471476 | P143: 4.773232875 | Q143: 291619.2144 | R143: 0.9835063449 | S143: 8.729343313 | T143: 563444.3347 | U143: 0.9772327855 | V143: 9.212976562 | W143: 345214.8494 | X143: 0.8252603099 | Y143: 8.083730922 | Z143: 257201.4444 | AA143: 0.9677099089 | AB143: 5.908559936 | AC143: 168184.3564 | AD143: 0.435966519 | AE143: 2.713902445 | AF143: 164660.7582 | AG143: 0.2208343058 | AH143: 2.091070936 | AI143: 269274.7592 | AJ143: 0.7418474413 | AK143: 6.886509549
A144: 2016-01-01 | B144: 158212.6789 | C144: 1.176579751 | D144: 3.414735801 | E144: 171313.8412 | F144: 0.1611360409 | G144: 2.952224977 | H144: 178509.6058 | I144: 0.6791372975 | J144: 4.885827186 | K144: 191556.9871 | L144: 0.4172243221 | M144: 5.740172473 | N144: 200695.5936 | O144: -0.05281463829 | P144: 4.092542255 | Q144: 295701.0981 | R144: 1.399730699 | S144: 8.91232562 | T144: 570470.1042 | U144: 1.246932324 | V144: 9.993070668 | W144: 348169.3384 | X144: 0.8558406257 | Y144: 8.154086876 | Z144: 258175.6565 | AA144: 0.3787739802 | AB144: 6.676212187 | AC144: 169547.6383 | AD144: 0.8105878111 | AE144: 3.307652636 | AF144: 164977.3929 | AG144: 0.1922952033 | AH144: 1.413578497 | AI144: 271443.4 | AJ144: 0.8053635777 | AK144: 7.107075766
A145: 2016-02-01 | B145: 160455.3481 | C145: 1.417502859 | D145: 2.686585628 | E145: 174206.358 | F145: 1.688431467 | G145: 4.092624717 | H145: 179402.8312 | I145: 0.5003794629 | J145: 5.607922271 | K145: 194220.8544 | L145: 1.39063959 | M145: 6.012311542 | N145: 203124.9373 | O145: 1.210461881 | P145: 5.149605557 | Q145: 303722.1088 | R145: 2.712540066 | S145: 10.30676509 | T145: 583224.8649 | U145: 2.235833315 | V145: 12.75314996 | W145: 357606.9117 | X145: 2.710627372 | Y145: 10.69538652 | Z145: 263320.9899 | AA145: 1.992958393 | AB145: 7.904099806 | AC145: 172227.4828 | AD145: 1.580584957 | AE145: 4.111009869 | AF145: 164124.3034 | AG145: -0.5170947905 | AH145: -2.007289432 | AI145: 277004.3694 | AJ145: 2.048666278 | AK145: 8.779282383
A146: 2016-03-01 | B146: 159971.7842 | C146: -0.3013697834 | D146: 1.893976268 | E146: 175207.4897 | F146: 0.5746815048 | G146: 4.466758778 | H146: 179570.8811 | I146: 0.09367180629 | J146: 5.642488218 | K146: 194618.417 | L146: 0.2046961566 | M146: 5.672027277 | N146: 202065.1316 | O146: -0.5217506322 | P146: 4.467370184 | Q146: 305068.8109 | R146: 0.4433994219 | S146: 10.38569224 | T146: 585992.7903 | U146: 0.4745897476 | V146: 13.61144701 | W146: 357805.2488 | X146: 0.05546230449 | Y146: 10.02276159 | Z146: 262572.0775 | AA146: -0.2844104641 | AB146: 6.915967759 | AC146: 171129.8979 | AD146: -0.6372878588 | AE146: 3.460598433 | AF146: 165935.2582 | AG146: 1.103404415 | AH146: -9.298773751 | AI146: 277389.4646 | AJ146: 0.1390213447 | AK146: 8.635316597
A147: 2016-04-01 | B147: 158841.5555 | C147: -0.7065175434 | D147: 1.565063181 | E147: 175700.179 | F147: 0.2812032929 | G147: 4.783899882 | H147: 178180.0037 | I147: -0.7745561544 | J147: 5.042143539 | K147: 194128.9031 | L147: -0.2515249478 | M147: 5.230836204 | N147: 202579.9674 | O147: 0.2547870448 | P147: 5.062016571 | Q147: 306604.5657 | R147: 0.5034125837 | S147: 10.50911026 | T147: 584735.9476 | U147: -0.2144809133 | V147: 12.74782845 | W147: 357614.4275 | X147: -0.05333104914 | Y147: 9.705993053 | Z147: 263226.8663 | AA147: 0.2493748768 | AB147: 6.513454882 | AC147: 170180.1097 | AD147: -0.5550100935 | AE147: 3.868133876 | AF147: 166197.5157 | AG147: 0.1580480913 | AH147: -7.610059545 | AI147: 277297.0906 | AJ147: -0.0333011822 | AK147: 8.371395083
A148: 2016-05-01 | B148: 156582.016 | C148: -1.422511567 | D148: 1.83554162 | E148: 174398.8436 | F148: -0.7406568166 | G148: 4.093780411 | H148: 178474.0284 | I148: 0.1650155367 | J148: 4.356627498 | K148: 193872.9874 | L148: -0.1318277333 | M148: 4.549779707 | N148: 203205.7696 | O148: 0.3089161369 | P148: 4.695130605 | Q148: 305086.7922 | R148: -0.4950263934 | S148: 9.870232793 | T148: 578925.6832 | U148: -0.9936560991 | V148: 10.73093344 | W148: 354565.4973 | X148: -0.8525747136 | Y148: 7.992020979 | Z148: 260385.0799 | AA148: -1.079595883 | AB148: 4.984112555 | AC148: 168705.6213 | AD148: -0.8664281907 | AE148: 3.315163178 | AF148: 166788.4956 | AG148: 0.3555888623 | AH148: -5.166338385 | AI148: 275418.6201 | AJ148: -0.6774216413 | AK148: 7.155939435
A149: 2016-06-01 | B149: 157294.5106 | C149: 0.4550296824 | D149: 2.747809212 | E149: 175040.5621 | F149: 0.3679602658 | G149: 4.171865977 | H149: 179247.9406 | I149: 0.4336273488 | J149: 4.092250583 | K149: 194947.0739 | L149: 0.5540155634 | M149: 4.319460762 | N149: 205059.7883 | O149: 0.9123848653 | P149: 4.839622827 | Q149: 307190.3627 | R149: 0.6894990667 | S149: 10.02369891 | T149: 574744.9638 | U149: -0.7221512985 | V149: 8.615722679 | W149: 357364.0839 | X149: 0.7893003164 | Y149: 8.458225079 | Z149: 262451.8177 | AA149: 0.7937236102 | AB149: 6.037472455 | AC149: 169555.4924 | AD149: 0.5037597992 | AE149: 4.085011601 | AF149: 165488.2987 | AG149: -0.7795483278 | AH149: 3.494194616 | AI149: 276421.502 | AJ149: 0.3641300212 | AK149: 6.971524327
A150: 2016-07-01 | B150: 156561.3324 | C150: =B150/B149*100-100 -> -0.4661181398 | D150: =B150/B138*100-100 -> 2.687359942 | E150: 174658.7821 | F150: =E150/E149*100-100 -> -0.2181094403 | G150: =E150/E138*100-100 -> 3.627297479 | H150: 179170.3407 | I150: =H150/H149*100-100 -> -0.04329195587 | J150: =H150/H138*100-100 -> 3.474261576 | K150: 196774.7275 | L150: =K150/K149*100-100 -> 0.9375126877 | M150: =K150/K138*100-100 -> 5.334689548 | N150: 206140.8248 | O150: =N150/N149*100-100 -> 0.527181126 | P150: =N150/N138*100-100 -> 5.123594172 | Q150: 307475.8321 | R150: =Q150/Q149*100-100 -> 0.09292915407 | S150: =Q150/Q138*100-100 -> 9.541771536 | T150: 572848.5451 | U150: =T150/T149*100-100 -> -0.329958311 | V150: =T150/T138*100-100 -> 7.765871821 | W150: 359508.5017 | X150: =W150/W149*100-100 -> 0.600065296 | Y150: =W150/W138*100-100 -> 8.495303814 | Z150: 263426.7507 | AA150: =Z150/Z149*100-100 -> 0.3714712309 | AB150: =Z150/Z138*100-100 -> 5.526855969 | AC150: 169152.4624 | AD150: =AC150/AC149*100-100 -> -0.2376979558 | AE150: =AC150/AC138*100-100 -> 3.14062654 | AF150: 165840.6907 | AG150: 0.2129407423 | AH150: 2.89406896 | AI150: 276889.3191 | AJ150: =AI150/AI149*100-100 -> 0.1692404756 | AK150: =AI150/AI138*100-100 -> 6.658901509
A151: 2016-08-01 | B151: 155963.083 | C151: =B151/B150*100-100 -> -0.3821181958 | D151: =B151/B139*100-100 -> 1.395327396 | E151: 175502.3343 | F151: =E151/E150*100-100 -> 0.4829715287 | G151: =E151/E139*100-100 -> 2.988365494 | H151: 178933.4041 | I151: =H151/H150*100-100 -> -0.1322409671 | J151: =H151/H139*100-100 -> 2.449494202 | K151: 197682.7529 | L151: =K151/K150*100-100 -> 0.461454312 | M151: =K151/K139*100-100 -> 5.527632948 | N151: 206518.4004 | O151: =N151/N150*100-100 -> 0.1831639397 | P151: =N151/N139*100-100 -> 4.820729697 | Q151: 309143.0485 | R151: =Q151/Q150*100-100 -> 0.5422267989 | S151: =Q151/Q139*100-100 -> 8.369668861 | T151: 573650.2754 | U151: =T151/T150*100-100 -> 0.1399550319 | V151: =T151/T139*100-100 -> 6.116732655 | W151: 361127.1497 | X151: =W151/W150*100-100 -> 0.4502391304 | Y151: =W151/W139*100-100 -> 8.374614286 | Z151: 264713.0643 | AA151: =Z151/Z150*100-100 -> 0.4883002863 | AB151: =Z151/Z139*100-100 -> 5.696415456 | AC151: 168639.1163 | AD151: =AC151/AC150*100-100 -> -0.3034813287 | AE151: =AC151/AC139*100-100 -> 2.542131442 | AF151: 166472.7057 | AG151: 0.3810976873 | AH151: 2.844430336 | AI151: 277720.279 | AJ151: =AI151/AI150*100-100 -> 0.300105442 | AK151: =AI151/AI139*100-100 -> 5.97581045
A152: 2016-09-01 | B152: 156018.8147 | C152: =B152/B151*100-100 -> 0.03573389904 | D152: =B152/B140*100-100 -> 1.564557356 | E152: 175601.1941 | F152: =E152/E151*100-100 -> 0.05632962069 | G152: =E152/E140*100-100 -> 2.815138657 | H152: 179558.8799 | I152: =H152/H151*100-100 -> 0.3495578527 | J152: =H152/H140*100-100 -> 2.283956803 | K152: 199127.3338 | L152: =K152/K151*100-100 -> 0.7307571697 | M152: =K152/K140*100-100 -> 5.270625632 | N152: 206784.1343 | O152: =N152/N151*100-100 -> 0.1286732292 | P152: =N152/N140*100-100 -> 4.891069025 | Q152: 311485.075 | R152: =Q152/Q151*100-100 -> 0.757586669 | S152: =Q152/Q140*100-100 -> 8.307532422 | T152: 582564.9077 | U152: =T152/T151*100-100 -> 1.554018644 | V152: =T152/T140*100-100 -> 6.516535286 | W152: 362327.6502 | X152: =W152/W151*100-100 -> 0.3324315283 | Y152: =W152/W140*100-100 -> 7.576446749 | Z152: 265082.6375 | AA152: =Z152/Z151*100-100 -> 0.1396127489 | AB152: =Z152/Z140*100-100 -> 5.478275762 | AC152: 170160.9815 | AD152: =AC152/AC151*100-100 -> 0.9024390295 | AE152: =AC152/AC140*100-100 -> 2.580527632 | AF152: 166669.1066 | AG152: 0.1179778398 | AH152: 2.45075493 | AI152: 279478.8361 | AJ152: =AI152/AI151*100-100 -> 0.6332116382 | AK152: =AI152/AI140*100-100 -> 5.834599631
A153: 2016-10-01 | B153: 157963.3644 | C153: =B153/B152*100-100 -> 1.246355864 | D153: =B153/B141*100-100 -> 2.298078457 | E153: 178431.0039 | F153: =E153/E152*100-100 -> 1.611498071 | G153: =E153/E141*100-100 -> 3.883761368 | H153: 181905.5508 | I153: =H153/H152*100-100 -> 1.306908872 | J153: =H153/H141*100-100 -> 2.768359446 | K153: 200328.4507 | L153: =K153/K152*100-100 -> 0.6031903377 | M153: =K153/K141*100-100 -> 4.600584045 | N153: 209122.0179 | O153: =N153/N152*100-100 -> 1.130591357 | P153: =N153/N141*100-100 -> 5.191470672 | Q153: 314060.5722 | R153: =Q153/Q152*100-100 -> 0.8268444785 | S153: =Q153/Q141*100-100 -> 8.271463662 | T153: 590451.8765 | U153: =T153/T152*100-100 -> 1.353835212 | V153: =T153/T141*100-100 -> 6.418833654 | W153: 363750.3077 | X153: =W153/W152*100-100 -> 0.3926439204 | Y153: =W153/W141*100-100 -> 6.720643259 | Z153: 266728.2684 | AA153: =Z153/Z152*100-100 -> 0.6207992148 | AB153: =Z153/Z141*100-100 -> 5.407759897 | AC153: 172369.7664 | AD153: =AC153/AC152*100-100 -> 1.298056012 | AE153: =AC153/AC141*100-100 -> 3.249887325 | AF153: 167759.8533 | AG153: 0.6544384246 | AH153: 2.674283926 | AI153: 282129.0381 | AJ153: =AI153/AI152*100-100 -> 0.9482657046 | AK153: =AI153/AI141*100-100 -> 5.752518875
A154: 2016-11-01 | B154: 159081.4999 | C154: =B154/B153*100-100 -> 0.7078448458 | D154: =B154/B142*100-100 -> 2.773643881 | E154: 179164.2728 | F154: =E154/E153*100-100 -> 0.4109537511 | G154: =E154/E142*100-100 -> 5.079161529 | H154: 183389.8723 | I154: =H154/H153*100-100 -> 0.8159847136 | J154: =H154/H142*100-100 -> 3.680519539 | K154: 201414.1423 | L154: =K154/K153*100-100 -> 0.5419557714 | M154: =K154/K142*100-100 -> 5.088734701 | N154: 209945.4725 | O154: =N154/N153*100-100 -> 0.3937675487 | P154: =N154/N142*100-100 -> 5.701107614 | Q154: 315535.098 | R154: =Q154/Q153*100-100 -> 0.4695036377 | S154: =Q154/Q142*100-100 -> 9.265230125 | T154: 597649.9307 | U154: =T154/T153*100-100 -> 1.21907551 | V154: =T154/T142*100-100 -> 7.107361751 | W154: 365121.4873 | X154: =W154/W153*100-100 -> 0.3769562827 | Y154: =W154/W142*100-100 -> 6.639297427 | Z154: 267224.8686 | AA154: =Z154/Z153*100-100 -> 0.1861820598 | AB154: =Z154/Z142*100-100 -> 4.90253303 | AC154: 173641.9944 | AD154: =AC154/AC153*100-100 -> 0.7380807649 | AE154: =AC154/AC142*100-100 -> 3.695146877 | AF154: 167804.2524 | AG154: 0.02646589066 | AH154: 2.134123298 | AI154: 283867.7888 | AJ154: =AI154/AI153*100-100 -> 0.6162962557 | AK154: =AI154/AI142*100-100 -> 6.20143365
A155: 2016-12-01 | B155: 160079.7653 | C155: 0.57973375 | D155: 2.351515608 | E155: 180755.7308 | F155: 0.7085958278 | G155: 5.513281925 | H155: 183909.7095 | I155: 0.2810401323 | J155: 3.738703637 | K155: 202195.5489 | L155: 0.3939025979 | M155: 6.0144307 | N155: 211945.3833 | O155: 0.9540851149 | P155: 5.548092203 | Q155: 316165.4033 | R155: 0.2021151138 | S155: 8.373359676 | T155: 600807.9173 | U155: 0.5365195792 | V155: 6.637158451 | W155: 368745.6368 | X155: 0.9968969135 | Y155: 6.817287473 | Z155: 271775.3683 | AA155: 1.708530734 | AB155: 5.651434521 | AC155: 174754.4433 | AD155: 0.6304425761 | AE155: 3.929221047 | AF155: 167683.1427 | AG155: -0.07217325173 | AH155: 1.835522012 | AI155: 285994.3728 | AJ155: 0.6304425761 | AK155: 3.929221047
A156: 2017-01-01 | B156: 160941.0248 | C156: 0.5282620609 | D156: 1.710050048 | E156: 180544.2809 | F156: -0.1355150913 | G156: 5.162652961 | H156: 184168.664 | I156: 0.1370430536 | J156: 3.176073343 | K156: 203948.842 | L156: 0.8723256434 | M156: 6.485129482 | N156: 213941.042 | O156: 0.9592699657 | P156: 6.617233854 | Q156: 319169.5 | R156: 0.9445038693 | S156: 7.894528316 | T156: 605792.1049 | U156: 0.855978728 | V156: 6.242034619 | W156: 373141.5893 | X156: 1.190297942 | Y156: 7.17519077 | Z156: 274312.874 | AA156: 0.7974147461 | AB156: 6.185403032 | AC156: 175431.805 | AD156: 0.3719932789 | AE156: 3.477795544 | AF156: 167587.4517 | AG156: -0.05706653008 | AH156: 1.582070564 | AI156: 288305.1739 | AJ156: 0.3719932789 | AK156: 3.477795544
A157: 2017-02-01 | B157: 161608.1813 | C157: 0.3932249964 | D157: 0.6992686604 | E157: 182142.2618 | F157: 1.033093153 | G157: 4.353477318 | H157: 183810.934 | I157: -0.2054338274 | J157: 2.476768718 | K157: 205106.834 | L157: 0.5736036514 | M157: 5.626942299 | N157: 215358.5638 | O157: 0.6603509017 | P157: 6.052284278 | Q157: 321624.5932 | R157: 0.7517324324 | S157: 5.914546407 | T157: 607681.4473 | U157: 0.345061428 | V157: 4.321951685 | W157: 376117.2054 | X157: 0.7828987805 | Y157: 5.173873646 | Z157: 276485.2285 | AA157: 0.6819777363 | AB157: 4.638696752 | AC157: 177201.0285 | AD157: 1.011739359 | AE157: 2.890499038 | AF157: 168675.2716 | AG157: 0.6491058036 | AH157: 2.772878882 | AI157: 290047.7858 | AJ157: 1.011739359 | AK157: 2.890499038
A158: 2017-03-01 | B158: 160948.1817 | C158: -0.3891536865 | D158: 0.6214240558 | E158: 182388.8566 | F158: 0.346457506 | G158: 3.926437226 | H158: 185113.3876 | I158: 0.7099696134 | J158: 3.096161683 | K158: 206476.2971 | L158: 0.6628670517 | M158: 6.105354 | N158: 216714.7701 | O158: 0.6169968427 | P158: 7.26506683 | Q158: 324674.2102 | R158: 0.9953692675 | S158: 6.469304137 | T158: 613119.4886 | U158: 0.8877923667 | V158: 4.683928225 | W158: 377236.0772 | X158: 0.2983510386 | Y158: 5.434362832 | Z158: 276328.9597 | AA158: -0.02748289499 | AB158: 4.988129245 | AC158: 176886.8889 | AD158: -0.1862608559 | AE158: 3.344021236 | AF158: 169148.875 | AG158: 0.2807782474 | AH158: 1.936669063 | AI158: 291500.7549 | AJ158: -0.1862608559 | AK158: 3.344021236
A159: 2017-04-01 | B159: 159789.5763 | C159: -0.7387121117 | D159: 0.5603648444 | E159: 181953.7695 | F159: -0.1456006716 | G159: 3.432112884 | H159: 185824.6652 | I159: 0.3929334318 | J159: 4.31010634 | K159: 206708.0418 | L159: 0.1162467696 | M159: 6.479440922 | N159: 215393.3508 | O159: -0.6198131659 | P159: 6.328753601 | Q159: 325041.9985 | R159: 0.1257640435 | S159: 6.061659876 | T159: 615125.4548 | U159: 0.3410292138 | V159: 5.2730592 | W159: 376441.1642 | X159: -0.1994445224 | Y159: 5.267410627 | Z159: 275499.2094 | AA159: -0.0362063545 | AB159: 4.570233315 | AC159: 174635.687 | AD159: -1.267760737 | AE159: 2.621104903 | AF159: 170901.724 | AG159: 1.036275867 | AH159: 2.830492533 | AI159: 291264.1633 | AJ159: -1.267760737 | AK159: 2.621104903
A160: 2017-05-01 | B160: 159683.854 | C160: -0.06013070137 | D160: 1.94616429 | E160: 181979.6257 | F160: -0.2110279242 | G160: 4.062335436 | H160: 186054.379 | I160: 0.1228177352 | J160: 4.240521619 | K160: 206621.2083 | L160: -0.04999892071 | M160: 6.560942699 | N160: 215371.3734 | O160: -0.01366300373 | P160: 5.987920183 | Q160: 326686.5996 | R160: 0.5393176179 | S160: 7.101116257 | T160: 613687.1473 | U160: -0.2473255557 | V160: 6.048470051 | W160: 375877.837 | X160: -0.1305778845 | Y160: 6.023191502 | Z160: 275747.2955 | AA160: 0.5055194895 | AB160: 6.43033209 | AC160: 173072.9746 | AD160: -0.9156177483 | AE160: 2.597037375 | AF160: 171447.0535 | AG160: 0.3190895126 | AH160: 2.793093061 | AI160: 291153.3861 | AJ160: -0.9156177483 | AK160: 2.597037375
A161: 2017-06-01 | B161: 159413.1915 | C161: -0.1604587316 | D161: 1.300127 | E161: 181883.3457 | F161: -0.1411375628 | G161: 3.653229563 | H161: 184167.8632 | I161: -1.016833623 | J161: 2.744493382 | K161: 207918.645 | L161: 0.6275193005 | M161: 6.641822706 | N161: 215545.0795 | O161: 0.08092025494 | P161: 5.116184514 | Q161: 327333.4164 | R161: 0.1815533809 | S161: 6.622599907 | T161: 605496.5655 | U161: -1.333916435 | V161: 5.403429384 | W161: 374495.5073 | X161: -0.3762533524 | Y161: 4.798431655 | Z161: 275396.2889 | AA161: -0.3889880769 | AB161: 5.220576316 | AC161: 173196.0192 | AD161: 0.06951929193 | AE161: 2.14777444 | AF161: 172541.4446 | AG161: 0.6383259827 | AH161: 4.262020923 | AI161: 290026.5354 | AJ161: 0.06951929193 | AK161: 2.14777444
A162: 2017-07-01 | B162: 159343.1073 | C162: -0.03147422998 | D162: 1.74661681 | E162: 183598.8508 | F162: 0.8894223565 | G162: 4.95341719 | H162: 184091.9206 | I162: -0.05476884269 | J162: 2.73737597 | K162: 207762.8855 | L162: -0.06994820018 | M162: 5.593469102 | N162: 215681.2431 | O162: 0.05711233265 | P162: 4.623138702 | Q162: 326403.8328 | R162: -0.275693621 | S162: 6.247042934 | T162: 599992.911 | U162: -0.9355633597 | V162: 4.738737348 | W162: 374565.2061 | X162: 0.0111255669 | Y162: 4.202971329 | Z162: 277539.0626 | AA162: 0.7824535861 | AB162: 5.763364367 | AC162: 175058.2789 | AD162: 1.075917513 | AE162: 3.468923893 | AF162: 172850.8052 | AG162: 0.1792964162 | AH162: 4.227017205 | AI162: 289885.1813 | AJ162: 1.075917513 | AK162: 3.468923893
A163: 2017-08-01 | B163: 158538.5417 | C163: -0.5069358604 | D163: 1.621755894 | E163: 184765.4184 | F163: 0.7331353742 | G163: 5.203755434 | H163: 186226.5718 | I163: 1.156932353 | J163: 4.080978074 | K163: 208716.6317 | L163: 0.4609184249 | M163: 5.589579964 | N163: 216962.3537 | O163: 0.5979825282 | P163: 5.058354127 | Q163: 326757.1403 | R163: 0.07228952224 | S163: 5.76698317 | T163: 597439.1262 | U163: -0.4581545792 | V163: 4.139424291 | W163: 374866.6321 | X163: 0.07483932006 | Y163: 3.820215056 | Z163: 277857.9264 | AA163: -0.150327972 | AB163: 5.159248716 | AC163: 176644.3904 | AD163: 0.9275711019 | AE163: 4.743683822 | AF163: 173400.984 | AG163: 0.318296894 | AH163: 4.161810314 | AI163: 290351.5275 | AJ163: 0.9275711019 | AK163: 4.743683822
A164: 2017-09-01 | B164: 159527.8956 | C164: 0.6144139676 | D164: 2.19760976 | E164: 185469.5 | F164: 0.3980681195 | G164: 5.620275568 | H164: 188750.3414 | I164: 1.348888131 | J164: 5.111667793 | K164: 209084.7033 | L164: 0.1675650206 | M164: 5.000801424 | N164: 218347.1925 | O164: 0.6418428416 | P164: 5.587050389 | Q164: 326321.3045 | R164: -0.1068402857 | S164: 4.855345936 | T164: 606680.6827 | U164: 1.56909708 | V164: 4.171541614 | W164: 374724.0082 | X164: -0.0366467369 | Y164: 3.43671524 | Z164: 280313.1921 | AA164: 0.8752175974 | AB164: 5.899287088 | AC164: 178983.6922 | AD164: 1.335560418 | AE164: 5.174796225 | AF164: 173738.8041 | AG164: 0.1948201801 | AH164: 4.241756368 | AI164: 292184.806 | AJ164: 1.335560418 | AK164: 5.174796225
A165: 2017-10-01 | B165: 160076.3867 | C165: 0.3557140564 | D165: 1.300905562 | E165: 186155.9907 | F165: 0.4304528304 | G165: 4.30831169 | H165: 188962.3895 | I165: 0.1179860296 | J165: 3.86788339 | K165: 209870.6941 | L165: 0.3627842328 | M165: 4.749851061 | N165: 219299.0463 | O165: 0.4448427049 | P165: 4.876755897 | Q165: 328983.2254 | R165: 0.7920874308 | S165: 4.789066221 | T165: 613261.8339 | U165: 1.174368521 | V165: 4.008967596 | W165: 373827.1393 | X165: -0.2314049449 | Y165: 2.789400645 | Z165: 281684.0008 | AA165: 0.4327385815 | AB165: 5.581687377 | AC165: 180467.9185 | AD165: 0.8168393393 | AE165: 4.672075087 | AF165: 173220.8367 | AG165: -0.2981299283 | AH165: 3.255238538 | AI165: 293542.5387 | AJ165: 0.8168393393 | AK165: 4.672075087
A166: 2017-11-01 | B166: 160863.6272 | C166: =B166/B165*100-100 -> 0.4917905482 | D166: =B166/B154*100-100 -> 1.12026059 | E166: 186683.5145 | F166: =E166/E165*100-100 -> 0.2833772457 | G166: =E166/E154*100-100 -> 4.196842111 | H166: 188903.3264 | I166: =H166/H165*100-100 -> -0.03125654157 | J166: =H166/H154*100-100 -> 3.006411452 | K166: 210777.2146 | L166: =K166/K165*100-100 -> 0.4319424122 | M166: =K166/K154*100-100 -> 4.648666776 | N166: 219859.9698 | O166: =N166/N165*100-100 -> 0.255780203 | P166: =N166/N154*100-100 -> 4.722415396 | Q166: 328352.7622 | R166: =Q166/Q165*100-100 -> -0.191639926 | S166: =Q166/Q154*100-100 -> 4.062199203 | T166: 620858.5813 | U166: =T166/T165*100-100 -> 1.238744538 | V166: =T166/T154*100-100 -> 3.883318545 | W166: 373140.8753 | X166: =W166/W165*100-100 -> -0.1835779069 | Y166: =W166/W154*100-100 -> 2.196361557 | Z166: 283947.9251 | AA166: =Z166/Z165*100-100 -> 0.8037106345 | AB166: =Z166/Z154*100-100 -> 6.258046495 | AC166: 180972.9984 | AD166: =AC166/AC165*100-100 -> 0.2798724179 | AE166: =AC166/AC154*100-100 -> 4.221907269 | AF166: 173640.6451 | AG166: 0.2423544454 | AH166: 3.478095799 | AI166: 294658.8439 | AJ166: =AI166/AI165*100-100 -> 0.3802873859 | AK166: =AI166/AI154*100-100 -> 3.801437006
A167: 2017-12-01 | B167: 160625.3316 | C167: -0.1481351949 | D167: 0.3408090132 | E167: 189090.3558 | F167: 1.289262912 | G167: 4.61098795 | H167: 189415.9303 | I167: 0.2713578123 | J167: 2.993980497 | K167: 211357.3778 | L167: 0.2752494709 | M167: 4.531172373 | N167: 220426.5763 | O167: 0.257712424 | P167: 4.00159363 | Q167: 329187.0553 | R167: 0.2540843673 | S167: 4.118620129 | T167: 616114.3702 | U167: -0.764137164 | V167: 2.547645002 | W167: 376073.3145 | X167: 0.7858799127 | Y167: 1.987190332 | Z167: 287488.1376 | AA167: 1.246782292 | AB167: 5.781528098 | AC167: 180704.3795 | AD167: -0.1484303864 | AE167: 3.404741045 | AF167: 175200.9898 | AG167: 0.898605688 | AH167: 4.483364895 | AI167: 295560.9622 | AJ167: 0.3061568495 | AK167: 3.345027129
A168: 2018-01-01 | B168: 163997.415 | C168: 2.09934718 | D168: 1.899074634 | E168: 189487.7776 | F168: 0.2101756367 | G168: 4.953630593 | H168: 190983.8662 | I168: 0.8277740156 | J168: 3.700522172 | K168: 215551.2458 | L168: 1.984254394 | M168: 5.688879475 | N168: 223220.9539 | O168: 1.267713562 | P168: 4.337602458 | Q168: 330586.2141 | R168: 0.4250345804 | S168: 3.577006588 | T168: 612917.7693 | U168: -0.5188323779 | V168: 1.176255739 | W168: 380329.0854 | X168: 1.131633305 | Y168: 1.926211468 | Z168: 287367.6587 | AA168: -0.04190741288 | AB168: 4.759085687 | AC168: 182175.5734 | AD168: 0.8141440087 | AE168: 3.844096768 | AF168: 176958.6761 | AG168: 1.003239952 | AH168: 5.591841355 | AI168: 297174.388 | AJ168: 0.5458859871 | AK168: 3.076328467
A169: 2018-02-01 | B169: 166427.7335 | C169: 1.481924932 | D169: 2.982245185 | E169: 190144.3079 | F169: 0.3464763207 | G169: 4.393294606 | H169: 191370.4129 | I169: 0.2023975809 | J169: 4.112638324 | K169: 217512.7723 | L169: 0.910004728 | M169: 6.048525077 | N169: 225236.4638 | O169: 0.9029214603 | P169: 4.586722641 | Q169: 333960.3578 | R169: 1.020654683 | S169: 3.835454379 | T169: 606550.674 | U169: -1.03881722 | V169: -0.1860799361 | W169: 383654.2286 | X169: 0.8742805432 | Y169: 2.003902774 | Z169: 287975.1801 | AA169: 0.2114090932 | AB169: 4.155719889 | AC169: 185944.1957 | AD169: 2.068675954 | AE169: 4.934038643 | AF169: 180662.2579 | AG169: 2.092907731 | AH169: 7.106546357 | AI169: 298313.4397 | AJ169: 0.3832940169 | AK169: 2.849755883
A170: 2018-03-01 | B170: 168072.6765 | C170: 0.9883826974 | D170: 4.426576766 | E170: 189251.1413 | F170: -0.4697309303 | G170: 3.762447316 | H170: 190969.0519 | I170: -0.2097299092 | J170: 3.163285192 | K170: 218065.5888 | L170: 0.2541535795 | M170: 5.612892111 | N170: 224922.1915 | O170: -0.1395299287 | P170: 3.787199856 | Q170: 335482.6298 | R170: 0.4558241625 | S170: 3.329004651 | T170: 601297.515 | U170: -0.8660709165 | V170: -1.928167958 | W170: 383669.4597 | X170: 0.003970026383 | Y170: 1.705399583 | Z170: 285188.1093 | AA170: -0.9678163111 | AB170: 3.206015636 | AC170: 183818.4916 | AD170: -1.143194638 | AE170: 3.918663894 | AF170: 181815.5213 | AG170: 0.6383532529 | AH170: 7.488460265 | AI170: 297460.7034 | AJ170: -0.285852442 | AK170: 2.044573952
A171: 2018-04-01 | B171: 165455.4374 | C171: -1.557206746 | D171: 3.545826486 | E171: 188382.0039 | F171: -0.4592508196 | G171: 3.532894296 | H171: 190674.1868 | I171: -0.1544046709 | J171: 2.609729753 | K171: 216977.1963 | L171: -0.4991124855 | M171: 4.967951086 | N171: 225446.8614 | O171: 0.2332672985 | P171: 4.667512058 | Q171: 335184.0028 | R171: -0.08901413066 | S171: 3.120213514 | T171: 599119.0421 | U171: -0.362295356 | V171: -2.602137916 | W171: 383260.3568 | X171: -0.1066290151 | Y171: 1.811489609 | Z171: 284891.3246 | AA171: -0.1040663197 | AB171: 3.409125984 | AC171: 181243.7117 | AD171: -1.400718646 | AE171: 3.783891386 | AF171: 182091.9167 | AG171: 0.1520196514 | AH171: 6.547735379 | AI171: 296660.3491 | AJ171: -0.2690621909 | AK171: 1.852677564
A172: 2018-05-01 | B172: 163621.9985 | C172: -1.108116464 | D172: 2.466213331 | E172: 186833.8408 | F172: -0.8218211231 | G172: 2.667449771 | H172: 190027.6925 | I172: -0.3390570366 | J172: 2.135565699 | K172: 216511.3204 | L172: -0.2147118775 | M172: 4.786591014 | N172: 224716.9553 | O172: -0.3237597507 | P172: 4.339286945 | Q172: 334217.8024 | R172: -0.2882597156 | S172: 2.30532955 | T172: 601780.1937 | U172: 0.4441774386 | V172: -1.940231864 | W172: 380856.4308 | X172: -0.6272305435 | Y172: 1.324524433 | Z172: 284483.7937 | AA172: -0.1430478438 | AB172: 3.168298763 | AC172: 176960.4059 | AD172: -2.363285184 | AE172: 2.246122696 | AF172: 180580.1923 | AG172: -0.8301984895 | AH172: 5.327089992 | AI172: 295704.6959 | AJ172: -0.3221371681 | AK172: 1.563200016
A173: 2018-06-01 | B173: 163284.3883 | C173: -0.2063354261 | D173: 2.428404313 | E173: 187041.1502 | F173: 0.1109592273 | G173: 2.835776081 | H173: 191010.5542 | I173: 0.5172202329 | J173: 3.715464179 | K173: 217577.7638 | L173: 0.4925577778 | M173: 4.645624136 | N173: 226029.2795 | O173: 0.5839898793 | P173: 4.864040532 | Q173: 335365.4898 | R173: 0.3433950708 | S173: 2.453789642 | T173: 601715.5761 | U173: -0.0107377422 | V173: -0.6244444013 | W173: 380451.3166 | X173: -0.1063692571 | Y173: 1.590355344 | Z173: 283693.1746 | AA173: -0.2779135542 | AB173: 3.012707898 | AC173: 179476.5742 | AD173: 1.421882056 | AE173: 3.626269811 | AF173: 179605.9212 | AG173: -0.5395226728 | AH173: 4.094365082 | AI173: 296136.9271 | AJ173: 0.1461698928 | AK173: 2.106838866
A174: 2018-07-01 | B174: 161779.8398 | C174: -0.9214282937 | D174: 1.529236171 | E174: 187741.4795 | F174: 0.3744252944 | G174: 2.25634784 | H174: 191924.8161 | I174: 0.4786446863 | J174: 4.254882813 | K174: 216442.2098 | L174: -0.5219072021 | M174: 4.177514297 | N174: 224667.3941 | O174: -0.602526129 | P174: 4.166403564 | Q174: 333537.0994 | R174: -0.5451933663 | S174: 2.185411412 | T174: 596210.1929 | U174: -0.9149477565 | V174: -0.6304604638 | W174: 378226.2508 | X174: -0.5848490327 | Y174: 0.9774118365 | Z174: 284334.4957 | AA174: 0.226061509 | AB174: 2.448460069 | AC174: 181840.0845 | AD174: 1.316890712 | AE174: 3.874027339 | AF174: 179397.3812 | AG174: -0.1161098011 | AH174: 3.787414207 | AI174: 295042.2643 | AJ174: -0.3696475231 | AK174: 1.779008858
A175: 2018-08-01 | B175: 161842.1416 | C175: 0.0385102732 | D175: 2.083783473 | E175: 189307.0858 | F175: 0.8339160013 | G175: 2.458072191 | H175: 192753.1094 | I175: 0.431571747 | J175: 3.504622101 | K175: 217991.8224 | L175: 0.7159475263 | M175: 4.443915483 | N175: 226496.8663 | O175: 0.8143025018 | P175: 4.394546994 | Q175: 333494.1633 | R175: -0.0128729585 | S175: 2.061782953 | T175: 594214.2176 | U175: -0.3347771178 | V175: -0.5397886438 | W175: 379037.5968 | X175: 0.2145134114 | Y175: 1.112652965 | Z175: 286210.404 | AA175: 0.6597540411 | AB175: 3.006024588 | AC175: 184100.6737 | AD175: 1.243174314 | AE175: 4.221069986 | AF175: 179375.5367 | AG175: -0.01217657955 | AH175: 3.445512597 | AI175: 295883.6685 | AJ175: 0.2851809074 | AK175: 1.905325267
A176: 2018-09-01 | B176: 161662.5423 | C176: -0.1109719015 | D176: 1.338102504 | E176: 189388.3144 | F176: 0.0429084103 | G176: 2.112915822 | H176: 192226.5077 | I176: -0.273200106 | J176: 1.841674159 | K176: 219398.8104 | L176: 0.6454315596 | M176: 4.932980243 | N176: 227993.3233 | O176: 0.6606965762 | P176: 4.417794761 | Q176: 332393.2923 | R176: -0.330102033 | S176: 1.860739005 | T176: 599578.3727 | U176: 0.9027308571 | V176: -1.170683399 | W176: 378921.5334 | X176: -0.03062055489 | Y176: 1.120164467 | Z176: 287891.6147 | AA176: 0.5874037573 | AB176: 2.703555444 | AC176: 184988.2455 | AD176: 0.4821121547 | AE176: 3.354804664 | AF176: 180931.6947 | AG176: 0.8675419196 | AH176: 4.14005993 | AI176: 296762.15 | AJ176: 0.2969009804 | AK176: 1.566592079
A177: 2018-10-01 | B177: 163351.8913 | C177: 1.044984775 | D177: 2.046213461 | E177: 190995.0844 | F177: 0.848399761 | G177: 2.599483197 | H177: 191868.3834 | I177: -0.1863032764 | J177: 1.537868926 | K177: 221568.67 | L177: 0.9890024364 | M177: 5.573896833 | N177: 229084.4057 | O177: 0.4785589421 | P177: 4.462107614 | Q177: 334422.68 | R177: 0.6105381078 | S177: 1.653413966 | T177: 607748.3215 | U177: 1.362615661 | V177: -0.8990470383 | W177: 379546.3191 | X177: 0.1648852543 | Y177: 1.52989956 | Z177: 289289.467 | AA177: 0.4855481035 | AB177: 2.699999326 | AC177: 186625.7333 | AD177: 0.8851847995 | AE177: 3.412138203 | AF177: 182332.1968 | AG177: 0.7740501746 | AH177: 5.259967712 | AI177: 298734.4366 | AJ177: 0.6646018071 | AK177: 1.768703778
A178: 2018-11-01 | B178: 162695.4935 | C178: -0.4018305467 | D178: 1.138769694 | E178: 191108.1785 | F178: 0.05921307377 | G178: 2.370141816 | H178: 191867.9411 | I178: -0.0002305076761 | J178: 1.569381949 | K178: 220861.939 | L178: -0.3189670236 | M178: 4.784542038 | N178: 228643.4847 | O178: -0.1924710015 | P178: 3.9950496 | Q178: 331923.6306 | R178: -0.7472727167 | S178: 1.087509767 | T178: 607456.4304 | U178: -0.04802828681 | V178: -2.158647933 | W178: 377822.7695 | X178: -0.4541078559 | Y178: 1.254725616 | Z178: 288375.8464 | AA178: -0.315815358 | AB178: 1.559413152 | AC178: 186851.7012 | AD178: 0.1210807915 | AE178: 3.248386682 | AF178: 182977.4667 | AG178: 0.3538979632 | AH178: 5.377094521 | AI178: 297922.6039 | AJ178: -0.271757328 | AK178: 1.107640266
A179: 2018-12-01 | B179: 162374.6617 | C179: -0.1971977349 | D179: 1.089074829 | E179: 192697.7857 | F179: 0.8317839794 | G179: 1.90778103 | H179: 194190.8973 | I179: 1.210705747 | J179: 2.520889849 | K179: 220387.9357 | L179: -0.214615233 | M179: 4.272648536 | N179: 229039.1584 | O179: 0.173052696 | P179: 3.907233986 | Q179: 332230.9347 | R179: 0.09258277079 | S179: 0.924665586 | T179: 607083.2955 | U179: -0.06142578435 | V179: -1.465811396 | W179: 377895.6348 | X179: 0.01928558053 | Y179: 0.4845651642 | Z179: 289475.5213 | AA179: 0.3813339025 | AB179: 0.6912924222 | AC179: 187255.8733 | AD179: 0.2163063195 | AE179: 3.625531244 | AF179: 182090.3769 | AG179: -0.484808199 | AH179: 3.93227638 | AI179: 298469.4497 | AJ179: 0.1835529692 | AK179: 0.9840567349
A180: 2019-01-01 | B180: 163357.2677 | C180: 0.6051474077 | D180: -0.3903398466 | E180: 192195.2278 | F180: -0.2608010761 | G180: 1.428825761 | H180: 195288.5014 | I180: 0.5652191448 | J180: 2.253926116 | K180: 220433.4206 | L180: 0.02063856011 | M180: 2.264971715 | N180: 231044.4172 | O180: 0.8755091512 | P180: 3.504806855 | Q180: 332993.2184 | R180: 0.2294439296 | S180: 0.7281018396 | T180: 606666.0162 | U180: -0.06873510203 | V180: -1.019998677 | W180: 379900.6443 | X180: 0.5305722959 | Y180: -0.1126500904 | Z180: 288547.228 | AA180: -0.3206810836 | AB180: 0.4104739264 | AC180: 187334.0727 | AD180: 0.04176072706 | AE180: 2.831608638 | AF180: 181652.8614 | AG180: -0.2402738675 | AH180: 2.652701368 | AI180: 299042.3644 | AJ180: 0.1919508675 | AK180: 0.628579195
A181: 2019-02-01 | B181: 165344.6774 | C181: =B181/B180*100-100 -> 1.216603177 | D181: -0.6507666156 | E181: 193451.8821 | F181: =E181/E180*100-100 -> 0.6538426214 | G181: 1.739507352 | H181: 195959.0746 | I181: =H181/H180*100-100 -> 0.3433756341 | J181: 2.397790532 | K181: 222831.6444 | L181: =K181/K180*100-100 -> 1.087958359 | M181: 2.445314814 | N181: 231702.5273 | O181: =N181/N180*100-100 -> 0.2848413838 | P181: 2.870788949 | Q181: 335774.4943 | R181: =Q181/Q180*100-100 -> 0.8352350037 | S181: 0.5432191304 | T181: 606509.3911 | U181: =T181/T180*100-100 -> -0.02581734855 | V181: -0.006806172832 | W181: 381838.4914 | X181: =W181/W180*100-100 -> 0.5100931242 | Y181: -0.473274384 | Z181: 288934.8918 | AA181: =Z181/Z180*100-100 -> 0.1343501884 | AB181: 0.3332619481 | AC181: 188529.8054 | AD181: =AC181/AC180*100-100 -> 0.638288958 | AE181: 1.390529929 | AF181: 180926.0535 | AG181: -0.4001081102 | AH181: 0.146015876 | AI181: 300360.1829 | AJ181: 0.4406795464 | AK181: 0.6861049453
A182: 2019-03-01 | B182: 166944.6957 | C182: 0.9676865712 | D182: -0.6711268215 | E182: 193017.8784 | F182: -0.2243471344 | G182: 1.990337845 | H182: 195004.0337 | I182: -0.4873675228 | J182: 2.112898246 | K182: 223824.1804 | L182: 0.4454196906 | M182: 2.640761249 | N182: 230356.7196 | O182: -0.5808343054 | P182: 2.416181341 | Q182: 334172.8068 | R182: -0.4770128542 | S182: -0.3904294396 | T182: 603457.5702 | U182: -0.5031778479 | V182: 0.3592323498 | W182: 380907.3933 | X182: -0.2438460539 | Y182: -0.7199078228 | Z182: 288374.6201 | AA182: -0.1939093159 | AB182: 1.117336482 | AC182: 188049.7001 | AD182: -0.2546575043 | AE182: 2.301840491 | AF182: 182477.6176 | AG182: 0.8575680673 | AH182: 0.3641582598 | AI182: 299500.6933 | AJ182: -0.2861529881 | AK182: 0.6858014696
A183: 2019-04-01 | B183: 165208.059 | C183: -1.040246684 | D183: -0.1495136207 | E183: 193452.3357 | F183: 0.2250865702 | G183: 2.691516028 | H183: 194543.3091 | I183: -0.2362641407 | J183: 2.029179904 | K183: 224149.069 | L183: 0.1451534735 | M183: 3.305357819 | N183: 229205.3831 | O183: -0.4998059027 | P183: 1.667143024 | Q183: 333564.0098 | R183: -0.1821802891 | S183: -0.4833145307 | T183: 603837.3511 | U183: 0.06293414725 | V183: 0.7875411579 | W183: 378041.3343 | X183: -0.7524293491 | Y183: -1.361743373 | Z183: 287976.5884 | AA183: -0.1380259213 | AB183: 1.082961665 | AC183: 187121.7049 | AD183: -0.493483995 | AE183: 3.24314324 | AF183: 183458.3375 | AG183: 0.537446701 | AH183: 0.7504017079 | AI183: 298742.1857 | AJ183: -0.2532573804 | AK183: 0.7017576015
A184: 2019-05-01 | B184: 165428.7148 | C184: 0.1335623496 | D184: 1.104201336 | E184: 192395.693 | F184: -0.5462031486 | G184: 2.976897631 | H184: 194047.4758 | I184: -0.2548703671 | J184: 2.115367096 | K184: 222797.3469 | L184: -0.6030460166 | M184: 2.903324634 | N184: 228780.9518 | O184: -0.1851750674 | P184: 1.808495755 | Q184: 333878.3611 | R184: 0.09424015484 | S184: -0.1015629016 | T184: 608347.4171 | U184: 0.7469007962 | V184: 1.091299361 | W184: 376816.1439 | X184: -0.3240889902 | Y184: -1.060842487 | Z184: 287698.3462 | AA184: -0.09661972113 | AB184: 1.129959816 | AC184: 185534.9339 | AD184: -0.8479887513 | AE184: 4.845449984 | AF184: 184252.6184 | AG184: 0.4329489135 | AH184: 2.033681561 | AI184: 298596.0993 | AJ184: -0.04890047942 | AK184: 0.9778009878
A185: 2019-06-01 | B185: 163574.6466 | C185: -1.120765605 | D185: 0.1777624353 | E185: 191647.8412 | F185: -0.3887050138 | G185: 2.462929192 | H185: 194197.9285 | I185: 0.07753393025 | J185: 1.668690118 | K185: 221318.2052 | L185: -0.6638955645 | M185: 1.719128547 | N185: 228492.4189 | O185: -0.1261175397 | P185: 1.089743514 | Q185: 335206.9423 | R185: 0.3979237336 | S185: -0.04727603801 | T185: 607635.3298 | U185: -0.1170527337 | V185: 0.9838126132 | W185: 377590.7939 | X185: 0.2055776971 | Y185: -0.7518761534 | Z185: 286699.9269 | AA185: -0.3470368485 | AB185: 1.059860641 | AC185: 186095.1803 | AD185: 0.3019627656 | AE185: 3.68772702 | AF185: 184490.6362 | AG185: 0.1291801338 | AH185: 2.719684796 | AI185: 298401.1211 | AJ185: -0.06529831553 | AK185: 0.764576711
A186: 2019-07-01 | B186: 164362.923 | C186: 0.4819062341 | D186: 1.596665741 | E186: 191773.7674 | F186: 0.0657070488 | G186: 2.147787405 | H186: 194245.8183 | I186: 0.02466033674 | J186: 1.209328884 | K186: 220808.0711 | L186: -0.2304980274 | M186: 2.017102567 | N186: 228105.2808 | O186: -0.1694315157 | P186: 1.530211684 | Q186: 333798.6215 | R186: -0.4201347262 | S186: 0.07840870413 | T186: 600681.6707 | U186: -1.144380311 | V186: 0.7499834573 | W186: 377298.0717 | X186: -0.07752365202 | Y186: -0.2454031288 | Z186: 287941.9412 | AA186: 0.433210524 | AB186: 1.268732967 | AC186: 188188.5233 | AD186: 1.124877621 | AE186: 3.491220782 | AF186: 184363.0162 | AG186: -0.06917422084 | AH186: 2.76795292 | AI186: 297679.436 | AJ186: -0.2418506534 | AK186: 0.8938284616
A187: 2019-08-01 | B187: 164749.1877 | C187: 0.2350071434 | D187: 1.79622316 | E187: 193371.6117 | F187: 0.8331923244 | G187: 2.147054299 | H187: 195819.5469 | I187: 0.810173704 | J187: 1.590862792 | K187: 221113.316 | L187: 0.1382398787 | M187: 1.431931482 | N187: 228765.7046 | O187: 0.2895258921 | P187: 1.001708496 | Q187: 331187.4672 | R187: -0.7822543798 | S187: -0.6916751117 | T187: 596580.1444 | U187: -0.6828119589 | V187: 0.39816059 | W187: 376800.8488 | X187: -0.1317851692 | Y187: -0.5901124341 | Z187: 290137.1444 | AA187: 0.7623770111 | AB187: 1.371976793 | AC187: 188736.3421 | AD187: 0.2911010527 | AE187: 2.518007282 | AF187: 183682.6345 | AG187: -0.36904457 | AH187: 2.401162329 | AI187: 297595.3302 | AJ187: -0.02825383453 | AK187: 0.5784914318
A188: 2019-09-01 | B188: 166113.2249 | C188: 0.827947771 | D188: 2.753069756 | E188: 195134.5459 | F188: 0.9116820276 | G188: 3.03410034 | H188: 197818.8984 | I188: 1.021017348 | J188: 2.909271363 | K188: 223523.4779 | L188: 1.090012122 | M188: 1.879986246 | N188: 231177.129 | O188: 1.05410224 | P188: 1.396446914 | Q188: 331101.0572 | R188: -0.02609097217 | S188: -0.3887669136 | T188: 602773.7576 | U188: 1.038186273 | V188: 0.5329386533 | W188: 376376.4016 | X188: -0.1126449613 | Y188: -0.6716777801 | Z188: 291215.6972 | AA188: 0.371738967 | AB188: 1.154629836 | AC188: 190287.2525 | AD188: 0.8217338398 | AE188: 2.864510133 | AF188: 183919.9552 | AG188: 0.1292014903 | AH188: 1.65159595 | AI188: 299289.0146 | AJ188: 0.5691233084 | AK188: 0.8514780427
A189: 2019-10-01 | B189: 167514.8961 | C189: 0.8438047396 | D189: 2.548488932 | E189: 196126.3873 | F189: 0.5082859162 | G189: 2.686615163 | H189: 199545.937 | I189: 0.8730402666 | J189: 4.001468884 | K189: 224442.4245 | L189: 0.411118593 | M189: 1.297003975 | N189: 232730.4007 | O189: 0.6718967723 | P189: 1.591550917 | Q189: 331752.5683 | R189: 0.1967710769 | S189: -0.7984242411 | T189: 610742.7796 | U189: 1.322058544 | V189: 0.4927135057 | W189: 377877.3441 | X189: 0.3987876063 | Y189: -0.4397289476 | Z189: 292551.2169 | AA189: 0.4586015565 | AB189: 1.127503866 | AC189: 191777.0748 | AD189: 0.7829333412 | AE189: 2.760252544 | AF189: 184369.7344 | AG189: 0.2445515808 | AH189: 1.117486454 | AI189: 301265.1938 | AJ189: 0.6602912535 | AK189: 0.847159487
A190: 2019-11-01 | B190: 167001.4071 | C190: -0.3065333475 | D190: 2.646609046 | E190: 196283.6246 | F190: 0.08017136953 | G190: 2.708123792 | H190: 200425.5768 | I190: 0.4408206826 | J190: 4.460169658 | K190: 224660.1339 | L190: 0.09700012074 | M190: 1.719714537 | N190: 231733.7938 | O190: -0.4282237885 | P190: 1.351584138 | Q190: 332527.7706 | R190: 0.2336688079 | S190: 0.1820117391 | T190: 617634.9193 | U190: 1.12848485 | V190: 1.675591598 | W190: 379623.0146 | X190: 0.4619675079 | Y190: 0.4764787388 | Z190: 291107.29 | AA190: -0.4935638111 | AB190: 0.9471818076 | AC190: 193585.034 | AD190: 0.9427400025 | AE190: 3.603570528 | AF190: 185751.2989 | AG190: 0.7493445198 | AH190: 1.515941947 | AI190: 302319.2293 | AJ190: 0.3498696742 | AK190: 1.475760932
A191: 2019-12-01 | B191: 166724.5929 | C191: -0.1657556543 | D191: 2.678947045 | E191: 197259.9228 | F191: 0.4973915857 | G191: 2.367508819 | H191: 200707.8676 | I191: 0.1408457083 | J191: 3.355960767 | K191: 224474.2289 | L191: -0.08274941773 | M191: 1.854136558 | N191: 232495.2069 | O191: 0.3285723546 | P191: 1.508933478 | Q191: 331150.8444 | R191: -0.4140785495 | S191: -0.3251022641 | T191: 618332.7652 | U191: 0.1129867952 | V191: 1.853035617 | W191: 381038.5661 | X191: 0.3728834655 | Y191: 0.8316929374 | Z191: 291873.71 | AA191: 0.2632775148 | AB191: 0.8284599381 | AC191: 194206.1702 | AD191: 0.3208596106 | AE191: 3.711657672 | AF191: 186279.0215 | AG191: 0.2841017388 | AH191: 2.300310797 | AI191: 302787.9338 | AJ191: 0.1550362875 | AK191: 1.44687643
A192: 2020-01-01 | B192: 166420.9294 | C192: -0.1821347583 | D192: 1.875436431 | E192: 197427.6525 | F192: 0.08502980087 | G192: 2.722452971 | H192: 200832.3769 | I192: 0.06203506341 | J192: 2.838813043 | K192: 225155.9883 | L192: 0.303713853 | M192: 2.14240096 | N192: 233654.7807 | O192: 0.4987516877 | P192: 1.129810253 | Q192: 332790.7813 | R192: 0.4952235358 | S192: -0.06079315459 | T192: 620781.2995 | U192: 0.3959897297 | V192: 2.326697537 | W192: 382823.4885 | X192: 0.4684361597 | Y192: 0.7693706839 | Z192: 290330.2033 | AA192: -0.5288269113 | AB192: 0.6179145263 | AC192: 194403.631 | AD192: 0.1016758548 | AE192: 3.773770705 | AF192: 186609.9287 | AG192: 0.1776405872 | AH192: 2.728868295 | AI192: 303569.8977 | AJ192: 0.258254638 | AK192: 1.51401067
A193: 2020-02-01 | B193: 168601.1007 | C193: 1.31003429 | D193: 1.9694757 | E193: 198880.3662 | F193: 0.735820798 | G193: 2.80611594 | H193: 201987.4365 | I193: 0.5751361797 | J193: 3.076337237 | K193: 227187.6257 | L193: 0.9023244071 | M193: 1.954830671 | N193: 236047.5284 | O193: 1.024052543 | P193: 1.875249776 | Q193: 334753.7405 | R193: 0.5898478373 | S193: -0.3039997954 | T193: 618423.7075 | U193: -0.3797781857 | V193: 1.964407568 | W193: 385996.5992 | X193: 0.8288704417 | Y193: 1.088970325 | Z193: 293374.9489 | AA193: 1.048718167 | AB193: 1.53669813 | AC193: 196447.8197 | AD193: 1.051517732 | AE193: 4.199874015 | AF193: 186592.8039 | AG193: -0.009176778754 | AH193: 3.132080914 | AI193: 305323.1059 | AJ193: 0.5775303186 | AK193: 1.652323859
A194: 2020-03-01 | B194: 166711.2682 | C194: -1.120889763 | D194: -0.1398232352 | E194: 196004.8028 | F194: -1.445875958 | G194: 1.547485902 | H194: 199164.2601 | I194: -1.397699024 | J194: 2.133405325 | K194: 225617.8895 | L194: -0.6909426723 | M194: 0.8013919913 | N194: 232198.3773 | O194: -1.630667843 | P194: 0.7994808019 | Q194: 334977.991 | R194: 0.06698969211 | S194: 0.2409484574 | T194: 616969.1861 | U194: -0.2351981942 | V194: 2.23903329 | W194: 388683.436 | X194: 0.6960778435 | Y194: 2.041452304 | Z194: 295389.2867 | AA194: 0.6866086755 | AB194: 2.432484037 | AC194: 193974.484 | AD194: -1.259029314 | AE194: 3.150647922 | AF194: 186032.4283 | AG194: -0.3003200474 | AH194: 1.948080417 | AI194: 304513.5579 | AJ194: -0.2651446894 | AK194: 1.673740568
A195: 2020-04-01 | B195: 165248.8075 | C195: -0.8772416716 | D195: 0.02466494099 | E195: 193694.7628 | F195: -1.178562987 | G195: 0.1253161788 | H195: 196045.4904 | I195: -1.565928403 | J195: 0.7721577941 | K195: 223279.5332 | L195: -1.036423271 | M195: -0.3879274758 | N195: 228731.4656 | O195: -1.493081807 | P195: -0.2067654304 | Q195: 330521.6742 | R195: -1.330331226 | S195: -0.9120695034 | T195: 605933.2213 | U195: -1.788738417 | V195: 0.3470918381 | W195: 386166.0295 | X195: -0.6476752728 | Y195: 2.149155274 | Z195: 293328.9621 | AA195: -0.6974946846 | AB195: 1.858614196 | AC195: 191705.9695 | AD195: -1.169491199 | AE195: 2.449883953 | AF195: 185506.0535 | AG195: -0.2829479014 | AH195: 1.116174916 | AI195: 300883.7175 | AJ195: -1.192012737 | AK195: 0.7168494844
A196: 2020-05-01 | B196: 162001.0414 | C196: -1.965379455 | D196: -2.071994219 | E196: 192098.9924 | F196: -0.8238583123 | G196: -0.1542137328 | H196: 193968.3797 | I196: -1.059504455 | J196: -0.04076122847 | K196: 221367.252 | L196: -0.8564516264 | M196: -0.6418815153 | N196: 227415.6169 | O196: -0.5752810006 | P196: -0.5967869821 | Q196: 329095.078 | R196: -0.4316195635 | S196: -1.432642427 | T196: 597622.7321 | U196: -1.371518981 | V196: -1.762921098 | W196: 380945.9736 | X196: -1.351764657 | Y196: 1.095980036 | Z196: 290264.38 | AA196: -1.044759478 | AB196: 0.8919181599 | AC196: 189677.8149 | AD196: -1.057950668 | AE196: 2.23293854 | AF196: 184590.7413 | AG196: -0.4934136506 | AH196: 0.1835104862 | AI196: 297679.8919 | AJ196: -1.064805252 | AK196: -0.3068383851
A197: 2020-06-01 | B197: 163092.7455 | C197: 0.6738871419 | D197: -0.2946062205 | E197: 194146.5656 | F197: 1.065894827 | G197: 1.303810328 | H197: 195029.7193 | I197: 0.5471714605 | J197: 0.4283211738 | K197: 223526.8939 | L197: 0.9755923266 | M197: 0.9979697056 | N197: 231294.8671 | O197: 1.705797643 | P197: 1.226495047 | Q197: 330984.7276 | R197: 0.5741956266 | S197: -1.259584518 | T197: 596550.6323 | U197: -0.1793940826 | V197: -1.824235188 | W197: 377424.444 | X197: -0.9244170841 | Y197: -0.04405560319 | Z197: 289924.3642 | AA197: -0.1171400262 | AB197: 1.12467322 | AC197: 192464.3748 | AD197: 1.46910164 | AE197: 3.422546735 | AF197: 187105.4699 | AG197: 1.362326504 | AH197: 1.417325965 | AI197: 298266.1577 | AJ197: 0.1969450352 | AK197: -0.04522887104
A198: 2020-07-01 | B198: 164670.1219 | C198: 0.9671652388 | D198: 0.1869027592 | E198: 198028.4995 | F198: 1.999486237 | G198: 3.261515978 | H198: 198017.9758 | I198: 1.532205723 | J198: 1.94195043 | K198: 225363.8653 | L198: 0.8218122685 | M198: 2.06323716 | N198: 233657.3685 | O198: 1.021424049 | P198: 2.434002294 | Q198: 335752.4724 | R198: 1.44047276 | S198: 0.5853382055 | T198: 612126.6545 | U198: 2.611014285 | V198: 1.905332619 | W198: 381882.424 | X198: 1.181158266 | Y198: 1.215047898 | Z198: 295578.3281 | AA198: 1.950151335 | AB198: 2.652057866 | AC198: 195452.5199 | AD198: 1.552570474 | AE198: 3.859957243 | AF198: 188322.8982 | AG198: 0.6506642227 | AH198: 2.147872215 | AI198: 303197.4786 | AJ198: 1.653329005 | AK198: 1.853686158
A199: 2020-08-01 | B199: 167218.6593 | C199: 1.547662299 | D199: 1.498927951 | E199: 200053.6925 | F199: 1.022677559 | G199: 3.455564506 | H199: 200196.0704 | I199: 1.099947899 | J199: 2.234977866 | K199: 227224.339 | L199: 0.8255421199 | M199: 2.763751686 | N199: 235298.5264 | O199: 0.7023779428 | P199: 2.8556823 | Q199: 339551.4916 | R199: 1.131494027 | S199: 2.525465242 | T199: 630723.1594 | U199: 3.038015863 | V199: 5.723122916 | W199: 388299.301 | X199: 1.680327918 | Y199: 3.051599329 | Z199: 300592.855 | AA199: 1.696513743 | AB199: 3.603713243 | AC199: 196689.8689 | AD199: 0.6330688525 | AE199: 4.214093957 | AF199: 189060.7441 | AG199: 0.3917982772 | AH199: 2.927935777 | AI199: 308179.3235 | AJ199: 1.643102354 | AK199: 3.556505157
A200: 2020-09-01 | B200: 169628.2838 | C200: 1.441002185 | D200: 2.116062061 | E200: 202161.9651 | F200: 1.053853414 | G200: 3.60131989 | H200: 202413.7993 | I200: 1.107778426 | J200: 2.322781544 | K200: 228028.7315 | L200: 0.3540080969 | M200: 2.015561699 | N200: 235539.9342 | O200: 0.1025964312 | P200: 1.887213164 | Q200: 342071.3503 | R200: 0.7421138689 | S200: 3.313276377 | T200: 646614.3831 | U200: 2.519524374 | V200: 7.273147673 | W200: 392521.4498 | X200: 1.08734392 | Y200: 4.289601611 | Z200: 302828.1058 | AA200: 0.7436140729 | AB200: 3.987562743 | AC200: 197650.2398 | AD200: 0.488266575 | AE200: 3.869406482 | AF200: 189452.1317 | AG200: 0.2070168586 | AH200: 3.00792618 | AI200: 311818.9913 | AJ200: 1.181022721 | AK200: 4.186580896

Sheet INTERACTIVE REGIONS CHARTS
C2: WALKER FRASER STEELE HPI (SCOTLAND) NATIONAL AND REGIONAL FORMATTED DATA FROM 2000
C3: A TRUE MEASURE OF HOUSE PRICE INFLATION
O4: =SERIES!$K$3 -> SEPTEMBER 2020
O5: © Acadata Limited
O6: Walker Fraser Steele HPI (Scotland) clb/cms
Q8: Select Region(s)
Q11: North East
Q12: North West
Q13: East Midlands
Q14: West Midlands
Q15: Wales
Q16: Yorks & Humber
Q17: South West
Q18: East of England
Q19: South East
Q20: Greater London
Q21: Scotland
D29: To change the date range, click on the start and end dates below and select from the drop down lists, then click Reset Dates.
D31: Start Date | E31: 2005-01-01 | G31: End Date | H31: 2020-09-01
E32: =MATCH(E31,dates)+ROW(dates)-1 -> 12 | H32: =MATCH(H31,dates)+ROW(dates)-1 -> 200
Q38: Select Region(s)
Q41: North East
Q42: North West
Q43: East Midlands
Q44: West Midlands
Q45: Wales
Q46: Yorks & Humber
Q47: South West
Q48: East of England
Q49: South East
Q50: Greater London
Q51: Scotland
D58: To change the date range, click on the start and end dates below and select from the drop down lists, then click Reset Dates.
D60: Start Date | E60: 2005-01-01 | G60: End Date | H60: 2020-09-01
E61: =MATCH(E60,dates)+ROW(dates)-1 -> 12 | H61: =MATCH(H60,dates)+ROW(dates)-1 -> 200
Q65: Select Region(s)
Q68: North East
Q69: North West
Q70: East Midlands
Q71: West Midlands
Q72: Wales
Q73: Yorks & Humber
Q74: South West
Q75: East of England
Q76: South East
Q77: Greater London
Q78: Scotland
D85: To change the date range, click on the start and end dates below and select from the drop down lists, then click Reset Dates.
D87: Start Date | E87: 2005-01-01 | G87: End Date | H87: 2020-09-01
E88: =MATCH(E87,dates)+ROW(dates)-1 -> 12 | H88: =MATCH(H87,dates)+ROW(dates)-1 -> 200
